Body,Name of Body,Date,Transaction Number,Invoice Number,Amount,Supplier Name,Supplier ID,VAT Reg no,Expense Area,Expense Type,Expense Code,Creditor Type
18,Devon County Council,06/11/2012,COMMUNTY30174029,ND27/042,1200,1146 BARNSTAPLE SQN AIR TRN CORP,226412,,Place Services,Grants Paid,4802,BUSN
18,Devon County Council,06/11/2012,COMMUNTY30174034,EX17/094,2100,13 (CITY OF EXETER) SQN AIR T C,298040,,Place Services,Grants Paid,4802,BUSN
18,Devon County Council,14/11/2012,CFADRES30071189,REDACTED UNDER DP ACT,1424,18 MARINE PARADE,265062,,People Services,Care Spot - Private (3rd),5701,B
18,Devon County Council,28/11/2012,CFADRES30071866,REDACTED UNDER DP ACT,1424,18 MARINE PARADE,265062,,People Services,Care Spot - Private (3rd),5701,B
18,Devon County Council,05/11/2012,CFADDOM30046087,REDACTED UNDER DP ACT,551.88,1ST REACT HEALTHCARE,107861,,People Services,Care Spot - Private (3rd),5701,BUSN
18,Devon County Council,07/11/2012,CFADDOM30046391,REDACTED UNDER DP ACT,1058.4,1ST REACT HEALTHCARE,107861,,People Services,Care Spot - Private (3rd),5701,BUSN
18,Devon County Council,07/11/2012,CFADDOM30046394,REDACTED UNDER DP ACT,725.76,1ST REACT HEALTHCARE,107861,,People Services,Care Spot - Private (3rd),5701,BUSN
18,Devon County Council,07/11/2012,CFADDOM30046396,REDACTED UNDER DP ACT,695.52,1ST REACT HEALTHCARE,107861,,People Services,Care Spot - Private (3rd),5701,BUSN
18,Devon County Council,07/11/2012,CFADDOM30046397,REDACTED UNDER DP ACT,665.28,1ST REACT HEALTHCARE,107861,,People Services,Care Spot - Private (3rd),5701,BUSN
18,Devon County Council,07/11/2012,CFADDOM30046399,REDACTED UNDER DP ACT,619.92,1ST REACT HEALTHCARE,107861,,People Services,Care Spot - Private (3rd),5701,BUSN
18,Devon County Council,07/11/2012,CFADDOM30046405,REDACTED UNDER DP ACT,517.86,1ST REACT HEALTHCARE,107861,,People Services,Care Spot - Private (3rd),5701,BUSN
18,Devon County Council,07/11/2012,CFADDOM30046407,REDACTED UNDER DP ACT,774.9,1ST REACT HEALTHCARE,107861,,People Services,Care Spot - Private (3rd),5701,BUSN
18,Devon County Council,07/11/2012,CFADDOM30046412,REDACTED UNDER DP ACT,1149.12,1ST REACT HEALTHCARE,107861,,People Services,Care Spot - Private (3rd),5701,BUSN
18,Devon County Council,07/11/2012,CFADDOM30046415,REDACTED UNDER DP ACT,918.54,1ST REACT HEALTHCARE,107861,,People Services,Care Spot - Private (3rd),5701,BUSN
18,Devon County Council,28/11/2012,CFADDOM30047667,REDACTED UNDER DP ACT,1712.34,1ST REACT HEALTHCARE,107861,,People Services,Care Spot - Private (3rd),5701,BUSN
18,Devon County Council,28/11/2012,CFADDOM30047668,REDACTED UNDER DP ACT,2033.64,1ST REACT HEALTHCARE,107861,,People Services,Care Spot - Private (3rd),5701,BUSN
18,Devon County Council,28/11/2012,CFADDOM30047669,REDACTED UNDER DP ACT,1697.22,1ST REACT HEALTHCARE,107861,,People Services,Care Spot - Private (3rd),5701,BUSN
18,Devon County Council,28/11/2012,CFADDOM30047670,REDACTED UNDER DP ACT,1043.28,1ST REACT HEALTHCARE,107861,,People Services,Care Spot - Private (3rd),5701,BUSN
18,Devon County Council,28/11/2012,CFADDOM30047673,REDACTED UNDER DP ACT,695.52,1ST REACT HEALTHCARE,107861,,People Services,Care Spot - Private (3rd),5701,BUSN
18,Devon County Council,28/11/2012,CFADDOM30047674,REDACTED UNDER DP ACT,665.28,1ST REACT HEALTHCARE,107861,,People Services,Care Spot - Private (3rd),5701,BUSN
18,Devon County Council,28/11/2012,CFADDOM30047677,REDACTED UNDER DP ACT,635.04,1ST REACT HEALTHCARE,107861,,People Services,Care Spot - Private (3rd),5701,BUSN
18,Devon County Council,28/11/2012,CFADDOM30047682,REDACTED UNDER DP ACT,529.2,1ST REACT HEALTHCARE,107861,,People Services,Care Spot - Private (3rd),5701,BUSN
18,Devon County Council,28/11/2012,CFADDOM30047688,REDACTED UNDER DP ACT,1648.08,1ST REACT HEALTHCARE,107861,,People Services,Care Spot - Private (3rd),5701,BUSN
18,Devon County Council,28/11/2012,CFADDOM30047689,REDACTED UNDER DP ACT,1164.24,1ST REACT HEALTHCARE,107861,,People Services,Care Spot - Private (3rd),5701,BUSN
18,Devon County Council,28/11/2012,CFADDOM30047692,REDACTED UNDER DP ACT,937.44,1ST REACT HEALTHCARE,107861,,People Services,Care Spot - Private (3rd),5701,BUSN
18,Devon County Council,28/11/2012,CFADDOM30047696,REDACTED UNDER DP ACT,634.92,1ST REACT HEALTHCARE,107861,,People Services,Care Spot - Private (3rd),5701,BUSN
18,Devon County Council,13/11/2012,COMMUNTY30174053,SH35/042,1672,1ST ROBOROUGH SCOUT GROUP,298434,,Place Services,Grants Paid,4802,BUSN
18,Devon County Council,02/11/2012,RECSERV30602980,1484,707.45,24 HOUR CARE LTD,274488,,Corporate Services,External Agency Staff,4321,LTD
18,Devon County Council,19/11/2012,RECSERV30603071,1502,785.84,24 HOUR CARE LTD,274488,,Corporate Services,External Agency Staff,4321,LTD
18,Devon County Council,19/11/2012,RECSERV30603072,1495,561.73,24 HOUR CARE LTD,274488,,Corporate Services,External Agency Staff,4321,LTD
18,Devon County Council,26/11/2012,RECSERV30603134,1505,567.36,24 HOUR CARE LTD,274488,,Corporate Services,External Agency Staff,4321,LTD
18,Devon County Council,27/11/2012,RECSERV30603147,1504,522.45,24 HOUR CARE LTD,274488,,Corporate Services,External Agency Staff,4321,LTD
18,Devon County Council,12/11/2012,DHRP30223875,PRI052292,2710,2E2 UK LTD,238779,645960019,Corporate Services,IT Licences,4513,LTD
18,Devon County Council,06/11/2012,COMMUNTY30174024,ND33/035,1500,361 ENERGY ACTION,292101,,Place Services,Grants Paid,4802,BUSN
18,Devon County Council,06/11/2012,FINEXEAD30438165,20697014,491.12,3663  (IVYBRIDGE),16295,643994692,People Services,Provisions / Food Purchases,4102,LTD
18,Devon County Council,12/11/2012,FINEXEAD30438194,20701623,577.38,3663  (IVYBRIDGE),16295,643994692,People Services,Provisions / Food Purchases,4102,LTD
18,Devon County Council,19/11/2012,FINEXEAD30438242,20705835,574.53,3663  (IVYBRIDGE),16295,643994692,People Services,Provisions / Food Purchases,4102,LTD
18,Devon County Council,05/11/2012,FINNDAD30450940,20696053,502.21,3663  (IVYBRIDGE),16295,643994692,People Services,Provisions / Food Purchases,4102,LTD
18,Devon County Council,19/11/2012,FINNDAD30451206,20705023,509.83,3663  (IVYBRIDGE),16295,643994692,People Services,Provisions / Food Purchases,4102,LTD
18,Devon County Council,26/11/2012,FINNDAD30451386,20709369,656.13,3663  (IVYBRIDGE),16295,643994692,People Services,Provisions / Food Purchases,4102,LTD
18,Devon County Council,06/11/2012,FINNDAD30450623,20691967,554.3,3663 (SCARISBRICK),6550,643994692,People Services,Provisions / Food Purchases,4102,LTD
18,Devon County Council,02/11/2012,FINNDAD30451006,20695781,667.11,3663 (SCARISBRICK),6550,643994692,People Services,Provisions / Food Purchases,4102,LTD
18,Devon County Council,16/11/2012,FINNDAD30451101,20704261,555.85,3663 (SCARISBRICK),6550,643994692,People Services,Provisions / Food Purchases,4102,LTD
18,Devon County Council,30/11/2012,FINNDAD30451545,20713299,563.6,3663 (SCARISBRICK),6550,643994692,People Services,Provisions / Food Purchases,4102,LTD
18,Devon County Council,15/11/2012,FINSWAD30464057,20706892,626.65,3663 (SCARISBRICK),6550,643994692,People Services,Provisions / Food Purchases,4102,LTD
18,Devon County Council,23/11/2012,FINSWAD30464123,20711069,632.95,3663 (SCARISBRICK),6550,643994692,People Services,Provisions / Food Purchases,4102,LTD
18,Devon County Council,07/11/2012,FINTBAD30468367,20702961,498.45,3663 (SCARISBRICK),6550,643994692,People Services,Provisions / Food Purchases,4102,LTD
18,Devon County Council,28/11/2012,FINTBAD30468708,20720329,732.14,3663 (SCARISBRICK),6550,643994692,People Services,Provisions / Food Purchases,4102,LTD
18,Devon County Council,28/11/2012,CYPNMLOC30198030,TD13,12428.57,3-DIMENSIONS CARE LTD,255016,,People Services,Residential Care - Private (3rd),5731,LTD
18,Devon County Council,28/11/2012,CYPNMLOC30198031,KDR - 37,13300,3-DIMENSIONS CARE LTD,255016,,People Services,Residential Care - Private (3rd),5731,LTD
18,Devon County Council,09/11/2012,CYPSWLOC30208686,LW08,5000,3-DIMENSIONS CARE LTD,255016,,People Services,Residential Care - Private (3rd),5731,LTD
18,Devon County Council,09/11/2012,CYPSWLOC30208687,SH16,16958.57,3-DIMENSIONS CARE LTD,255016,,People Services,Residential Care - Private (3rd),5731,LTD
18,Devon County Council,09/11/2012,CYPSWLOC30208688,TF21,17230,3-DIMENSIONS CARE LTD,255016,,People Services,Residential Care - Private (3rd),5731,LTD
18,Devon County Council,07/11/2012,CYPSWLOC30209251,CS102/0196,500,3-DIMENSIONS CARE LTD,255016,,People Services,Incidental costs Fostered Children (3rd),5715,LTD
18,Devon County Council,19/11/2012,CYPSWLOC30209818,RS02,24473.86,3-DIMENSIONS CARE LTD,255016,,People Services,Residential Care - Private (3rd),5731,LTD
18,Devon County Council,19/11/2012,CYPSWLOC30209819,RS03,23658.57,3-DIMENSIONS CARE LTD,255016,,People Services,Residential Care - Private (3rd),5731,LTD
18,Devon County Council,19/11/2012,CYPSWLOC30209820,255016,4285.72,3-DIMENSIONS CARE LTD,255016,,People Services,Residential Care - Private (3rd),5731,LTD
18,Devon County Council,06/11/2012,RESTRAT30610925,PUPILPREM28,500,3-DIMENSIONS CARE LTD,255016,,People Services,Pupil Premium,9054,LTD
18,Devon County Council,07/11/2012,FINNDAD30451186,19,512,A & L TAXIS,264303,122034865,People Services,Pub Trans Development & Contributions (3,5502,BUSN
18,Devon County Council,27/11/2012,EARLYRS30234176,Aut 2 84004,6835.56,A B C DAY NURSERY (EXMOUTH),84088,,People Services,Payments to Vol Providers (3rd),5501,EY
18,Devon County Council,29/11/2012,HQ30526529,6097,6785,A C ARCHAEOLOGY,246862,543537736,Place Services,Professional Fees,4306,BUSN
18,Devon County Council,23/11/2012,ECONEUR30239200,143,2500,A HEAD FOR PR LTD,289470,106574324,Place Services,Other Fees & Charges (Expenditure),4311,BUSN
18,Devon County Council,02/11/2012,NPSWI30564591,2742,12816.46,A J CONTRACTORS (DEVON) LTD,23596,540466358,People Services,Minor Improvements,2261,LTD
18,Devon County Council,15/11/2012,NPSWI30564781,2777,481.44,A J CONTRACTORS (DEVON) LTD,23596,540466358,Corporate Services,Building Mtce Works - unforseen,2101,LTD
18,Devon County Council,12/11/2012,FINTBAD30468421,3839,1758.77,A M CARE,169807,831850435,People Services,Equipment - Private (3rd),5741,LTD
18,Devon County Council,12/11/2012,FINTBAD30468422,3840,1429.53,A M CARE,169807,831850435,People Services,Equipment - Private (3rd),5741,LTD
18,Devon County Council,12/11/2012,FINTBAD30468423,3841,1265.03,A M CARE,169807,831850435,People Services,Equipment - Private (3rd),5741,LTD
18,Devon County Council,30/11/2012,FINTBAD30468723,3852,1501.6,A M CARE,169807,831850435,People Services,Equipment - Private (3rd),5741,LTD
18,Devon County Council,30/11/2012,FINTBAD30468725,3853,1798.89,A M CARE,169807,831850435,People Services,Equipment - Private (3rd),5741,LTD
18,Devon County Council,20/11/2012,NPSWI30564842,13254,549,A M S 2000 LTD,84028,742335056,People Services,Management Consultancy,4303,LTD
18,Devon County Council,01/11/2012,HIGHWAYS30499911,9816649,900,A PLANT LUX TRAFFIC CONTROLS LTD,204449,,Place Services,Other Contractors (not Main / Term),4302,LTD
18,Devon County Council,20/11/2012,FINTBAD30468530,20059,532,A R C WELDING SERVICES,51108,,People Services,Adaptations - Private (3rd),5709,BUSN
18,Devon County Council,20/11/2012,WASTE30650030,A8550819070,450.3,A T S EUROMASTER,110718,786754958,Place Services,Other Contractors (not Main / Term),4302,LTD
18,Devon County Council,27/11/2012,YOUTHSTH20463147,A8550819071,555.6,A T S EUROMASTER,110718,786754958,People Services,Establishments Vehicles Costs (inc maint,3002,LTD
18,Devon County Council,28/11/2012,CFADRES30071985,REDACTED UNDER DP ACT,1472.04,AAA ELDERLY CARE LTD/ST SAVIOURS,298874,,People Services,Care Spot - Private (3rd),5701,B
18,Devon County Council,14/11/2012,CFADRES30071009,REDACTED UNDER DP ACT,6280.84,AARON COURT,173212,,People Services,Care Spot - Private (3rd),5701,B
18,Devon County Council,28/11/2012,CFADRES30071689,REDACTED UNDER DP ACT,6280.84,AARON COURT,173212,,People Services,Care Spot - Private (3rd),5701,B
18,Devon County Council,14/11/2012,CFADRES30071275,REDACTED UNDER DP ACT,7684.12,ABBEYFIELD - SHANDFORD,292973,231972268,People Services,Care Spot - Private (3rd),5701,B
18,Devon County Council,28/11/2012,CFADRES30071950,REDACTED UNDER DP ACT,6486.7,ABBEYFIELD - SHANDFORD,292973,231972268,People Services,Care Spot - Private (3rd),5701,B
18,Devon County Council,14/11/2012,CFADRES30070669,REDACTED UNDER DP ACT,6448.71,ABBEYFIELD E DEV EXTRA CARE SOC,88511,,People Services,Care Spot - Private (3rd),5701,B
18,Devon County Council,28/11/2012,CFADRES30071352,REDACTED UNDER DP ACT,6944.65,ABBEYFIELD E DEV EXTRA CARE SOC,88511,,People Services,Care Spot - Private (3rd),5701,B
18,Devon County Council,28/11/2012,CFSUPP30171443,REDACTED UNDER DP ACT,1076.63,ABBEYFIELD TAVISTOCK SOCIETY LTD,117829,,People Services,Accomodation Based Services (3rd),5707,LTD
18,Devon County Council,27/11/2012,EARLYRS30234173,Aut 2 84001,6529.16,ABBOTSBURY SCHOOL,36190,,People Services,Payments to Vol Providers (3rd),5501,EDUC
18,Devon County Council,27/11/2012,EARLYRS30234174,Aut 2 84002,1617.42,ABBOTSHAM & ALWINGTON PRE-SCHOOL,66648,,People Services,Payments to Vol Providers (3rd),5501,EY
18,Devon County Council,27/11/2012,EARLYRS30234175,Aut 2 84003,1358.23,ABBOTSKERSWELL PRE SCHOOL,39727,,People Services,Payments to Vol Providers (3rd),5501,EY
18,Devon County Council,27/11/2012,CYPEELOC30183338,12782,630,ABILITYWISE LLP,155178,831516938,People Services,Health & Safety Equipment,4007,BUSN
18,Devon County Council,16/11/2012,EARLYRS30234140,996,1750,ACACIA TRAINING & DEVELOPMENT LT,175183,586323128,People Services,Course / Exam Fees & Registration,4312,LTD
18,Devon County Council,29/11/2012,EARLYRS30234502,1001,605,ACACIA TRAINING & DEVELOPMENT LT,175183,586323128,People Services,Course / Exam Fees & Registration,4312,LTD
18,Devon County Council,30/11/2012,EARLYRS30234504,1000,1300,ACACIA TRAINING & DEVELOPMENT LT,175183,586323128,People Services,Course / Exam Fees & Registration,4312,LTD
18,Devon County Council,06/11/2012,FACM30435607,10252,3360,ACCESS INDEPENDENT LTD,233564,,Corporate Services,Other Fees & Charges (Expenditure),4311,LTD
18,Devon County Council,02/11/2012,EARLYRS30234122,0072/12,3874,ACDHELP.COM LTD,255658,,People Services,Course / Exam Fees & Registration,4312,BUSN
18,Devon County Council,16/11/2012,EARLYRS30234141,0073/12,3874,ACDHELP.COM LTD,255658,,People Services,Course / Exam Fees & Registration,4312,BUSN
18,Devon County Council,29/11/2012,FINMDAD30441996,77,4489,ACORN COMMUNITY SUPPORT GROUP,35836,,People Services,Payments to Vol Providers (3rd),5501,BUSN
18,Devon County Council,27/11/2012,EARLYRS30234177,Aut 2 84005,2306.46,ACORN KINDERGARTEN,34525,,People Services,Payments to Vol Providers (3rd),5501,LTD
18,Devon County Council,06/11/2012,CYPNMLOC30197721,9041,531.7,ACORNS DAY NURSERY (EXETER),66779,,People Services,Care Other - Private (3rd),5705,EY
18,Devon County Council,27/11/2012,EARLYRS30234178,Aut 2 84006,6388.46,ACORNS DAY NURSERY (EXETER),66779,,People Services,Payments to Vol Providers (3rd),5501,EY
18,Devon County Council,01/11/2012,FINMH30445199,1038,856.8,ACTION 4 HOUSING LTD,280166,,People Services,Care Spot - Private (3rd),5701,LTD
18,Devon County Council,21/11/2012,FINMH30445301,574,2509.2,ACTION 4 HOUSING LTD,280166,,People Services,Care Spot - Private (3rd),5701,LTD
18,Devon County Council,21/11/2012,FINMH17344810,1151,-1285.2,ACTION 4 HOUSING LTD,280166,,People Services,Care Spot - Private (3rd),5701,LTD
18,Devon County Council,28/11/2012,CYPNMLOC30198056,R31INV/00009449,3405.34,ACTION FOR CHILDREN,217119,589629566,People Services,Independent Fostering (3rd),5714,CHTY
18,Devon County Council,28/11/2012,CYPNMLOC30198057,R31INV/00009447,3458.57,ACTION FOR CHILDREN,217119,589629566,People Services,Independent Fostering (3rd),5714,CHTY
18,Devon County Council,28/11/2012,CYPNMLOC30198058,R31INV/00009450,3405.34,ACTION FOR CHILDREN,217119,589629566,People Services,Independent Fostering (3rd),5714,CHTY
18,Devon County Council,28/11/2012,CYPNMLOC30198059,R31INV/00009448,3582.86,ACTION FOR CHILDREN,217119,589629566,People Services,Independent Fostering (3rd),5714,CHTY
18,Devon County Council,01/11/2012,EARLYRS30234114,R81IN1/00002621,33831.75,ACTION FOR CHILDREN,217119,589629566,People Services,CYPS Contracts,5781,CHTY
18,Devon County Council,01/11/2012,EARLYRS30234116,R81IN1/00002615,35389.75,ACTION FOR CHILDREN,217119,589629566,People Services,CYPS Contracts,5781,CHTY
18,Devon County Council,01/11/2012,EARLYRS30234117,R81IN1/00002580,59374,ACTION FOR CHILDREN,217119,589629566,People Services,CYPS Contracts,5781,CHTY
18,Devon County Council,01/11/2012,EARLYRS30234118,R81IN1/00002581,51786.75,ACTION FOR CHILDREN,217119,589629566,People Services,CYPS Contracts,5781,CHTY
18,Devon County Council,27/11/2012,EARLYRS30234437,Aut 2e 84023,4990.95,ACTION FOR CHILDREN,168107,,People Services,Payments to Vol Providers (3rd),5501,EY
18,Devon County Council,12/11/2012,FINSSCW30458033,9374,5000,ACTION FOR CHILDREN(LONDON),61623,589629566,People Services,Contributions to Private Contractors (3r,5751,CHTY
18,Devon County Council,12/11/2012,FINSSCW30458034,9373,3600,ACTION FOR CHILDREN(LONDON),61623,589629566,People Services,Contributions to Private Contractors (3r,5751,CHTY
18,Devon County Council,12/11/2012,FINSSCW30458035,9372,118125,ACTION FOR CHILDREN(LONDON),61623,589629566,People Services,Contributions to Private Contractors (3r,5751,CHTY
18,Devon County Council,14/11/2012,CFADRES30070935,REDACTED UNDER DP ACT,1543.8,ACTION ON HEARING LOSS,121442,,People Services,Care Spot - Private (3rd),5701,B
18,Devon County Council,28/11/2012,CFADRES30071615,REDACTED UNDER DP ACT,1543.8,ACTION ON HEARING LOSS,121442,,People Services,Care Spot - Private (3rd),5701,B
18,Devon County Council,27/11/2012,FINTBAD30468678,INV0121222,1120.08,ACTION ON HEARING LOSS,121442,,People Services,Individualised Support - Private (3rd),5706,B
18,Devon County Council,27/11/2012,FINTBAD30468679,INV0121214,2588.6,ACTION ON HEARING LOSS,121442,,People Services,Care Spot - Private (3rd),5701,B
18,Devon County Council,27/11/2012,FINTBAD30468680,INV0121208,4161,ACTION ON HEARING LOSS,121442,,People Services,Care Spot - Private (3rd),5701,B
18,Devon County Council,26/11/2012,FNEXMHLD30473054,121220RHARRISON,4361.44,ACTION ON HEARING LOSS,121442,,People Services,Care Spot - Private (3rd),5701,B
18,Devon County Council,09/11/2012,FINTBAD30468407,17520,3355.08,ADAPTACAR,100395,692272027,People Services,Equipment - Private (3rd),5741,BUSN
18,Devon County Council,28/11/2012,NPSWI30564983,54516,678.64,ADDICOTT ELECTRICS LTD,16451,,Corporate Services,Building Mtce Works - unforseen,2101,LTD
18,Devon County Council,14/11/2012,CFADRES30070750,REDACTED UNDER DP ACT,21499.76,ADELAIDE LODGE CARE HOME PRTNSHP,89773,,People Services,Care Spot - Private (3rd),5701,B
18,Devon County Council,28/11/2012,CFADRES30071432,REDACTED UNDER DP ACT,21499.76,ADELAIDE LODGE CARE HOME PRTNSHP,89773,,People Services,Care Spot - Private (3rd),5701,B
18,Devon County Council,14/11/2012,CFADRES30071217,REDACTED UNDER DP ACT,782,ADL CARE - T/A JUBILEE HOUSE,278152,,People Services,Care Spot - Private (3rd),5701,B
18,Devon County Council,28/11/2012,CFADRES30071895,REDACTED UNDER DP ACT,782,ADL CARE - T/A JUBILEE HOUSE,278152,,People Services,Care Spot - Private (3rd),5701,B
18,Devon County Council,19/11/2012,CYPSWLOC30209802,212027,685.13,ADOPTION UK,105628,795034217,People Services,Contributions to Private Contractors (3r,5751,BUSN
18,Devon County Council,26/11/2012,CYPEELOC30183252,4112,595,ADOPTIONPLUS LTD,249611,763823805,People Services,Training inc Travel Costs,1802,LTD
18,Devon County Council,26/11/2012,RECSERV30603144,1645465,890.54,ADVANTAGE HEALTHCARE NURSING/CRE,256140,853731615,Corporate Services,External Agency Staff,4321,BUSN
18,Devon County Council,28/11/2012,RECSERV30603161,1640801,877.53,ADVANTAGE HEALTHCARE NURSING/CRE,256140,853731615,Corporate Services,External Agency Staff,4321,BUSN
18,Devon County Council,28/11/2012,RECSERV30603162,1639667,774.13,ADVANTAGE HEALTHCARE NURSING/CRE,256140,853731615,Corporate Services,External Agency Staff,4321,BUSN
18,Devon County Council,28/11/2012,RECSERV30603167,1646614,1092.79,ADVANTAGE HEALTHCARE NURSING/CRE,256140,853731615,Corporate Services,External Agency Staff,4321,BUSN
18,Devon County Council,07/11/2012,CFADDOM30046423,REDACTED UNDER DP ACT,937.5,ADVENT CARE TEAM LTD,168316,,People Services,Care Spot - Private (3rd),5701,B
18,Devon County Council,07/11/2012,CFADDOM30046424,REDACTED UNDER DP ACT,1302.96,ADVENT CARE TEAM LTD,168316,,People Services,Care Spot - Private (3rd),5701,B
18,Devon County Council,07/11/2012,CFADDOM30046426,REDACTED UNDER DP ACT,539,ADVENT CARE TEAM LTD,168316,,People Services,Care Spot - Private (3rd),5701,B
18,Devon County Council,07/11/2012,CFADDOM30046427,REDACTED UNDER DP ACT,539,ADVENT CARE TEAM LTD,168316,,People Services,Care Spot - Private (3rd),5701,B
18,Devon County Council,07/11/2012,CFADDOM30046430,REDACTED UNDER DP ACT,847,ADVENT CARE TEAM LTD,168316,,People Services,Care Spot - Private (3rd),5701,B
18,Devon County Council,07/11/2012,CFADDOM30046432,REDACTED UNDER DP ACT,646.8,ADVENT CARE TEAM LTD,168316,,People Services,Care Spot - Private (3rd),5701,B
18,Devon County Council,07/11/2012,CFADDOM30046437,REDACTED UNDER DP ACT,907.68,ADVENT CARE TEAM LTD,168316,,People Services,Care Spot - Private (3rd),5701,B
18,Devon County Council,07/11/2012,CFADDOM30046439,REDACTED UNDER DP ACT,523.6,ADVENT CARE TEAM LTD,168316,,People Services,Care Spot - Private (3rd),5701,B
18,Devon County Council,07/11/2012,CFADDOM30046454,REDACTED UNDER DP ACT,600,ADVENT CARE TEAM LTD,168316,,People Services,Care Spot - Private (3rd),5701,B
18,Devon County Council,07/11/2012,CFADDOM30046455,REDACTED UNDER DP ACT,754.6,ADVENT CARE TEAM LTD,168316,,People Services,Care Spot - Private (3rd),5701,B
18,Devon County Council,07/11/2012,CFADDOM30046456,REDACTED UNDER DP ACT,512.4,ADVENT CARE TEAM LTD,168316,,People Services,Care Spot - Private (3rd),5701,B
18,Devon County Council,07/11/2012,CFADDOM30046462,REDACTED UNDER DP ACT,862.4,ADVENT CARE TEAM LTD,168316,,People Services,Care Spot - Private (3rd),5701,B
18,Devon County Council,07/11/2012,CFADDOM30046465,REDACTED UNDER DP ACT,525,ADVENT CARE TEAM LTD,168316,,People Services,Care Spot - Private (3rd),5701,B
18,Devon County Council,07/11/2012,CFADDOM30046466,REDACTED UNDER DP ACT,645,ADVENT CARE TEAM LTD,168316,,People Services,Care Spot - Private (3rd),5701,B
18,Devon County Council,07/11/2012,CFADDOM30046472,REDACTED UNDER DP ACT,594.52,ADVENT CARE TEAM LTD,168316,,People Services,Care Spot - Private (3rd),5701,B
18,Devon County Council,07/11/2012,CFADDOM30046475,REDACTED UNDER DP ACT,684.68,ADVENT CARE TEAM LTD,168316,,People Services,Care Spot - Private (3rd),5701,B
18,Devon County Council,07/11/2012,CFADDOM30046476,REDACTED UNDER DP ACT,672,ADVENT CARE TEAM LTD,168316,,People Services,Care Spot - Private (3rd),5701,B
18,Devon County Council,15/11/2012,YOUTHCTL30660452,12/11/2289,715,ADVENTURE ACT LICENSNG AUTHORITY,71237,,People Services,Subscriptions,4801,BUSN
18,Devon County Council,12/11/2012,CFADDAY30022308,REDACTED UNDER DP ACT,2345.46,AGE CONCERN (EXMOUTH),5761,,People Services,Care Spot - Private (3rd),5701,BUSN
18,Devon County Council,07/11/2012,CFADDAY30022171,REDACTED UNDER DP ACT,1045.95,AGE CONCERN CREDITON,35273,,People Services,Care Spot - Private (3rd),5701,BUSN
18,Devon County Council,07/11/2012,CFADDAY30022165,REDACTED UNDER DP ACT,1750.59,AGE CONCERN TIVERTON & DISTRICT,25403,,People Services,Care Spot - Private (3rd),5701,BUSN
18,Devon County Council,05/11/2012,CFADDAY30022059,REDACTED UNDER DP ACT,671.67,AGE UK EXETER,34456,,People Services,Individualised Support - Private (3rd),5706,BUSN
18,Devon County Council,05/11/2012,CFADDAY30022060,REDACTED UNDER DP ACT,883.78,AGE UK EXETER,34456,,People Services,Individualised Support - Private (3rd),5706,BUSN
18,Devon County Council,14/11/2012,CFADDAY30022459,REDACTED UNDER DP ACT,2740.7,AGE UK EXETER,34456,,People Services,Care Spot - Private (3rd),5701,BUSN
18,Devon County Council,14/11/2012,CFADDAY30022460,REDACTED UNDER DP ACT,2222.92,AGE UK EXETER,34456,,People Services,Care Spot - Private (3rd),5701,BUSN
18,Devon County Council,19/11/2012,CFADDAY30022808,REDACTED UNDER DP ACT,6309.17,AGE UK EXETER,34456,,People Services,Care Spot - Private (3rd),5701,BUSN
18,Devon County Council,21/11/2012,CFADDAY30022886,REDACTED UNDER DP ACT,2596.25,AGE UK EXETER,34456,,People Services,Care Spot - Private (3rd),5701,BUSN
18,Devon County Council,28/11/2012,CFADDAY30023203,REDACTED UNDER DP ACT,706.05,AGE UK EXETER,34456,,People Services,Individualised Support - Private (3rd),5706,BUSN
18,Devon County Council,28/11/2012,CFADDAY30023204,REDACTED UNDER DP ACT,994.88,AGE UK EXETER,34456,,People Services,Individualised Support - Private (3rd),5706,BUSN
18,Devon County Council,13/11/2012,COMMUNTY30174065,EB/07,6750,AGE UK EXETER,34456,,Place Services,Grants Paid,4802,BUSN
18,Devon County Council,28/11/2012,CFSUPP30171430,REDACTED UNDER DP ACT,11259.64,AGE UK EXETER(S PEOPLE PMTS ONLY,91595,,People Services,Floating Support Service (3rd),5708,BUSN
18,Devon County Council,12/11/2012,CFADDAY30022338,REDACTED UNDER DP ACT,2340.05,AGENCY ASSISTANCE,87496,754992187,People Services,Individualised Support - Private (3rd),5706,SOLE
18,Devon County Council,12/11/2012,CFADDAY30022339,REDACTED UNDER DP ACT,2324,AGENCY ASSISTANCE,87496,754992187,People Services,Individualised Support - Private (3rd),5706,SOLE
18,Devon County Council,12/11/2012,CFADDAY30022340,REDACTED UNDER DP ACT,1197.46,AGENCY ASSISTANCE,87496,754992187,People Services,Individualised Support - Private (3rd),5706,SOLE
18,Devon County Council,12/11/2012,CFADDAY30022341,REDACTED UNDER DP ACT,604.8,AGENCY ASSISTANCE,87496,754992187,People Services,Individualised Support - Private (3rd),5706,SOLE
18,Devon County Council,12/11/2012,CFADDAY30022342,REDACTED UNDER DP ACT,2800,AGENCY ASSISTANCE,87496,754992187,People Services,Individualised Support - Private (3rd),5706,SOLE
18,Devon County Council,12/11/2012,CFADDAY30022343,REDACTED UNDER DP ACT,2400,AGENCY ASSISTANCE,87496,754992187,People Services,Individualised Support - Private (3rd),5706,SOLE
18,Devon County Council,12/11/2012,CFADDAY30022344,REDACTED UNDER DP ACT,907.2,AGENCY ASSISTANCE,87496,754992187,People Services,Individualised Support - Private (3rd),5706,SOLE
18,Devon County Council,12/11/2012,CFADDAY30022345,REDACTED UNDER DP ACT,604.8,AGENCY ASSISTANCE,87496,754992187,People Services,Individualised Support - Private (3rd),5706,SOLE
18,Devon County Council,12/11/2012,CFADDAY30022346,REDACTED UNDER DP ACT,1754,AGENCY ASSISTANCE,87496,754992187,People Services,Individualised Support - Private (3rd),5706,SOLE
18,Devon County Council,12/11/2012,CFADDAY30022347,REDACTED UNDER DP ACT,1754,AGENCY ASSISTANCE,87496,754992187,People Services,Individualised Support - Private (3rd),5706,SOLE
18,Devon County Council,12/11/2012,CFADDAY30022348,REDACTED UNDER DP ACT,1436,AGENCY ASSISTANCE,87496,754992187,People Services,Individualised Support - Private (3rd),5706,SOLE
18,Devon County Council,14/11/2012,CFADDAY30022495,REDACTED UNDER DP ACT,1197.46,AGENCY ASSISTANCE,87496,754992187,People Services,Individualised Support - Private (3rd),5706,SOLE
18,Devon County Council,14/11/2012,CFADDAY30022496,REDACTED UNDER DP ACT,1197.46,AGENCY ASSISTANCE,87496,754992187,People Services,Individualised Support - Private (3rd),5706,SOLE
18,Devon County Council,28/11/2012,CFADDAY30023215,REDACTED UNDER DP ACT,2307.5,AGENCY ASSISTANCE,87496,754992187,People Services,Individualised Support - Private (3rd),5706,SOLE
18,Devon County Council,28/11/2012,CFADDAY30023216,REDACTED UNDER DP ACT,2444.5,AGENCY ASSISTANCE,87496,754992187,People Services,Individualised Support - Private (3rd),5706,SOLE
18,Devon County Council,28/11/2012,CFADDAY30023217,REDACTED UNDER DP ACT,1197.46,AGENCY ASSISTANCE,87496,754992187,People Services,Individualised Support - Private (3rd),5706,SOLE
18,Devon County Council,28/11/2012,CFADDAY30023218,REDACTED UNDER DP ACT,1197.46,AGENCY ASSISTANCE,87496,754992187,People Services,Individualised Support - Private (3rd),5706,SOLE
18,Devon County Council,28/11/2012,CFADDAY30023219,REDACTED UNDER DP ACT,1197.46,AGENCY ASSISTANCE,87496,754992187,People Services,Individualised Support - Private (3rd),5706,SOLE
18,Devon County Council,28/11/2012,CFADDAY30023220,REDACTED UNDER DP ACT,604.8,AGENCY ASSISTANCE,87496,754992187,People Services,Individualised Support - Private (3rd),5706,SOLE
18,Devon County Council,28/11/2012,CFADDAY30023221,REDACTED UNDER DP ACT,2800,AGENCY ASSISTANCE,87496,754992187,People Services,Individualised Support - Private (3rd),5706,SOLE
18,Devon County Council,28/11/2012,CFADDAY30023222,REDACTED UNDER DP ACT,2400,AGENCY ASSISTANCE,87496,754992187,People Services,Individualised Support - Private (3rd),5706,SOLE
18,Devon County Council,28/11/2012,CFADDAY30023223,REDACTED UNDER DP ACT,907.2,AGENCY ASSISTANCE,87496,754992187,People Services,Individualised Support - Private (3rd),5706,SOLE
18,Devon County Council,28/11/2012,CFADDAY30023224,REDACTED UNDER DP ACT,604.8,AGENCY ASSISTANCE,87496,754992187,People Services,Individualised Support - Private (3rd),5706,SOLE
18,Devon County Council,28/11/2012,CFADDAY30023225,REDACTED UNDER DP ACT,1754,AGENCY ASSISTANCE,87496,754992187,People Services,Individualised Support - Private (3rd),5706,SOLE
18,Devon County Council,28/11/2012,CFADDAY30023226,REDACTED UNDER DP ACT,1754,AGENCY ASSISTANCE,87496,754992187,People Services,Individualised Support - Private (3rd),5706,SOLE
18,Devon County Council,28/11/2012,CFADDAY30023227,REDACTED UNDER DP ACT,1436,AGENCY ASSISTANCE,87496,754992187,People Services,Individualised Support - Private (3rd),5706,SOLE
18,Devon County Council,12/11/2012,CFADDOM30046538,REDACTED UNDER DP ACT,1720,AGENCY ASSISTANCE,87496,754992187,People Services,Care Spot - Private (3rd),5701,SOLE
18,Devon County Council,28/11/2012,CFADDOM30047582,REDACTED UNDER DP ACT,1720,AGENCY ASSISTANCE,87496,754992187,People Services,Care Spot - Private (3rd),5701,SOLE
18,Devon County Council,02/11/2012,RECSERV30602984,9066B,659.5,AGENCY ASSISTANCE,87496,754992187,Corporate Services,External Agency Staff,4321,SOLE
18,Devon County Council,02/11/2012,RECSERV30602986,8910B,1681.99,AGENCY ASSISTANCE,87496,754992187,Corporate Services,External Agency Staff,4321,SOLE
18,Devon County Council,26/11/2012,RECSERV30603084,9163B,528.99,AGENCY ASSISTANCE,87496,754992187,Corporate Services,External Agency Staff,4321,SOLE
18,Devon County Council,26/11/2012,RECSERV30603086,9220B,937.37,AGENCY ASSISTANCE,87496,754992187,Corporate Services,External Agency Staff,4321,SOLE
18,Devon County Council,26/11/2012,RECSERV30603137,9106B,1766.98,AGENCY ASSISTANCE,87496,754992187,Corporate Services,External Agency Staff,4321,SOLE
18,Devon County Council,14/11/2012,CFADRES30071287,REDACTED UNDER DP ACT,1100,AGINCOURT CARE HOME LTD,295122,,People Services,Care Spot - Private (3rd),5701,B
18,Devon County Council,28/11/2012,CFADRES30071962,REDACTED UNDER DP ACT,1100,AGINCOURT CARE HOME LTD,295122,,People Services,Care Spot - Private (3rd),5701,B
18,Devon County Council,06/11/2012,RECSERV30602965,1905,1224.75,AIR SOCIAL CARE,290913,978094760,Corporate Services,External Agency Staff,4321,BUSN
18,Devon County Council,06/11/2012,RECSERV30602966,1906,1339.5,AIR SOCIAL CARE,290913,978094760,Corporate Services,External Agency Staff,4321,BUSN
18,Devon County Council,06/11/2012,RECSERV30602972,1907,1290.19,AIR SOCIAL CARE,290913,978094760,Corporate Services,External Agency Staff,4321,BUSN
18,Devon County Council,14/11/2012,RECSERV30603017,1930,1008,AIR SOCIAL CARE,290913,978094760,Corporate Services,External Agency Staff,4321,BUSN
18,Devon County Council,21/11/2012,RECSERV30603090,1944,1230.6,AIR SOCIAL CARE,290913,978094760,Corporate Services,External Agency Staff,4321,BUSN
18,Devon County Council,30/11/2012,RECSERV30603197,1945,1233.99,AIR SOCIAL CARE,290913,978094760,Corporate Services,External Agency Staff,4321,BUSN
18,Devon County Council,30/11/2012,RECSERV30603198,1943,453.2,AIR SOCIAL CARE,290913,978094760,Corporate Services,External Agency Staff,4321,BUSN
18,Devon County Council,30/11/2012,RECSERV30603207,1957,1227.75,AIR SOCIAL CARE,290913,978094760,Corporate Services,External Agency Staff,4321,BUSN
18,Devon County Council,30/11/2012,RECSERV30603208,1958,1061.3,AIR SOCIAL CARE,290913,978094760,Corporate Services,External Agency Staff,4321,BUSN
18,Devon County Council,30/11/2012,RECSERV30603209,1959,538.5,AIR SOCIAL CARE,290913,978094760,Corporate Services,External Agency Staff,4321,BUSN
18,Devon County Council,30/11/2012,RECSERV30603210,1960,1189.4,AIR SOCIAL CARE,290913,978094760,Corporate Services,External Agency Staff,4321,BUSN
18,Devon County Council,28/11/2012,CFSUPP30171562,REDACTED UNDER DP ACT,1202.92,ALABARE CHRISTIAN CARE CENTRES,226086,,People Services,Accomodation Based Services (3rd),5707,B
18,Devon County Council,14/11/2012,CFADRES30070653,REDACTED UNDER DP ACT,13528.06,ALBAN HOUSE,87208,,People Services,Care Spot - Private (3rd),5701,B
18,Devon County Council,28/11/2012,CFADRES30071336,REDACTED UNDER DP ACT,13528.06,ALBAN HOUSE,87208,,People Services,Care Spot - Private (3rd),5701,B
18,Devon County Council,16/11/2012,HIGHWAYS30501012,175/043,495,ALDERCROSS LTD,144359,817653316,Place Services,Conference & Seminar Fees,4702,LTD
18,Devon County Council,01/11/2012,DSSCITT30231966,DSTTG-Nov295413,500,ALDERSON,295413,,People Services,Discretionary Awards,6101,INDV
18,Devon County Council,27/11/2012,EARLYRS30234179,Aut 2 84007,10143.5,ALL SAINTS PRE SCHOOL (EXMOUTH),65861,,People Services,Payments to Vol Providers (3rd),5501,EY
18,Devon County Council,27/11/2012,EARLYRS30234180,Aut 2 84008,700.66,ALL SAINTS WISE OWLS,29038,,People Services,Payments to Vol Providers (3rd),5501,EY
18,Devon County Council,14/11/2012,CFADRES30070860,REDACTED UNDER DP ACT,2509.32,ALLIED BACK-UP PROJECT,90897,,People Services,Care Spot - Private (3rd),5701,B
18,Devon County Council,28/11/2012,CFADRES30071542,REDACTED UNDER DP ACT,2509.32,ALLIED BACK-UP PROJECT,90897,,People Services,Care Spot - Private (3rd),5701,B
18,Devon County Council,19/11/2012,CFADDOM30047003,REDACTED UNDER DP ACT,5268.49,ALLIED HEALTHCARE GROUP,185421,,People Services,Care Spot - Private (3rd),5701,BUSN
18,Devon County Council,19/11/2012,CFADDOM30046984,REDACTED UNDER DP ACT,14566.89,ALLIED HEALTHCARE GROUP LTD,91726,488771383,People Services,Care Block - Private (3rd),5702,LTD
18,Devon County Council,12/11/2012,GMHFM30485714,1019265796,1084.42,ALLSTAR BUSINESS SOLUTIONS LTD,42619,224235985,Corporate Services,Establishments Vehicles Costs (inc maint,3002,LTD
18,Devon County Council,27/11/2012,GMHFM30485790,1019560422,1053.13,ALLSTAR BUSINESS SOLUTIONS LTD,42619,224235985,Corporate Services,Establishments Vehicles Costs (inc maint,3002,LTD
18,Devon County Council,14/11/2012,CFADRES30070763,REDACTED UNDER DP ACT,6957.6,ALPHINGTON LODGE RESIDENTIAL HME,89941,,People Services,Care Spot - Private (3rd),5701,B
18,Devon County Council,28/11/2012,CFADRES30071445,REDACTED UNDER DP ACT,7117.6,ALPHINGTON LODGE RESIDENTIAL HME,89941,,People Services,Care Spot - Private (3rd),5701,B
18,Devon County Council,27/11/2012,EARLYRS30234181,Aut 2 84009,5705.31,ALPHINGTON PRE SCHOOL,35057,,People Services,Payments to Vol Providers (3rd),5501,EY
18,Devon County Council,14/11/2012,CFADRES30070793,REDACTED UNDER DP ACT,1880.56,ALPINE LODGE RCH LTD,90255,,People Services,Care Spot - Private (3rd),5701,B
18,Devon County Council,28/11/2012,CFADRES30071475,REDACTED UNDER DP ACT,2823.68,ALPINE LODGE RCH LTD,90255,,People Services,Care Spot - Private (3rd),5701,B
18,Devon County Council,14/11/2012,CFADRES30071029,REDACTED UNDER DP ACT,7218.72,ALSTON COURT_RESIDENTIAL HOME,182686,,People Services,Care Spot - Private (3rd),5701,BUSN
18,Devon County Council,28/11/2012,CFADRES30071708,REDACTED UNDER DP ACT,7218.72,ALSTON COURT_RESIDENTIAL HOME,182686,,People Services,Care Spot - Private (3rd),5701,BUSN
18,Devon County Council,15/11/2012,HIGHWAYS30500251,29145,1158,ALWAYS CLEANSING LTD,4085,540464070,Place Services,Water Charges,2361,LTD
18,Devon County Council,12/11/2012,ACLCENT30002626,1330,959,AMBER FOUNDATION THE,117951,,Place Services,Other Fees & Charges (Expenditure),4311,BUSN
18,Devon County Council,13/11/2012,CFCLEAV30117302,REDACTED UNDER DP ACT,1140,AMBER FOUNDATION THE,117951,,People Services,Cl-Supported Accom-Rel Child (3rd),5771,BUSN
18,Devon County Council,20/11/2012,CFCLEAV30117496,REDACTED UNDER DP ACT,1140,AMBER FOUNDATION THE,117951,,People Services,Cl-Supported Accom-Rel Child (3rd),5771,BUSN
18,Devon County Council,12/11/2012,DHRP30223855,87405,1825,AMPLIVOX LTD,108418,306213504,Corporate Services,Training inc Travel Costs,1802,LTD
18,Devon County Council,28/11/2012,CFSUPP30171483,REDACTED UNDER DP ACT,841.78,ANCHOR TRUST (SUTTON),118069,,People Services,Accomodation Based Services (3rd),5707,BUSN
18,Devon County Council,01/11/2012,HIGHWAYS30499067,AB339,650,ANDREI BURTON EVENTS LTD,289452,,Place Services,Professional Fees,4306,BUSN
18,Devon County Council,05/11/2012,CFADDOM30046268,REDACTED UNDER DP ACT,885.36,ANGEL HOMECARE,210685,,People Services,Care Spot - Private (3rd),5701,B
18,Devon County Council,05/11/2012,CFADDOM30046272,REDACTED UNDER DP ACT,571.2,ANGEL HOMECARE,210685,,People Services,Care Spot - Private (3rd),5701,B
18,Devon County Council,05/11/2012,CFADDOM30046275,REDACTED UNDER DP ACT,2570.4,ANGEL HOMECARE,210685,,People Services,Care Spot - Private (3rd),5701,B
18,Devon County Council,05/11/2012,CFADDOM30046277,REDACTED UNDER DP ACT,742.56,ANGEL HOMECARE,210685,,People Services,Care Spot - Private (3rd),5701,B
18,Devon County Council,05/11/2012,CFADDOM30046278,REDACTED UNDER DP ACT,899.64,ANGEL HOMECARE,210685,,People Services,Care Spot - Private (3rd),5701,B
18,Devon County Council,05/11/2012,CFADDOM30046280,REDACTED UNDER DP ACT,742.56,ANGEL HOMECARE,210685,,People Services,Care Spot - Private (3rd),5701,B
18,Devon County Council,05/11/2012,CFADDOM30046281,REDACTED UNDER DP ACT,599.76,ANGEL HOMECARE,210685,,People Services,Care Spot - Private (3rd),5701,B
18,Devon County Council,05/11/2012,CFADDOM30046283,REDACTED UNDER DP ACT,671.16,ANGEL HOMECARE,210685,,People Services,Care Spot - Private (3rd),5701,B
18,Devon County Council,05/11/2012,CFADDOM30046292,REDACTED UNDER DP ACT,797.44,ANGEL HOMECARE,210685,,People Services,Care Spot - Private (3rd),5701,B
18,Devon County Council,05/11/2012,CFADDOM30046294,REDACTED UNDER DP ACT,1253.12,ANGEL HOMECARE,210685,,People Services,Care Spot - Private (3rd),5701,B
18,Devon County Council,05/11/2012,CFADDOM30046295,REDACTED UNDER DP ACT,790.32,ANGEL HOMECARE,210685,,People Services,Care Spot - Private (3rd),5701,B
18,Devon County Council,05/11/2012,CFADDOM30046302,REDACTED UNDER DP ACT,699.72,ANGEL HOMECARE,210685,,People Services,Care Spot - Private (3rd),5701,B
18,Devon County Council,21/11/2012,CFADDOM30047233,REDACTED UNDER DP ACT,885.36,ANGEL HOMECARE,210685,,People Services,Care Spot - Private (3rd),5701,B
18,Devon County Council,21/11/2012,CFADDOM30047236,REDACTED UNDER DP ACT,571.2,ANGEL HOMECARE,210685,,People Services,Care Spot - Private (3rd),5701,B
18,Devon County Council,21/11/2012,CFADDOM30047239,REDACTED UNDER DP ACT,2570.4,ANGEL HOMECARE,210685,,People Services,Care Spot - Private (3rd),5701,B
18,Devon County Council,21/11/2012,CFADDOM30047241,REDACTED UNDER DP ACT,756.84,ANGEL HOMECARE,210685,,People Services,Care Spot - Private (3rd),5701,B
18,Devon County Council,21/11/2012,CFADDOM30047242,REDACTED UNDER DP ACT,899.64,ANGEL HOMECARE,210685,,People Services,Care Spot - Private (3rd),5701,B
18,Devon County Council,21/11/2012,CFADDOM30047243,REDACTED UNDER DP ACT,771.12,ANGEL HOMECARE,210685,,People Services,Care Spot - Private (3rd),5701,B
18,Devon County Council,21/11/2012,CFADDOM30047244,REDACTED UNDER DP ACT,599.76,ANGEL HOMECARE,210685,,People Services,Care Spot - Private (3rd),5701,B
18,Devon County Council,21/11/2012,CFADDOM30047246,REDACTED UNDER DP ACT,549.78,ANGEL HOMECARE,210685,,People Services,Care Spot - Private (3rd),5701,B
18,Devon County Council,21/11/2012,CFADDOM30047255,REDACTED UNDER DP ACT,797.44,ANGEL HOMECARE,210685,,People Services,Care Spot - Private (3rd),5701,B
18,Devon County Council,21/11/2012,CFADDOM30047257,REDACTED UNDER DP ACT,1253.12,ANGEL HOMECARE,210685,,People Services,Care Spot - Private (3rd),5701,B
18,Devon County Council,21/11/2012,CFADDOM30047258,REDACTED UNDER DP ACT,797.44,ANGEL HOMECARE,210685,,People Services,Care Spot - Private (3rd),5701,B
18,Devon County Council,21/11/2012,CFADDOM30047265,REDACTED UNDER DP ACT,721.14,ANGEL HOMECARE,210685,,People Services,Care Spot - Private (3rd),5701,B
18,Devon County Council,14/11/2012,CFADRES30070665,REDACTED UNDER DP ACT,4790.4,ANNING BJ,87559,,People Services,Care Spot - Private (3rd),5701,B
18,Devon County Council,28/11/2012,CFADRES30071348,REDACTED UNDER DP ACT,4790.4,ANNING BJ,87559,,People Services,Care Spot - Private (3rd),5701,B
18,Devon County Council,09/11/2012,DPSCITT30230648,BURS02,900,ANSELL,295630,,People Services,Miscellaneous expenditure,4901,INDV
18,Devon County Council,08/11/2012,FINTBAD30468147,9000915720/1,5258.61,APETITO LTD,27874,138176066,People Services,Meals on Wheels - Private (3rd),5761,LTD
18,Devon County Council,08/11/2012,FINTBAD30468255,10043120,27652.96,APETITO LTD,27874,138176066,People Services,Meals on Wheels - Private (3rd),5761,LTD
18,Devon County Council,08/11/2012,FINTBAD17345891,9000915720/1,-6570,APETITO LTD,27874,138176066,People Services,Sale of Meals / Food,9301,LTD
18,Devon County Council,16/11/2012,CYPIHRES30191201,9791,819.38,APPLE APPOINTMENTS LTD,72784,787070110,People Services,External Agency Staff,4321,LTD
18,Devon County Council,23/11/2012,CYPIHRES30191240,9810,961.68,APPLE APPOINTMENTS LTD,72784,787070110,People Services,External Agency Staff,4321,LTD
18,Devon County Council,30/11/2012,CYPIHRES30191365,9826,437.01,APPLE APPOINTMENTS LTD,72784,787070110,People Services,External Agency Staff,4321,LTD
18,Devon County Council,02/11/2012,RECSERV30602981,9788,1371.51,APPLE APPOINTMENTS LTD,72784,787070110,Corporate Services,External Agency Staff,4321,LTD
18,Devon County Council,19/11/2012,RECSERV30603063,9805,1131.94,APPLE APPOINTMENTS LTD,72784,787070110,Corporate Services,External Agency Staff,4321,LTD
18,Devon County Council,26/11/2012,RECSERV30603076,9824,837.62,APPLE APPOINTMENTS LTD,72784,787070110,Corporate Services,External Agency Staff,4321,LTD
18,Devon County Council,26/11/2012,RECSERV30603083,9839,1246.48,APPLE APPOINTMENTS LTD,72784,787070110,Corporate Services,External Agency Staff,4321,LTD
18,Devon County Council,27/11/2012,RECSERV30603160,9854,2303.31,APPLE APPOINTMENTS LTD,72784,787070110,Corporate Services,External Agency Staff,4321,LTD
18,Devon County Council,27/11/2012,EARLYRS30234182,Aut 2 84010,1882.77,APPLE BLOSSOM DAY NURSERY LTD,76713,,People Services,Payments to Vol Providers (3rd),5501,LTD
18,Devon County Council,27/11/2012,EARLYRS30234183,Aut 2 84011,3383.44,APPLE TREE PRE-SCHOOL,39304,,People Services,Payments to Vol Providers (3rd),5501,EY
18,Devon County Council,13/11/2012,HIGHWAYS30499451,INV020912,7000,ARBORICULTURAL ASSOCIATION LTD,280057,,Place Services,Training inc Travel Costs,1802,LTD
18,Devon County Council,02/11/2012,HIGHWAYS30499937,81912419,1828.8,ARCHANT COMMUNITY MEDIA LTD,6643,745983091,Place Services,Advertising,4202,LTD
18,Devon County Council,12/11/2012,HIGHWAYS30499941,81918855,2587.68,ARCHANT COMMUNITY MEDIA LTD,6643,745983091,Place Services,Advertising,4202,LTD
18,Devon County Council,02/11/2012,HIGHWAYS30499943,81915303,2195.64,ARCHANT COMMUNITY MEDIA LTD,6643,745983091,Place Services,Advertising,4202,LTD
18,Devon County Council,27/11/2012,HIGHWAYS30501544,81926674,1825.56,ARCHANT COMMUNITY MEDIA LTD,6643,745983091,Place Services,Advertising,4202,LTD
18,Devon County Council,22/11/2012,HIGHWAYS30501545,81923905,1995.84,ARCHANT COMMUNITY MEDIA LTD,6643,745983091,Place Services,Advertising,4202,LTD
18,Devon County Council,20/11/2012,CYPSWLOC30208054,14993,1184.3,ARGENT RECRUITMENT,244009,,People Services,Incidental costs Fostered Children (3rd),5715,BUSN
18,Devon County Council,01/11/2012,YOUTHEST30655152,976631,506,ARGOS BUSINESS SOLUTIONS,149601,145899025,People Services,Materials & Consumables,4003,BUSN
18,Devon County Council,22/11/2012,CYPSWLOC30209914,4542438 RI,576.36,ARGOS LTD (EXETER),15451,,People Services,Cl-Relevant Child-Other Costs (3rd),5773,BUSN
18,Devon County Council,22/11/2012,CYPSWLOC30209920,4532033 RI,621.12,ARGOS LTD (PLYMOUTH),119752,,People Services,Cl-Relevant Child-Other Costs (3rd),5773,LTD
18,Devon County Council,28/11/2012,CFADRES30071981,REDACTED UNDER DP ACT,2037.88,ARGYLE CARE GRP TA FERNLEA CARE,298511,,People Services,Care Spot - Private (3rd),5701,B
18,Devon County Council,14/11/2012,CFADRES30071256,REDACTED UNDER DP ACT,793,ARGYLE PARK NH/MARK&LUKE GILBERT,289098,,People Services,Care Spot - Private (3rd),5701,B
18,Devon County Council,28/11/2012,CFADRES30071932,REDACTED UNDER DP ACT,793,ARGYLE PARK NH/MARK&LUKE GILBERT,289098,,People Services,Care Spot - Private (3rd),5701,B
18,Devon County Council,02/11/2012,FINNDAD30451097,914918,608,ARJO LTD,51133,800643761,People Services,Minor Improvements,2261,LTD
18,Devon County Council,28/11/2012,FINNDAD30451576,671025,1003.6,ARJO LTD,51133,800643761,People Services,Minor Improvements,2261,LTD
18,Devon County Council,20/11/2012,FNEAMHLD30471114,685015,724.56,ARJO LTD,51133,800643761,People Services,Minor Improvements,2261,LTD
18,Devon County Council,27/11/2012,EARLYRS30234185,Aut 2 84013,719.66,ARK IN THE PARK,105985,,People Services,Payments to Vol Providers (3rd),5501,BUSN
18,Devon County Council,28/11/2012,CFADDAY30023324,REDACTED UNDER DP ACT,938.88,ARK NURSING & CARE AGENCY,122068,,People Services,Individualised Support - Private (3rd),5706,BUSN
18,Devon County Council,26/11/2012,RECSERV30603123,20743,598.63,ARK NURSING & CARE AGENCY,122068,,Corporate Services,External Agency Staff,4321,BUSN
18,Devon County Council,14/11/2012,CFADDAY30022749,REDACTED UNDER DP ACT,2211.2,AROHA HOUSE LIMITED,216752,,People Services,Individualised Support - Private (3rd),5706,B
18,Devon County Council,14/11/2012,CFADDAY30022750,REDACTED UNDER DP ACT,2211.2,AROHA HOUSE LIMITED,216752,,People Services,Individualised Support - Private (3rd),5706,B
18,Devon County Council,14/11/2012,CFADDAY30022751,REDACTED UNDER DP ACT,2211.2,AROHA HOUSE LIMITED,216752,,People Services,Individualised Support - Private (3rd),5706,B
18,Devon County Council,14/11/2012,CFADDAY30022752,REDACTED UNDER DP ACT,2211.2,AROHA HOUSE LIMITED,216752,,People Services,Individualised Support - Private (3rd),5706,B
18,Devon County Council,14/11/2012,CFADDAY30022753,REDACTED UNDER DP ACT,2211.2,AROHA HOUSE LIMITED,216752,,People Services,Care Spot - Private (3rd),5701,B
18,Devon County Council,14/11/2012,FINCWSEN30436687,EX18/072,500,ARTHUR ROBERTS HOUSE AMENITIES,135892,,People Services,Miscellaneous expenditure,4901,BUSN
18,Devon County Council,14/11/2012,CFADRES30070712,REDACTED UNDER DP ACT,8289.98,ARUNDEL HOUSE,89227,,People Services,Care Spot - Private (3rd),5701,B
18,Devon County Council,14/11/2012,CFADRES30071068,REDACTED UNDER DP ACT,4488.52,ARUNDEL HOUSE,201385,,People Services,Care Spot - Private (3rd),5701,B
18,Devon County Council,28/11/2012,CFADRES30071395,REDACTED UNDER DP ACT,8289.98,ARUNDEL HOUSE,89227,,People Services,Care Spot - Private (3rd),5701,B
18,Devon County Council,28/11/2012,CFADRES30071745,REDACTED UNDER DP ACT,4488.52,ARUNDEL HOUSE,201385,,People Services,Care Spot - Private (3rd),5701,B
18,Devon County Council,06/11/2012,NPSWI30564640,1633,1633,ASBESTOS MANAGEMENT SPECIALIST,172362,742335056,People Services,Service Term Contracts,2201,LTD
18,Devon County Council,15/11/2012,NPSWI30564790,13547,499.5,ASBESTOS MANAGEMENT SPECIALIST,172362,742335056,People Services,Building Mtce Works - unforseen,2101,LTD
18,Devon County Council,22/11/2012,NPSWI30564909,13408,4174,ASBESTOS MANAGEMENT SPECIALIST,172362,742335056,Place Services,Corporate Surveys - Education,2104,LTD
18,Devon County Council,23/11/2012,NPSWI30564933,13574,719.5,ASBESTOS MANAGEMENT SPECIALIST,172362,742335056,Corporate Services,Building Mtce Works - programmed,2102,LTD
18,Devon County Council,23/11/2012,NPSWI30564934,13563,657.5,ASBESTOS MANAGEMENT SPECIALIST,172362,742335056,Corporate Services,Other Building Maintenance,2251,LTD
18,Devon County Council,14/11/2012,CFADRES30071224,REDACTED UNDER DP ACT,882,ASHCROFT HOUSE LEEDS,280636,,People Services,Care Spot - Private (3rd),5701,B
18,Devon County Council,28/11/2012,CFADRES30071902,REDACTED UNDER DP ACT,882,ASHCROFT HOUSE LEEDS,280636,,People Services,Care Spot - Private (3rd),5701,B
18,Devon County Council,14/11/2012,CFADRES30070661,REDACTED UNDER DP ACT,19359.14,ASHDOWN CARE LTD,87517,,People Services,Care Spot - Private (3rd),5701,B
18,Devon County Council,14/11/2012,CFADRES30071230,REDACTED UNDER DP ACT,1600,ASHEBOROUGH HOUSE CARE CENTRE,281379,,People Services,Care Spot - Private (3rd),5701,B
18,Devon County Council,28/11/2012,CFADRES30071908,REDACTED UNDER DP ACT,1600,ASHEBOROUGH HOUSE CARE CENTRE,281379,,People Services,Care Spot - Private (3rd),5701,B
18,Devon County Council,14/11/2012,CFADRES30071011,REDACTED UNDER DP ACT,12641.1,ASHFIELD RESIDENTIAL HOME,173331,,People Services,Care Spot - Private (3rd),5701,B
18,Devon County Council,28/11/2012,CFADRES30071691,REDACTED UNDER DP ACT,14325.39,ASHFIELD RESIDENTIAL HOME,173331,,People Services,Care Spot - Private (3rd),5701,B
18,Devon County Council,14/11/2012,CFADRES30070696,REDACTED UNDER DP ACT,2377.43,ASHLEIGH MANOR,89097,,People Services,Care Spot - Private (3rd),5701,B
18,Devon County Council,28/11/2012,CFADRES30071379,REDACTED UNDER DP ACT,1766,ASHLEIGH MANOR,89097,,People Services,Care Spot - Private (3rd),5701,B
18,Devon County Council,09/11/2012,NPSWI30564700,iF4336,1794.63,ASPECT WINDOWS (WESTERN) LTD,24412,430415788,Corporate Services,Building Mtce Works - programmed,2102,LTD
18,Devon County Council,09/11/2012,NPSWI30564701,iF4940,1786,ASPECT WINDOWS (WESTERN) LTD,24412,430415788,Corporate Services,Building Mtce Works - programmed,2102,LTD
18,Devon County Council,14/11/2012,CFADRES30071041,REDACTED UNDER DP ACT,1482.6,ASPEN COURT NURSING HOME,189649,,People Services,Care Spot - Private (3rd),5701,BUSN
18,Devon County Council,28/11/2012,CFADRES30071720,REDACTED UNDER DP ACT,1482.6,ASPEN COURT NURSING HOME,189649,,People Services,Care Spot - Private (3rd),5701,BUSN
18,Devon County Council,14/11/2012,CFADRES30070818,REDACTED UNDER DP ACT,2880.34,ASSISSI COMMUNITY CARE,90460,,People Services,Care Spot - Private (3rd),5701,B
18,Devon County Council,28/11/2012,CFADRES30071500,REDACTED UNDER DP ACT,2880.34,ASSISSI COMMUNITY CARE,90460,,People Services,Care Spot - Private (3rd),5701,B
18,Devon County Council,05/11/2012,CFADDAY30022127,REDACTED UNDER DP ACT,1288,ASSISTED LIVING SOUTH WEST,231671,,People Services,Individualised Support - Private (3rd),5706,B
18,Devon County Council,05/11/2012,CFADDAY30022129,REDACTED UNDER DP ACT,1288,ASSISTED LIVING SOUTH WEST,231671,,People Services,Individualised Support - Private (3rd),5706,B
18,Devon County Council,05/11/2012,CFADDAY30022130,REDACTED UNDER DP ACT,2661,ASSISTED LIVING SOUTH WEST,231671,,People Services,Individualised Support - Private (3rd),5706,B
18,Devon County Council,05/11/2012,CFADDAY30022131,REDACTED UNDER DP ACT,702,ASSISTED LIVING SOUTH WEST,231671,,People Services,Individualised Support - Private (3rd),5706,B
18,Devon County Council,05/11/2012,CFADDAY30022137,REDACTED UNDER DP ACT,2471.56,ASSISTED LIVING SOUTH WEST,231671,,People Services,Individualised Support - Private (3rd),5706,B
18,Devon County Council,07/11/2012,CFADDAY30022281,REDACTED UNDER DP ACT,2517,ASSISTED LIVING SOUTH WEST,231671,,People Services,Individualised Support - Private (3rd),5706,B
18,Devon County Council,12/11/2012,CFADDAY30022413,REDACTED UNDER DP ACT,702,ASSISTED LIVING SOUTH WEST,231671,,People Services,Individualised Support - Private (3rd),5706,B
18,Devon County Council,12/11/2012,CFADDAY30022414,REDACTED UNDER DP ACT,5565.84,ASSISTED LIVING SOUTH WEST,231671,,People Services,Individualised Support - Private (3rd),5706,B
18,Devon County Council,12/11/2012,CFADDAY30022415,REDACTED UNDER DP ACT,2471.56,ASSISTED LIVING SOUTH WEST,231671,,People Services,Individualised Support - Private (3rd),5706,B
18,Devon County Council,14/11/2012,CFADDAY30022759,REDACTED UNDER DP ACT,1464,ASSISTED LIVING SOUTH WEST,231671,,People Services,Individualised Support - Private (3rd),5706,B
18,Devon County Council,14/11/2012,CFADDAY30022760,REDACTED UNDER DP ACT,2733,ASSISTED LIVING SOUTH WEST,231671,,People Services,Individualised Support - Private (3rd),5706,B
18,Devon County Council,14/11/2012,CFADDAY30022761,REDACTED UNDER DP ACT,2976,ASSISTED LIVING SOUTH WEST,231671,,People Services,Individualised Support - Private (3rd),5706,B
18,Devon County Council,14/11/2012,CFADDAY30022764,REDACTED UNDER DP ACT,3650.96,ASSISTED LIVING SOUTH WEST,231671,,People Services,Individualised Support - Private (3rd),5706,B
18,Devon County Council,14/11/2012,CFADDAY30022765,REDACTED UNDER DP ACT,3536,ASSISTED LIVING SOUTH WEST,231671,,People Services,Individualised Support - Private (3rd),5706,B
18,Devon County Council,14/11/2012,CFADDAY30022766,REDACTED UNDER DP ACT,2970,ASSISTED LIVING SOUTH WEST,231671,,People Services,Individualised Support - Private (3rd),5706,B
18,Devon County Council,14/11/2012,CFADDAY30022767,REDACTED UNDER DP ACT,1681,ASSISTED LIVING SOUTH WEST,231671,,People Services,Individualised Support - Private (3rd),5706,B
18,Devon County Council,14/11/2012,CFADDAY30022770,REDACTED UNDER DP ACT,3226.96,ASSISTED LIVING SOUTH WEST,231671,,People Services,Individualised Support - Private (3rd),5706,B
18,Devon County Council,19/11/2012,CFADDAY30022863,REDACTED UNDER DP ACT,4254.43,ASSISTED LIVING SOUTH WEST,231671,,People Services,Individualised Support - Private (3rd),5706,B
18,Devon County Council,19/11/2012,CFADDAY30022864,REDACTED UNDER DP ACT,1350,ASSISTED LIVING SOUTH WEST,231671,,People Services,Individualised Support - Private (3rd),5706,B
18,Devon County Council,19/11/2012,CFADDAY30022865,REDACTED UNDER DP ACT,3264,ASSISTED LIVING SOUTH WEST,231671,,People Services,Individualised Support - Private (3rd),5706,B
18,Devon County Council,19/11/2012,CFADDAY30022866,REDACTED UNDER DP ACT,3264,ASSISTED LIVING SOUTH WEST,231671,,People Services,Individualised Support - Private (3rd),5706,B
18,Devon County Council,19/11/2012,CFADDAY30022867,REDACTED UNDER DP ACT,3264,ASSISTED LIVING SOUTH WEST,231671,,People Services,Individualised Support - Private (3rd),5706,B
18,Devon County Council,19/11/2012,CFADDAY30022868,REDACTED UNDER DP ACT,2828,ASSISTED LIVING SOUTH WEST,231671,,People Services,Individualised Support - Private (3rd),5706,B
18,Devon County Council,21/11/2012,CFADDAY30023055,REDACTED UNDER DP ACT,972,ASSISTED LIVING SOUTH WEST,231671,,People Services,Individualised Support - Private (3rd),5706,B
18,Devon County Council,21/11/2012,CFADDAY30023056,REDACTED UNDER DP ACT,4592,ASSISTED LIVING SOUTH WEST,231671,,People Services,Individualised Support - Private (3rd),5706,B
18,Devon County Council,21/11/2012,CFADDAY30023057,REDACTED UNDER DP ACT,2084,ASSISTED LIVING SOUTH WEST,231671,,People Services,Individualised Support - Private (3rd),5706,B
18,Devon County Council,21/11/2012,CFADDAY30023058,REDACTED UNDER DP ACT,1660,ASSISTED LIVING SOUTH WEST,231671,,People Services,Individualised Support - Private (3rd),5706,B
18,Devon County Council,21/11/2012,CFADDAY30023059,REDACTED UNDER DP ACT,3611,ASSISTED LIVING SOUTH WEST,231671,,People Services,Individualised Support - Private (3rd),5706,B
18,Devon County Council,28/11/2012,CFADDAY30023356,REDACTED UNDER DP ACT,3226.96,ASSISTED LIVING SOUTH WEST,231671,,People Services,Individualised Support - Private (3rd),5706,B
18,Devon County Council,28/11/2012,CFADDAY30023357,REDACTED UNDER DP ACT,3226.96,ASSISTED LIVING SOUTH WEST,231671,,People Services,Individualised Support - Private (3rd),5706,B
18,Devon County Council,28/11/2012,CFADDAY30023358,REDACTED UNDER DP ACT,3226.96,ASSISTED LIVING SOUTH WEST,231671,,People Services,Individualised Support - Private (3rd),5706,B
18,Devon County Council,12/11/2012,CFADDOM30046685,REDACTED UNDER DP ACT,2538,ASSISTED LIVING SOUTH WEST,231671,,People Services,Care Spot - Private (3rd),5701,B
18,Devon County Council,12/11/2012,CFADDOM30046686,REDACTED UNDER DP ACT,3496,ASSISTED LIVING SOUTH WEST,231671,,People Services,Care Spot - Private (3rd),5701,B
18,Devon County Council,19/11/2012,CFADDOM30047083,REDACTED UNDER DP ACT,756,ASSISTED LIVING SOUTH WEST,231671,,People Services,Care Spot - Private (3rd),5701,B
18,Devon County Council,19/11/2012,CFADDOM30047084,REDACTED UNDER DP ACT,2817,ASSISTED LIVING SOUTH WEST,231671,,People Services,Care Spot - Private (3rd),5701,B
18,Devon County Council,19/11/2012,CFADDOM30047085,REDACTED UNDER DP ACT,1159.07,ASSISTED LIVING SOUTH WEST,231671,,People Services,Care Spot - Private (3rd),5701,B
18,Devon County Council,19/11/2012,CFADDOM30047086,REDACTED UNDER DP ACT,1134,ASSISTED LIVING SOUTH WEST,231671,,People Services,Care Spot - Private (3rd),5701,B
18,Devon County Council,19/11/2012,CFADDOM30047087,REDACTED UNDER DP ACT,1134,ASSISTED LIVING SOUTH WEST,231671,,People Services,Care Spot - Private (3rd),5701,B
18,Devon County Council,19/11/2012,CFADDOM30047088,REDACTED UNDER DP ACT,2538,ASSISTED LIVING SOUTH WEST,231671,,People Services,Care Spot - Private (3rd),5701,B
18,Devon County Council,19/11/2012,CFADDOM30047089,REDACTED UNDER DP ACT,3496,ASSISTED LIVING SOUTH WEST,231671,,People Services,Care Spot - Private (3rd),5701,B
18,Devon County Council,21/11/2012,CFADDOM30047327,REDACTED UNDER DP ACT,2268,ASSISTED LIVING SOUTH WEST,231671,,People Services,Care Spot - Private (3rd),5701,B
18,Devon County Council,20/11/2012,FNEXMHLD30473021,001 HRICHARDS,1077.33,ASSISTED LIVING SOUTH WEST,231671,,People Services,Care Respite - Private (3rd),5703,B
18,Devon County Council,19/11/2012,CFADDAY17331874,REDACTED UNDER DP ACT,-2418.43,ASSISTED LIVING SOUTH WEST,231671,,People Services,Individualised Support - Private (3rd),5706,B
18,Devon County Council,19/11/2012,CFADDOM17332119,REDACTED UNDER DP ACT,-1623.14,ASSISTED LIVING SOUTH WEST,231671,,People Services,Care Spot - Private (3rd),5701,B
18,Devon County Council,09/11/2012,HIGHWAYS30499912,102834,527,ASSOCIATED DRILLING SERVICES,19628,,Place Services,Main / Term Contractor,4301,BUSN
18,Devon County Council,05/11/2012,HIGHWAYS30500050,102834,460,ASSOCIATED DRILLING SERVICES,19628,,Place Services,Professional Fees,4306,BUSN
18,Devon County Council,14/11/2012,HIGHWAYS30500832,102937,920,ASSOCIATED DRILLING SERVICES,19628,,Place Services,Main / Term Contractor,4301,BUSN
18,Devon County Council,14/11/2012,CFADRES30071131,REDACTED UNDER DP ACT,1012.8,ASTOR HALL,231831,,People Services,Care Spot - Private (3rd),5701,B
18,Devon County Council,28/11/2012,CFADRES30071808,REDACTED UNDER DP ACT,1012.8,ASTOR HALL,231831,,People Services,Care Spot - Private (3rd),5701,B
18,Devon County Council,23/11/2012,LEGAL30546992,34094,650.5,ASTRA PRINTING GROUP,67840,429148245,Corporate Services,Printing & Design,4201,NDDP
18,Devon County Council,07/11/2012,CFADDAY30022265,REDACTED UNDER DP ACT,1092,ATLANTIC SUPPORT (DEVON) LTD,202818,,People Services,Individualised Support - Private (3rd),5706,B
18,Devon County Council,07/11/2012,CFADDAY30022266,REDACTED UNDER DP ACT,1155,ATLANTIC SUPPORT (DEVON) LTD,202818,,People Services,Individualised Support - Private (3rd),5706,B
18,Devon County Council,07/11/2012,CFADDAY30022267,REDACTED UNDER DP ACT,624,ATLANTIC SUPPORT (DEVON) LTD,202818,,People Services,Individualised Support - Private (3rd),5706,B
18,Devon County Council,07/11/2012,CFADDAY30022268,REDACTED UNDER DP ACT,1092,ATLANTIC SUPPORT (DEVON) LTD,202818,,People Services,Individualised Support - Private (3rd),5706,B
18,Devon County Council,07/11/2012,CFADDAY30022269,REDACTED UNDER DP ACT,577.48,ATLANTIC SUPPORT (DEVON) LTD,202818,,People Services,Individualised Support - Private (3rd),5706,B
18,Devon County Council,07/11/2012,CFADDAY30022270,REDACTED UNDER DP ACT,910,ATLANTIC SUPPORT (DEVON) LTD,202818,,People Services,Individualised Support - Private (3rd),5706,B
18,Devon County Council,07/11/2012,CFADDAY30022271,REDACTED UNDER DP ACT,1092,ATLANTIC SUPPORT (DEVON) LTD,202818,,People Services,Individualised Support - Private (3rd),5706,B
18,Devon County Council,07/11/2012,CFADDAY30022272,REDACTED UNDER DP ACT,577.48,ATLANTIC SUPPORT (DEVON) LTD,202818,,People Services,Individualised Support - Private (3rd),5706,B
18,Devon County Council,28/11/2012,CFADDAY30023344,REDACTED UNDER DP ACT,576,ATLANTIC SUPPORT (DEVON) LTD,202818,,People Services,Individualised Support - Private (3rd),5706,B
18,Devon County Council,28/11/2012,CFSUPP30171503,REDACTED UNDER DP ACT,923.2,ATLANTIC SUPPORT(SUPPPEOPLE ONLY,123298,,People Services,Accomodation Based Services (3rd),5707,LTD
18,Devon County Council,21/11/2012,NPSWI30564877,1121,500,ATLAS SW LTD,284518,116909016,Corporate Services,Building Mtce Works - unforseen,2101,LTD
18,Devon County Council,19/11/2012,DFS30218605,6186233,3447.5,AUDIT COMMISSION,5843,358077822,Corporate Services,Audit Costs,4402,WGA
18,Devon County Council,29/11/2012,DFS30218633,4043537,1875,AUDIT COMMISSION,5843,358077822,Corporate Services,Audit Costs,4402,WGA
18,Devon County Council,14/11/2012,CFADRES30070845,REDACTED UNDER DP ACT,4687.72,AUSTIN C-UNDER BARLEY CLOSE R HM,90702,,People Services,Care Spot - Private (3rd),5701,B
18,Devon County Council,15/11/2012,DDRC30217026,DTA0289,1500,AUTO ACADEMY,73072,,Place Services,Professional Fees,4306,BUSN
18,Devon County Council,14/11/2012,CFADRES30070953,REDACTED UNDER DP ACT,689.74,AVELAND COURT,142843,,People Services,Care Spot - Private (3rd),5701,B
18,Devon County Council,28/11/2012,CFADRES30071633,REDACTED UNDER DP ACT,689.74,AVELAND COURT,142843,,People Services,Care Spot - Private (3rd),5701,B
18,Devon County Council,14/11/2012,CFADRES30070927,REDACTED UNDER DP ACT,9682.38,AVENS CARE HOMES LTD,118327,,People Services,Care Spot - Private (3rd),5701,B
18,Devon County Council,28/11/2012,CFADRES30071607,REDACTED UNDER DP ACT,11841.65,AVENS CARE HOMES LTD,118327,,People Services,Care Spot - Private (3rd),5701,B
18,Devon County Council,14/11/2012,CFADRES30070987,REDACTED UNDER DP ACT,16359.16,AVENS CARE HOMES LTD,159705,,People Services,Care Spot - Private (3rd),5701,LTD
18,Devon County Council,28/11/2012,CFADRES30071667,REDACTED UNDER DP ACT,16002.82,AVENS CARE HOMES LTD,159705,,People Services,Care Spot - Private (3rd),5701,LTD
18,Devon County Council,14/11/2012,CFADRES30071231,REDACTED UNDER DP ACT,750,AVERLEA RESIDENTIAL HOME,282401,,People Services,Care Spot - Private (3rd),5701,B
18,Devon County Council,28/11/2012,CFADRES30071909,REDACTED UNDER DP ACT,750,AVERLEA RESIDENTIAL HOME,282401,,People Services,Care Spot - Private (3rd),5701,B
18,Devon County Council,27/11/2012,EARLYRS30234186,Aut 2 84014,3927.03,AVETON GIFFORD PRE SCHOOL,40437,,People Services,Payments to Vol Providers (3rd),5501,EY
18,Devon County Council,14/11/2012,CFADRES30071194,REDACTED UNDER DP ACT,952,AVON LEA NURSING HOME,267854,,People Services,Care Spot - Private (3rd),5701,B
18,Devon County Council,28/11/2012,CFADRES30071871,REDACTED UNDER DP ACT,952,AVON LEA NURSING HOME,267854,,People Services,Care Spot - Private (3rd),5701,B
18,Devon County Council,02/11/2012,YOUTHCTL30660436,53481,3894.12,AWARD SCHEME LTD THE,94546,512513979,People Services,Books & Publications,4006,LTD
18,Devon County Council,30/11/2012,YOUTHCTL30660469,54360,2834.67,AWARD SCHEME LTD THE,94546,512513979,People Services,Books & Publications,4006,LTD
18,Devon County Council,19/11/2012,CFADDOM30047004,REDACTED UNDER DP ACT,26281.2,AXE VALLEY CARE LTD,202776,,People Services,Care Spot - Private (3rd),5701,B
18,Devon County Council,19/11/2012,CFADDOM30047005,REDACTED UNDER DP ACT,20338.16,AXE VALLEY CARE LTD,202776,,People Services,Care Spot - Private (3rd),5701,B
18,Devon County Council,19/11/2012,CFADDOM30047006,REDACTED UNDER DP ACT,18337.23,AXE VALLEY CARE LTD,202776,,People Services,Care Spot - Private (3rd),5701,B
18,Devon County Council,19/11/2012,CFADDOM30047007,REDACTED UNDER DP ACT,10176.34,AXE VALLEY CARE LTD,202776,,People Services,Care Spot - Private (3rd),5701,B
18,Devon County Council,19/11/2012,CFADDOM30047078,REDACTED UNDER DP ACT,504,AXE VALLEY CARE LTD,202776,,People Services,Care Spot - Private (3rd),5701,B
18,Devon County Council,19/11/2012,CFADDOM30047079,REDACTED UNDER DP ACT,912.24,AXE VALLEY CARE LTD,202776,,People Services,Care Spot - Private (3rd),5701,B
18,Devon County Council,19/11/2012,CFADDOM30047080,REDACTED UNDER DP ACT,504,AXE VALLEY CARE LTD,202776,,People Services,Care Spot - Private (3rd),5701,B
18,Devon County Council,09/11/2012,FINMH30445249,17256,584.5,AXE VALLEY HOME CARE,247945,,People Services,Care Spot - Private (3rd),5701,BUSN
18,Devon County Council,09/11/2012,FINMH30445251,18058,570.5,AXE VALLEY HOME CARE,247945,,People Services,Care Spot - Private (3rd),5701,BUSN
18,Devon County Council,08/11/2012,TRCC30645507,NTCON TRVL NOV,4500,AXE VALLEY MINI TRAVEL,8510,,Place Services,Contracted Transport Services,3010,BUSN
18,Devon County Council,27/11/2012,EARLYRS30234188,Aut 2 84016,1447,AYLEN,118266,,People Services,Payments to Vol Providers (3rd),5501,INDV
18,Devon County Council,09/11/2012,DPSCITT30230649,BURS02,500,AYLMORE,271144,,People Services,Miscellaneous expenditure,4901,INDV
18,Devon County Council,27/11/2012,EARLYRS30234158,BH/MHTCC139,740,B & M REMOVALS,17432,825036742,People Services,Other Building Maintenance,2251,BUSN
18,Devon County Council,15/11/2012,NPSWI30564761,6225,2486,B & R HEATING LTD,71711,418160274,People Services,Other Building Maintenance,2251,BUSN
18,Devon County Council,23/11/2012,NPSWI30564923,6231,669.67,B & R HEATING LTD,71711,418160274,People Services,Building Mtce Works - unforseen,2101,BUSN
18,Devon County Council,28/11/2012,NPSWI30564970,6287,3162.28,B & R HEATING LTD,71711,418160274,Corporate Services,Building Mtce Works - programmed,2102,BUSN
18,Devon County Council,23/11/2012,FINSSCW30458042,12/EX/73613,705.6,B A A F REGISTERED CHARITY,89694,235376458,People Services,Books & Publications,4006,BUSN
18,Devon County Council,16/11/2012,DITS30229741,BT011566995,817.58,B T CONFERENCING,144360,245719348,Corporate Services,Other Communications costs,4521,BUSN
18,Devon County Council,07/11/2012,EDUC30243628,SI073974,470,BABCOCK 4S LTD,165119,,Corporate Services,Training inc Travel Costs,1802,LTD
18,Devon County Council,27/11/2012,EARLYRS30234161,LDPS100003395,1120,BABCOCK LEARNING & DEVELOPMENT,290161,905122759,People Services,Course / Exam Fees & Registration,4312,BUSN
18,Devon County Council,21/11/2012,LLCOKEHA30558642,LDPS100002669,1860,BABCOCK LEARNING & DEVELOPMENT,290161,905122759,People Services,Professional Fees,4306,BUSN
18,Devon County Council,09/11/2012,LLCTIVER30560428,LDPSI00003349,2329,BABCOCK LEARNING & DEVELOPMENT,290161,905122759,People Services,Management Consultancy,4303,BUSN
18,Devon County Council,14/11/2012,LLCTOTNS30561416,ST0008,1860,BABCOCK LEARNING & DEVELOPMENT,290161,905122759,People Services,Course / Exam Fees & Registration,4312,BUSN
18,Devon County Council,12/11/2012,FINEAAD30661790,397572,558.57,BAKER M J FOODSERVICE LIMITED,144252,723643639,People Services,Provisions / Food Purchases,4102,LTD
18,Devon County Council,27/11/2012,EARLYRS30234189,Aut 2 84017,1047.44,BAMBINOS DAY NURSERY,35484,,People Services,Payments to Vol Providers (3rd),5501,EY
18,Devon County Council,05/11/2012,YOUTHSTH20463123,LYN 2012_13,4000,BANK YOUTH PROJECT,33892,,People Services,Grants Paid,4802,BUSN
18,Devon County Council,21/11/2012,HIGHWAYS30501412,14/95,3001.13,BANKS CONSTRUCTION LTD,4406,665137624,Place Services,Other Contractors (not Main / Term),4302,BUSN
18,Devon County Council,26/11/2012,HIGHWAYS30501766,14/97,5786.97,BANKS CONSTRUCTION LTD,4406,665137624,Place Services,Other Contractors (not Main / Term),4302,BUSN
18,Devon County Council,14/11/2012,CFADRES30070808,REDACTED UNDER DP ACT,13321.76,BARCHESTER HEALTHCARE HOMES LTD,90416,,People Services,Care Respite - Private (3rd),5703,B
18,Devon County Council,28/11/2012,CFADRES30071490,REDACTED UNDER DP ACT,13840.84,BARCHESTER HEALTHCARE HOMES LTD,90416,,People Services,Care Spot - Private (3rd),5701,B
18,Devon County Council,21/11/2012,FINNDAD30451458,220030564,1632,BARCHESTER HEALTHCARE HOMES LTD,90416,,People Services,Care Spot - Private (3rd),5701,B
18,Devon County Council,14/11/2012,CFADRES30070666,REDACTED UNDER DP ACT,1282.6,BARCHESTER HEALTHCARE H-RE MANOR,87581,,People Services,Care Spot - Private (3rd),5701,B
18,Devon County Council,28/11/2012,CFADRES30071349,REDACTED UNDER DP ACT,1282.6,BARCHESTER HEALTHCARE H-RE MANOR,87581,,People Services,Care Spot - Private (3rd),5701,B
18,Devon County Council,14/11/2012,CFADRES30071093,REDACTED UNDER DP ACT,812.9,BARHAM HOUSE NURSING HOME,214737,,People Services,Care Spot - Private (3rd),5701,B
18,Devon County Council,28/11/2012,CFADRES30071770,REDACTED UNDER DP ACT,812.9,BARHAM HOUSE NURSING HOME,214737,,People Services,Care Spot - Private (3rd),5701,B
18,Devon County Council,01/11/2012,DSSCITT30231967,DSTTG-Nov295415,525,BARKER,295415,,People Services,Discretionary Awards,6101,INDV
18,Devon County Council,14/11/2012,CFADRES30070704,REDACTED UNDER DP ACT,1986.76,BARKER KI & GM T/A DAWN R C H,89142,,People Services,Care Spot - Private (3rd),5701,B
18,Devon County Council,28/11/2012,CFADRES30071387,REDACTED UNDER DP ACT,1986.76,BARKER KI & GM T/A DAWN R C H,89142,,People Services,Care Spot - Private (3rd),5701,B
18,Devon County Council,05/11/2012,CFADDAY30022082,REDACTED UNDER DP ACT,1564,BARKWELL B J(LYNDRIDGE CARE),120571,,People Services,Individualised Support - Private (3rd),5706,LTD
18,Devon County Council,05/11/2012,CFADDAY30022083,REDACTED UNDER DP ACT,1440,BARKWELL B J(LYNDRIDGE CARE),120571,,People Services,Individualised Support - Private (3rd),5706,LTD
18,Devon County Council,05/11/2012,CFADDAY30022084,REDACTED UNDER DP ACT,2197.2,BARKWELL B J(LYNDRIDGE CARE),120571,,People Services,Individualised Support - Private (3rd),5706,LTD
18,Devon County Council,05/11/2012,CFADDAY30022085,REDACTED UNDER DP ACT,1714.88,BARKWELL B J(LYNDRIDGE CARE),120571,,People Services,Individualised Support - Private (3rd),5706,LTD
18,Devon County Council,05/11/2012,CFADDAY30022086,REDACTED UNDER DP ACT,1360,BARKWELL B J(LYNDRIDGE CARE),120571,,People Services,Individualised Support - Private (3rd),5706,LTD
18,Devon County Council,05/11/2012,CFADDAY30022087,REDACTED UNDER DP ACT,1860,BARKWELL B J(LYNDRIDGE CARE),120571,,People Services,Individualised Support - Private (3rd),5706,LTD
18,Devon County Council,05/11/2012,CFADDAY30022088,REDACTED UNDER DP ACT,1293.6,BARKWELL B J(LYNDRIDGE CARE),120571,,People Services,Individualised Support - Private (3rd),5706,LTD
18,Devon County Council,05/11/2012,CFADDAY30022089,REDACTED UNDER DP ACT,3132,BARKWELL B J(LYNDRIDGE CARE),120571,,People Services,Individualised Support - Private (3rd),5706,LTD
18,Devon County Council,05/11/2012,CFADDAY30022090,REDACTED UNDER DP ACT,3480,BARKWELL B J(LYNDRIDGE CARE),120571,,People Services,Individualised Support - Private (3rd),5706,LTD
18,Devon County Council,05/11/2012,CFADDAY30022091,REDACTED UNDER DP ACT,2084,BARKWELL B J(LYNDRIDGE CARE),120571,,People Services,Individualised Support - Private (3rd),5706,LTD
18,Devon County Council,05/11/2012,CFADDAY30022093,REDACTED UNDER DP ACT,987,BARKWELL B J(LYNDRIDGE CARE),120571,,People Services,Individualised Support - Private (3rd),5706,LTD
18,Devon County Council,05/11/2012,CFADDAY30022094,REDACTED UNDER DP ACT,907.2,BARKWELL B J(LYNDRIDGE CARE),120571,,People Services,Individualised Support - Private (3rd),5706,LTD
18,Devon County Council,05/11/2012,CFADDAY30022096,REDACTED UNDER DP ACT,810.08,BARKWELL B J(LYNDRIDGE CARE),120571,,People Services,Individualised Support - Private (3rd),5706,LTD
18,Devon County Council,05/11/2012,CFADDAY30022097,REDACTED UNDER DP ACT,1496,BARKWELL B J(LYNDRIDGE CARE),120571,,People Services,Individualised Support - Private (3rd),5706,LTD
18,Devon County Council,05/11/2012,CFADDAY30022098,REDACTED UNDER DP ACT,1480,BARKWELL B J(LYNDRIDGE CARE),120571,,People Services,Individualised Support - Private (3rd),5706,LTD
18,Devon County Council,07/11/2012,CFADDAY30022244,REDACTED UNDER DP ACT,1440,BARKWELL B J(LYNDRIDGE CARE),120571,,People Services,Individualised Support - Private (3rd),5706,LTD
18,Devon County Council,07/11/2012,CFADDAY30022245,REDACTED UNDER DP ACT,1800,BARKWELL B J(LYNDRIDGE CARE),120571,,People Services,Individualised Support - Private (3rd),5706,LTD
18,Devon County Council,12/11/2012,CFADDAY30022396,REDACTED UNDER DP ACT,1038,BARKWELL B J(LYNDRIDGE CARE),120571,,People Services,Care Spot - Private (3rd),5701,LTD
18,Devon County Council,12/11/2012,CFADDAY30022397,REDACTED UNDER DP ACT,1800,BARKWELL B J(LYNDRIDGE CARE),120571,,People Services,Individualised Support - Private (3rd),5706,LTD
18,Devon County Council,12/11/2012,CFADDAY30022398,REDACTED UNDER DP ACT,2800,BARKWELL B J(LYNDRIDGE CARE),120571,,People Services,Individualised Support - Private (3rd),5706,LTD
18,Devon County Council,14/11/2012,CFADDAY30022627,REDACTED UNDER DP ACT,2260,BARKWELL B J(LYNDRIDGE CARE),120571,,People Services,Expenditure Control Account,EX22,LTD
18,Devon County Council,14/11/2012,CFADDAY30022628,REDACTED UNDER DP ACT,3380,BARKWELL B J(LYNDRIDGE CARE),120571,,People Services,Individualised Support - Private (3rd),5706,LTD
18,Devon County Council,14/11/2012,CFADDAY30022629,REDACTED UNDER DP ACT,1480,BARKWELL B J(LYNDRIDGE CARE),120571,,People Services,Individualised Support - Private (3rd),5706,LTD
18,Devon County Council,14/11/2012,CFADDAY30022630,REDACTED UNDER DP ACT,3600,BARKWELL B J(LYNDRIDGE CARE),120571,,People Services,Individualised Support - Private (3rd),5706,LTD
18,Devon County Council,14/11/2012,CFADDAY30022631,REDACTED UNDER DP ACT,720,BARKWELL B J(LYNDRIDGE CARE),120571,,People Services,Individualised Support - Private (3rd),5706,LTD
18,Devon County Council,28/11/2012,CFADDAY30023302,REDACTED UNDER DP ACT,2220,BARKWELL B J(LYNDRIDGE CARE),120571,,People Services,Individualised Support - Private (3rd),5706,LTD
18,Devon County Council,28/11/2012,CFADDAY30023303,REDACTED UNDER DP ACT,1800,BARKWELL B J(LYNDRIDGE CARE),120571,,People Services,Individualised Support - Private (3rd),5706,LTD
18,Devon County Council,28/11/2012,CFADDAY30023304,REDACTED UNDER DP ACT,987,BARKWELL B J(LYNDRIDGE CARE),120571,,People Services,Individualised Support - Private (3rd),5706,LTD
18,Devon County Council,28/11/2012,CFADDAY30023305,REDACTED UNDER DP ACT,2197.2,BARKWELL B J(LYNDRIDGE CARE),120571,,People Services,Individualised Support - Private (3rd),5706,LTD
18,Devon County Council,28/11/2012,CFADDAY30023306,REDACTED UNDER DP ACT,907.2,BARKWELL B J(LYNDRIDGE CARE),120571,,People Services,Individualised Support - Private (3rd),5706,LTD
18,Devon County Council,28/11/2012,CFADDAY30023307,REDACTED UNDER DP ACT,1714.88,BARKWELL B J(LYNDRIDGE CARE),120571,,People Services,Individualised Support - Private (3rd),5706,LTD
18,Devon County Council,28/11/2012,CFADDAY30023308,REDACTED UNDER DP ACT,1360,BARKWELL B J(LYNDRIDGE CARE),120571,,People Services,Individualised Support - Private (3rd),5706,LTD
18,Devon County Council,28/11/2012,CFADDAY30023309,REDACTED UNDER DP ACT,810.08,BARKWELL B J(LYNDRIDGE CARE),120571,,People Services,Individualised Support - Private (3rd),5706,LTD
18,Devon County Council,28/11/2012,CFADDAY30023310,REDACTED UNDER DP ACT,1496,BARKWELL B J(LYNDRIDGE CARE),120571,,People Services,Individualised Support - Private (3rd),5706,LTD
18,Devon County Council,28/11/2012,CFADDAY30023311,REDACTED UNDER DP ACT,1480,BARKWELL B J(LYNDRIDGE CARE),120571,,People Services,Individualised Support - Private (3rd),5706,LTD
18,Devon County Council,28/11/2012,CFADDAY30023312,REDACTED UNDER DP ACT,1860,BARKWELL B J(LYNDRIDGE CARE),120571,,People Services,Individualised Support - Private (3rd),5706,LTD
18,Devon County Council,28/11/2012,CFADDAY30023313,REDACTED UNDER DP ACT,1296.6,BARKWELL B J(LYNDRIDGE CARE),120571,,People Services,Individualised Support - Private (3rd),5706,LTD
18,Devon County Council,28/11/2012,CFADDAY30023314,REDACTED UNDER DP ACT,2800,BARKWELL B J(LYNDRIDGE CARE),120571,,People Services,Individualised Support - Private (3rd),5706,LTD
18,Devon County Council,28/11/2012,CFADDAY30023315,REDACTED UNDER DP ACT,3480,BARKWELL B J(LYNDRIDGE CARE),120571,,People Services,Individualised Support - Private (3rd),5706,LTD
18,Devon County Council,28/11/2012,CFADDAY30023316,REDACTED UNDER DP ACT,1280,BARKWELL B J(LYNDRIDGE CARE),120571,,People Services,Individualised Support - Private (3rd),5706,LTD
18,Devon County Council,28/11/2012,CFADDAY30023317,REDACTED UNDER DP ACT,2084,BARKWELL B J(LYNDRIDGE CARE),120571,,People Services,Individualised Support - Private (3rd),5706,LTD
18,Devon County Council,28/11/2012,CFADDAY30023322,REDACTED UNDER DP ACT,8000,BARKWELL B J(LYNDRIDGE CARE),120571,,People Services,Individualised Support - Private (3rd),5706,LTD
18,Devon County Council,28/11/2012,CFADDAY30023323,REDACTED UNDER DP ACT,3132,BARKWELL B J(LYNDRIDGE CARE),120571,,People Services,Individualised Support - Private (3rd),5706,LTD
18,Devon County Council,05/11/2012,CFADDOM30046089,REDACTED UNDER DP ACT,862.4,BARKWELL B J(LYNDRIDGE CARE),120571,,People Services,Care Spot - Private (3rd),5701,LTD
18,Devon County Council,05/11/2012,CFADDOM30046090,REDACTED UNDER DP ACT,985.6,BARKWELL B J(LYNDRIDGE CARE),120571,,People Services,Care Spot - Private (3rd),5701,LTD
18,Devon County Council,05/11/2012,CFADDOM30046096,REDACTED UNDER DP ACT,658.35,BARKWELL B J(LYNDRIDGE CARE),120571,,People Services,Care Spot - Private (3rd),5701,LTD
18,Devon County Council,05/11/2012,CFADDOM30046099,REDACTED UNDER DP ACT,504.35,BARKWELL B J(LYNDRIDGE CARE),120571,,People Services,Care Spot - Private (3rd),5701,LTD
18,Devon County Council,05/11/2012,CFADDOM30046103,REDACTED UNDER DP ACT,646.8,BARKWELL B J(LYNDRIDGE CARE),120571,,People Services,Care Spot - Private (3rd),5701,LTD
18,Devon County Council,05/11/2012,CFADDOM30046111,REDACTED UNDER DP ACT,1090,BARKWELL B J(LYNDRIDGE CARE),120571,,People Services,Care Spot - Private (3rd),5701,LTD
18,Devon County Council,05/11/2012,CFADDOM30046114,REDACTED UNDER DP ACT,595,BARKWELL B J(LYNDRIDGE CARE),120571,,People Services,Care Spot - Private (3rd),5701,LTD
18,Devon County Council,05/11/2012,CFADDOM30046119,REDACTED UNDER DP ACT,840,BARKWELL B J(LYNDRIDGE CARE),120571,,People Services,Care Spot - Private (3rd),5701,LTD
18,Devon County Council,05/11/2012,CFADDOM30046123,REDACTED UNDER DP ACT,1039.5,BARKWELL B J(LYNDRIDGE CARE),120571,,People Services,Care Spot - Private (3rd),5701,LTD
18,Devon County Council,05/11/2012,CFADDOM30046124,REDACTED UNDER DP ACT,1241.25,BARKWELL B J(LYNDRIDGE CARE),120571,,People Services,Care Spot - Private (3rd),5701,LTD
18,Devon County Council,05/11/2012,CFADDOM30046125,REDACTED UNDER DP ACT,3662.4,BARKWELL B J(LYNDRIDGE CARE),120571,,People Services,Care Spot - Private (3rd),5701,LTD
18,Devon County Council,05/11/2012,CFADDOM30046126,REDACTED UNDER DP ACT,764.8,BARKWELL B J(LYNDRIDGE CARE),120571,,People Services,Care Spot - Private (3rd),5701,LTD
18,Devon County Council,12/11/2012,CFADDOM30046559,REDACTED UNDER DP ACT,840,BARKWELL B J(LYNDRIDGE CARE),120571,,People Services,Care Spot - Private (3rd),5701,LTD
18,Devon County Council,12/11/2012,CFADDOM30046562,REDACTED UNDER DP ACT,1509.2,BARKWELL B J(LYNDRIDGE CARE),120571,,People Services,Care Spot - Private (3rd),5701,LTD
18,Devon County Council,12/11/2012,CFADDOM30046563,REDACTED UNDER DP ACT,646.8,BARKWELL B J(LYNDRIDGE CARE),120571,,People Services,Care Spot - Private (3rd),5701,LTD
18,Devon County Council,12/11/2012,CFADDOM30046567,REDACTED UNDER DP ACT,646.8,BARKWELL B J(LYNDRIDGE CARE),120571,,People Services,Care Spot - Private (3rd),5701,LTD
18,Devon County Council,12/11/2012,CFADDOM30046568,REDACTED UNDER DP ACT,945,BARKWELL B J(LYNDRIDGE CARE),120571,,People Services,Care Spot - Private (3rd),5701,LTD
18,Devon County Council,12/11/2012,CFADDOM30046569,REDACTED UNDER DP ACT,1050,BARKWELL B J(LYNDRIDGE CARE),120571,,People Services,Care Spot - Private (3rd),5701,LTD
18,Devon County Council,12/11/2012,CFADDOM30046570,REDACTED UNDER DP ACT,870,BARKWELL B J(LYNDRIDGE CARE),120571,,People Services,Care Spot - Private (3rd),5701,LTD
18,Devon County Council,12/11/2012,CFADDOM30046571,REDACTED UNDER DP ACT,2600,BARKWELL B J(LYNDRIDGE CARE),120571,,People Services,Care Spot - Private (3rd),5701,LTD
18,Devon County Council,12/11/2012,CFADDOM30046572,REDACTED UNDER DP ACT,630,BARKWELL B J(LYNDRIDGE CARE),120571,,People Services,Care Spot - Private (3rd),5701,LTD
18,Devon County Council,12/11/2012,CFADDOM30046573,REDACTED UNDER DP ACT,630,BARKWELL B J(LYNDRIDGE CARE),120571,,People Services,Care Spot - Private (3rd),5701,LTD
18,Devon County Council,12/11/2012,CFADDOM30046574,REDACTED UNDER DP ACT,512.05,BARKWELL B J(LYNDRIDGE CARE),120571,,People Services,Care Spot - Private (3rd),5701,LTD
18,Devon County Council,21/11/2012,CFADDOM30047182,REDACTED UNDER DP ACT,1848,BARKWELL B J(LYNDRIDGE CARE),120571,,People Services,Care Spot - Private (3rd),5701,LTD
18,Devon County Council,28/11/2012,CFADDOM30047699,REDACTED UNDER DP ACT,985.6,BARKWELL B J(LYNDRIDGE CARE),120571,,People Services,Care Spot - Private (3rd),5701,LTD
18,Devon County Council,28/11/2012,CFADDOM30047700,REDACTED UNDER DP ACT,764.8,BARKWELL B J(LYNDRIDGE CARE),120571,,People Services,Care Spot - Private (3rd),5701,LTD
18,Devon County Council,28/11/2012,CFADDOM30047701,REDACTED UNDER DP ACT,3662.4,BARKWELL B J(LYNDRIDGE CARE),120571,,People Services,Care Spot - Private (3rd),5701,LTD
18,Devon County Council,28/11/2012,CFSUPP30171496,REDACTED UNDER DP ACT,5979.92,BARKWELL B J(LYNDRIDGE CARE),120571,,People Services,Floating Support Service (3rd),5708,LTD
18,Devon County Council,12/11/2012,FINSSCW30458041,12041,2010,BARKWELL B J(LYNDRIDGE CARE),120571,,People Services,Contributions to other agencies (3rd),5801,LTD
18,Devon County Council,01/11/2012,FNEXMHLD30472900,12514/MTPLEASAN,1350.04,BARKWELL B J(LYNDRIDGE CARE),120571,,People Services,Individualised Support - Private (3rd),5706,LTD
18,Devon County Council,01/11/2012,FNEXMHLD30472901,12286/OAKLEIGH,1350.04,BARKWELL B J(LYNDRIDGE CARE),120571,,People Services,Individualised Support - Private (3rd),5706,LTD
18,Devon County Council,28/11/2012,FNEXMHLD30473059,12702/OAKLEIGH,1350.04,BARKWELL B J(LYNDRIDGE CARE),120571,,People Services,Individualised Support - Private (3rd),5706,LTD
18,Devon County Council,28/11/2012,FNEXMHLD30473060,12701/MTPLEASAN,1350.04,BARKWELL B J(LYNDRIDGE CARE),120571,,People Services,Individualised Support - Private (3rd),5706,LTD
18,Devon County Council,14/11/2012,CFADRES30070721,REDACTED UNDER DP ACT,11732.5,BARN PARK RESIDENTIAL HOME,89354,,People Services,Care Spot - Private (3rd),5701,B
18,Devon County Council,28/11/2012,CFADRES30071404,REDACTED UNDER DP ACT,11732.5,BARN PARK RESIDENTIAL HOME,89354,,People Services,Care Spot - Private (3rd),5701,B
18,Devon County Council,27/11/2012,EARLYRS30234190,Aut 2 84018,8731.33,BARN-A-BS PRE SCHOOL,64200,,People Services,Payments to Vol Providers (3rd),5501,EY
18,Devon County Council,27/11/2012,EARLYRS30234490,Aut 2f 84027,2468.52,BARNET SANDRA & SUE KEMP,175657,,People Services,Payments to Vol Providers (3rd),5501,BUSN
18,Devon County Council,14/11/2012,CFADRES30071000,REDACTED UNDER DP ACT,753.82,BARNFIELD HOUSE,168283,,People Services,Care Spot - Private (3rd),5701,B
18,Devon County Council,28/11/2012,CFADRES30071680,REDACTED UNDER DP ACT,753.82,BARNFIELD HOUSE,168283,,People Services,Care Spot - Private (3rd),5701,B
18,Devon County Council,14/11/2012,CFADRES30070659,REDACTED UNDER DP ACT,6243.3,BARNSTAPLE OLD PEOPLES H A HOSTL,87455,,People Services,Care Spot - Private (3rd),5701,B
18,Devon County Council,28/11/2012,CFADRES30071342,REDACTED UNDER DP ACT,6743.3,BARNSTAPLE OLD PEOPLES H A HOSTL,87455,,People Services,Care Spot - Private (3rd),5701,B
18,Devon County Council,22/11/2012,HIGHWAYS30500250,2341,2377,BARON J W EARTHWORKS LLP,82227,,Place Services,Other Contractors (not Main / Term),4302,SOLE
18,Devon County Council,22/11/2012,HIGHWAYS30500252,2340,1204,BARON J W EARTHWORKS LLP,82227,,Place Services,Other Contractors (not Main / Term),4302,SOLE
18,Devon County Council,22/11/2012,HIGHWAYS30500388,2343,4401.63,BARON J W EARTHWORKS LLP,82227,,Place Services,Other Contractors (not Main / Term),4302,SOLE
18,Devon County Council,22/11/2012,HIGHWAYS30500611,2345,1196,BARON J W EARTHWORKS LLP,82227,,Place Services,Other Contractors (not Main / Term),4302,SOLE
18,Devon County Council,29/11/2012,HIGHWAYS30501316,2347,2717,BARON J W EARTHWORKS LLP,82227,,Place Services,Other Contractors (not Main / Term),4302,SOLE
18,Devon County Council,22/11/2012,HIGHWAYS30500379,2344,1513.74,BARON J W EARTHWORKS**DO NOT USE,201567,,Place Services,Other Contractors (not Main / Term),4302,BUSN
18,Devon County Council,12/11/2012,FINEAAD30661776,108970,682,BARTLETT K F LTD(EXETER),84133,140849075,People Services,Other Building Maintenance,2251,BUSN
18,Devon County Council,14/11/2012,CFADRES30071020,REDACTED UNDER DP ACT,6124.4,BARTON HOUSE RESIDENTIAL HOME,178688,,People Services,Care Spot - Private (3rd),5701,B
18,Devon County Council,28/11/2012,CFADRES30071700,REDACTED UNDER DP ACT,8199.38,BARTON HOUSE RESIDENTIAL HOME,178688,,People Services,Care Spot - Private (3rd),5701,B
18,Devon County Council,14/11/2012,CFADRES30071085,REDACTED UNDER DP ACT,2549.29,BARTON LODGE RESIDENTIAL HOME,207195,,People Services,Care Spot - Private (3rd),5701,B
18,Devon County Council,28/11/2012,CFADRES30071762,REDACTED UNDER DP ACT,2490,BARTON LODGE RESIDENTIAL HOME,207195,,People Services,Care Spot - Private (3rd),5701,B
18,Devon County Council,14/11/2012,CFADRES30070882,REDACTED UNDER DP ACT,1682,BASCOMBE COURT,97577,,People Services,Care Spot - Private (3rd),5701,B
18,Devon County Council,28/11/2012,CFADRES30071563,REDACTED UNDER DP ACT,1682,BASCOMBE COURT,97577,,People Services,Care Spot - Private (3rd),5701,B
18,Devon County Council,28/11/2012,DHRP30224019,07-Nov-12,607,BASSETT,202914,,Corporate Services,Professional Fees,4306,INDV
18,Devon County Council,27/11/2012,EARLYRS30234191,Aut 2 84019,3755.75,BASSETTS FARM PLAYGROUP,88520,,People Services,Payments to Vol Providers (3rd),5501,EY
18,Devon County Council,14/11/2012,CFADRES30070798,REDACTED UNDER DP ACT,8097.5,BAXENDALE AM/MRS NB TA AMELIA HS,90280,,People Services,Care Spot - Private (3rd),5701,B
18,Devon County Council,28/11/2012,CFADRES30071480,REDACTED UNDER DP ACT,8097.5,BAXENDALE AM/MRS NB TA AMELIA HS,90280,,People Services,Care Spot - Private (3rd),5701,B
18,Devon County Council,28/11/2012,CFSUPP30171502,REDACTED UNDER DP ACT,989.6,BAXTER,123276,,People Services,Accomodation Based Services (3rd),5707,INDV
18,Devon County Council,12/11/2012,CFADDOM30046788,REDACTED UNDER DP ACT,512.4,BAY CARE GROUP,262868,,People Services,Care Spot - Private (3rd),5701,B
18,Devon County Council,12/11/2012,CFADDOM30046799,REDACTED UNDER DP ACT,688.08,BAY CARE GROUP,262868,,People Services,Care Spot - Private (3rd),5701,B
18,Devon County Council,12/11/2012,CFADDOM30046800,REDACTED UNDER DP ACT,966.24,BAY CARE GROUP,262868,,People Services,Care Spot - Private (3rd),5701,B
18,Devon County Council,12/11/2012,CFADDOM30046801,REDACTED UNDER DP ACT,614.88,BAY CARE GROUP,262868,,People Services,Care Spot - Private (3rd),5701,B
18,Devon County Council,12/11/2012,CFADDOM30046803,REDACTED UNDER DP ACT,717.36,BAY CARE GROUP,262868,,People Services,Care Spot - Private (3rd),5701,B
18,Devon County Council,12/11/2012,CFADDOM30046806,REDACTED UNDER DP ACT,688.08,BAY CARE GROUP,262868,,People Services,Care Spot - Private (3rd),5701,B
18,Devon County Council,12/11/2012,CFADDOM30046808,REDACTED UNDER DP ACT,717.36,BAY CARE GROUP,262868,,People Services,Care Spot - Private (3rd),5701,B
18,Devon County Council,12/11/2012,COMMUNTY30174051,ED04/035,1500,BAY FM RADIO,262463,,Place Services,Grants Paid,4802,BUSN
18,Devon County Council,14/11/2012,CFADRES30071200,REDACTED UNDER DP ACT,952,BAY TREE LODGE,271222,,People Services,Care Spot - Private (3rd),5701,B
18,Devon County Council,28/11/2012,CFADRES30071877,REDACTED UNDER DP ACT,952,BAY TREE LODGE,271222,,People Services,Care Spot - Private (3rd),5701,B
18,Devon County Council,14/11/2012,CFADRES30070908,REDACTED UNDER DP ACT,10375.22,BE SMART SOUTH WEST LTD,105345,,People Services,Care Spot - Private (3rd),5701,B
18,Devon County Council,28/11/2012,CFADRES30071588,REDACTED UNDER DP ACT,10375.22,BE SMART SOUTH WEST LTD,105345,,People Services,Care Spot - Private (3rd),5701,B
18,Devon County Council,14/11/2012,CFADRES30070864,REDACTED UNDER DP ACT,10322.42,BEACON COURT,90958,,People Services,Care Spot - Private (3rd),5701,B
18,Devon County Council,28/11/2012,CFADRES30071546,REDACTED UNDER DP ACT,11220.27,BEACON COURT,90958,,People Services,Care Spot - Private (3rd),5701,B
18,Devon County Council,28/11/2012,CFSUPP30171478,REDACTED UNDER DP ACT,12985.04,BECK,118050,,People Services,Accomodation Based Services (3rd),5707,INDV
18,Devon County Council,14/11/2012,CFADRES30070691,REDACTED UNDER DP ACT,15464.48,BEECH HOUSE(EXETER)LTD,89053,,People Services,Care Spot - Private (3rd),5701,B
18,Devon County Council,28/11/2012,CFADRES30071374,REDACTED UNDER DP ACT,15583.05,BEECH HOUSE(EXETER)LTD,89053,,People Services,Care Spot - Private (3rd),5701,B
18,Devon County Council,14/11/2012,CFADRES30071111,REDACTED UNDER DP ACT,1014.6,BEECH LAWN NURSING & RES HOME,226788,,People Services,Care Spot - Private (3rd),5701,B
18,Devon County Council,28/11/2012,CFADRES30071788,REDACTED UNDER DP ACT,1014.6,BEECH LAWN NURSING & RES HOME,226788,,People Services,Care Spot - Private (3rd),5701,B
18,Devon County Council,14/11/2012,CFADRES30070982,REDACTED UNDER DP ACT,1622.12,BEECHCROFT CARE HOME,159338,,People Services,Care Spot - Private (3rd),5701,B
18,Devon County Council,28/11/2012,CFADRES30071662,REDACTED UNDER DP ACT,1727.84,BEECHCROFT CARE HOME,159338,,People Services,Care Spot - Private (3rd),5701,B
18,Devon County Council,14/11/2012,CFADRES30071023,REDACTED UNDER DP ACT,1100,BEECHMOUNT RESIDENTIAL HOME LTD,180408,,People Services,Care Spot - Private (3rd),5701,B
18,Devon County Council,28/11/2012,CFADRES30071703,REDACTED UNDER DP ACT,550,BEECHMOUNT RESIDENTIAL HOME LTD,180408,,People Services,Care Spot - Private (3rd),5701,B
18,Devon County Council,27/11/2012,EARLYRS30234192,Aut 2 84020,2470.46,BEEHIVE UNDER FIVES,51347,,People Services,Payments to Vol Providers (3rd),5501,EY
18,Devon County Council,14/11/2012,CFADRES30071040,REDACTED UNDER DP ACT,2844.82,BELLE VUE HOUSE NURSING HOME,189266,,People Services,Care Spot - Private (3rd),5701,BUSN
18,Devon County Council,01/11/2012,DSSCITT30231968,DSTTG-Nov295414,1200,BELLI,295414,,People Services,Discretionary Awards,6101,INDV
18,Devon County Council,14/11/2012,CFADRES30071087,REDACTED UNDER DP ACT,10001.73,BELMONT GRANGE,208839,,People Services,Care Spot - Private (3rd),5701,B
18,Devon County Council,28/11/2012,CFADRES30071764,REDACTED UNDER DP ACT,10587.45,BELMONT GRANGE,208839,,People Services,Care Spot - Private (3rd),5701,B
18,Devon County Council,14/11/2012,CFADRES30070940,REDACTED UNDER DP ACT,881.82,BELMONT HOUSE R H,132715,,People Services,Care Spot - Private (3rd),5701,LTD
18,Devon County Council,28/11/2012,CFADRES30071620,REDACTED UNDER DP ACT,881.82,BELMONT HOUSE R H,132715,,People Services,Care Spot - Private (3rd),5701,LTD
18,Devon County Council,26/11/2012,HIGHWAYS30500377,290,1425,BELSTONE FARM & GARDEN SERVICES,18586,923408144,Place Services,Other Contractors (not Main / Term),4302,BUSN
18,Devon County Council,15/11/2012,HIGHWAYS30500378,292,864,BELSTONE FARM & GARDEN SERVICES,18586,923408144,Place Services,Other Contractors (not Main / Term),4302,BUSN
18,Devon County Council,15/11/2012,HIGHWAYS30500389,293,540,BELSTONE FARM & GARDEN SERVICES,18586,923408144,Place Services,Other Contractors (not Main / Term),4302,BUSN
18,Devon County Council,19/11/2012,HIGHWAYS30500390,294,2244,BELSTONE FARM & GARDEN SERVICES,18586,923408144,Place Services,Other Contractors (not Main / Term),4302,BUSN
18,Devon County Council,09/11/2012,DPSCITT30230650,500,500,BENNETT,295631,,People Services,Miscellaneous expenditure,4901,INDV
18,Devon County Council,07/11/2012,HQ30526391,DEVON/0001/2012,904.4,BENSON,272520,,Place Services,Training inc Travel Costs,1802,INDV
18,Devon County Council,08/11/2012,YOUTHNTH30656758,3574,1143.88,BENTHAM LTD T/A IJT,72940,753646903,People Services,Materials & Consumables,4003,LTD
18,Devon County Council,15/11/2012,COMMUNTY30174078,WD62/026,800,BERE ALSTON REGENERATION PRTNSHP,264984,,Place Services,Grants Paid,4802,LTD
18,Devon County Council,07/11/2012,LEGAL30547049,23648,1510,BERKLEY,86220,585796468,Corporate Services,Legal Fees & Disbursements,4314,INDV
18,Devon County Council,07/11/2012,LEGAL30547049,23648,7550,BERKLEY,86220,585796468,People Services,Legal Fees & Disbursements,4314,INDV
18,Devon County Council,27/11/2012,CFCLEAV30117857,REDACTED UNDER DP ACT,715,BERRY HOTEL,297283,,People Services,Cl-Relevant Child-Other Costs (3rd),5773,BUSN
18,Devon County Council,15/11/2012,CYPSWLOC30209386,25268,800,BETTERCARE KEYS LTD,267146,,People Services,Incidental costs Fostered Children (3rd),5715,LTD
18,Devon County Council,19/11/2012,CYPSWLOC30209397,25306,12000,BETTERCARE KEYS LTD,267146,,People Services,Residential Care - Private (3rd),5731,LTD
18,Devon County Council,14/11/2012,CFADRES30070764,REDACTED UNDER DP ACT,1310.14,BETTERCARE UK LTD,89948,,People Services,Care Spot - Private (3rd),5701,B
18,Devon County Council,28/11/2012,CFADRES30071446,REDACTED UNDER DP ACT,1310.14,BETTERCARE UK LTD,89948,,People Services,Care Spot - Private (3rd),5701,B
18,Devon County Council,28/11/2012,LEGAL30547245,V1371859,0,BEVAN BRITTAN LLP,237146,840723148,Corporate Services,Legal Fees & Disbursements,4314,BUSN
18,Devon County Council,28/11/2012,LEGAL30547246,V1371856,0,BEVAN BRITTAN LLP,237146,840723148,Corporate Services,Legal Fees & Disbursements,4314,BUSN
18,Devon County Council,21/11/2012,CFADDAY30023002,REDACTED UNDER DP ACT,1116.6,BIBBINGS,135593,,People Services,Individualised Support - Private (3rd),5706,INDV
18,Devon County Council,14/11/2012,CFADRES30071076,REDACTED UNDER DP ACT,5806.38,BICKLEIGH DOWN CARE HOME,205626,,People Services,Care Spot - Private (3rd),5701,B
18,Devon County Council,28/11/2012,CFADRES30071753,REDACTED UNDER DP ACT,5806.38,BICKLEIGH DOWN CARE HOME,205626,,People Services,Care Spot - Private (3rd),5701,B
18,Devon County Council,27/11/2012,EARLYRS30234195,Aut 2 84023,2623.03,BICKLEIGH ON EXE PRE SCHOOL,39087,,People Services,Payments to Vol Providers (3rd),5501,EY
18,Devon County Council,28/11/2012,EDUC30243031,CLASS12/31638,2450,BICKLEIGH ON EXE PRIMARY ACADEMY,286248,,People Services,Detailed & Exceptional Arrangements,9052,EDUC
18,Devon County Council,06/11/2012,DHRP30223834,TSB709,523,BIDDINGTON,162597,,Corporate Services,Professional Fees,4306,SOLE
18,Devon County Council,09/11/2012,BRACS30006954,12/13-063,1636.25,BIDEFORD MEDICAL CENTRE,22608,,Corporate Services,Rents & other landlord charges payable,2321,MEDC
18,Devon County Council,14/11/2012,CFADRES30070853,REDACTED UNDER DP ACT,15988.8,BIDNA HOUSE,90844,,People Services,Care Spot - Private (3rd),5701,B
18,Devon County Council,28/11/2012,CFADRES30071535,REDACTED UNDER DP ACT,17274.51,BIDNA HOUSE,90844,,People Services,Care Spot - Private (3rd),5701,B
18,Devon County Council,01/11/2012,CYPNMLOC30197631,1164,750,BIDWELL BROOK FOUNDATION,42294,,People Services,Care Other - Private (3rd),5705,LTD
18,Devon County Council,12/11/2012,FINSSCW30458021,1167,32914,BIDWELL BROOK FOUNDATION T/A,295623,,People Services,Contributions to Private Contractors (3r,5751,BUSN
18,Devon County Council,16/11/2012,FINSSCW30458067,1178,32914,BIDWELL BROOK FOUNDATION T/A,295623,,People Services,Contributions to Private Contractors (3r,5751,BUSN
18,Devon County Council,07/11/2012,SCOMIS30613216,BF111299,564,BIG FLIP LTD,235705,,Corporate Services,Printing & Design,4201,BUSN
18,Devon County Council,30/11/2012,SCOMIS30613249,BF111307,735,BIG FLIP LTD,235705,,Corporate Services,Printing & Design,4201,BUSN
18,Devon County Council,27/11/2012,EARLYRS30234436,Aut 2e 84022,666.45,BIG OAK PRE-SCHOOL,37052,,People Services,Payments to Vol Providers (3rd),5501,EY
18,Devon County Council,23/11/2012,COMMUNTY30174102,SH42/039,1902,BIGBURY PARISH COUNCIL,20116,,Place Services,Grants Paid,4802,PRSH
18,Devon County Council,14/11/2012,CFADRES30070767,REDACTED UNDER DP ACT,10570.4,BINDON CARE LTD,89979,,People Services,Care Spot - Private (3rd),5701,B
18,Devon County Council,28/11/2012,CFADRES30071449,REDACTED UNDER DP ACT,10570.4,BINDON CARE LTD,89979,,People Services,Care Spot - Private (3rd),5701,B
18,Devon County Council,14/11/2012,CFADRES30071186,REDACTED UNDER DP ACT,1180,BIRCHAMS GRANGE,264870,,People Services,Care Spot - Private (3rd),5701,B
18,Devon County Council,28/11/2012,CFADRES30071863,REDACTED UNDER DP ACT,1180,BIRCHAMS GRANGE,264870,,People Services,Care Spot - Private (3rd),5701,B
18,Devon County Council,27/11/2012,EARLYRS30234196,Aut 2 84024,3093.25,BISHOPS NYMPTON PRE SCHOOL,34879,,People Services,Payments to Vol Providers (3rd),5501,EY
18,Devon County Council,27/11/2012,EARLYRS30234197,Aut 2 84025,3215.78,BISHOPS TAWTON PRE-SCHOOL,34663,,People Services,Payments to Vol Providers (3rd),5501,EY
18,Devon County Council,14/11/2012,CFADRES30071065,REDACTED UNDER DP ACT,6072.52,BISHOPSTEIGNTON HOUSE,198556,,People Services,Care Spot - Private (3rd),5701,BUSN
18,Devon County Council,28/11/2012,CFADRES30071742,REDACTED UNDER DP ACT,6072.52,BISHOPSTEIGNTON HOUSE,198556,,People Services,Care Spot - Private (3rd),5701,BUSN
18,Devon County Council,27/11/2012,EARLYRS30234198,Aut 2 84026,4069.13,BISHOPSTEIGNTON PRE SCHOOL,35493,,People Services,Payments to Vol Providers (3rd),5501,EY
18,Devon County Council,07/11/2012,CFADDAY30022204,REDACTED UNDER DP ACT,1278.16,BLACKDOWN HEALTHY LIVING CENTRE,60735,,People Services,Care Spot - Private (3rd),5701,BUSN
18,Devon County Council,16/11/2012,FINMDAD30441922,Q3,2380,BLACKDOWN HEALTHY LIVING CENTRE,60735,,People Services,Payments to Vol Providers (3rd),5501,BUSN
18,Devon County Council,29/11/2012,FINMDAD30441928,QUARTER2,2380,BLACKDOWN HEALTHY LIVING CENTRE,60735,,People Services,Payments to Vol Providers (3rd),5501,BUSN
18,Devon County Council,19/11/2012,CYPSWLOC30209822,BJS1,20786,BLACKFORD EDUCATION (SCHOOLS)LTD,194535,,People Services,Residential Care - Private (3rd),5731,LTD
18,Devon County Council,19/11/2012,CYPSWLOC30209823,BJS2,17700,BLACKFORD EDUCATION (SCHOOLS)LTD,194535,,People Services,Residential Care - Private (3rd),5731,LTD
18,Devon County Council,19/11/2012,CYPSWLOC30209824,BJS3,16164.29,BLACKFORD EDUCATION (SCHOOLS)LTD,194535,,People Services,Residential Care - Private (3rd),5731,LTD
18,Devon County Council,01/11/2012,FINNDAD30451078,6380,472,BLACKMAN A J,20279,,People Services,Adaptations - Private (3rd),5709,SOLE
18,Devon County Council,01/11/2012,FINNDAD30451079,6379,549,BLACKMAN A J,20279,,People Services,Adaptations - Private (3rd),5709,SOLE
18,Devon County Council,13/11/2012,FINNDAD30451264,6383,618,BLACKMAN A J,20279,,People Services,Adaptations - Private (3rd),5709,SOLE
18,Devon County Council,14/11/2012,CFADRES30071243,REDACTED UNDER DP ACT,1555.58,BLOSSOM FIELDS,285993,,People Services,Care Spot - Private (3rd),5701,B
18,Devon County Council,12/11/2012,CFADDOM30046691,REDACTED UNDER DP ACT,512.64,BLUEBIRD CARE (NEWTON ABBOT),237624,,People Services,Care Spot - Private (3rd),5701,B
18,Devon County Council,12/11/2012,CFADDOM30046697,REDACTED UNDER DP ACT,594.52,BLUEBIRD CARE (NEWTON ABBOT),237624,,People Services,Care Spot - Private (3rd),5701,B
18,Devon County Council,12/11/2012,CFADDOM30046701,REDACTED UNDER DP ACT,1082.24,BLUEBIRD CARE (NEWTON ABBOT),237624,,People Services,Care Spot - Private (3rd),5701,B
18,Devon County Council,12/11/2012,CFADDOM30046702,REDACTED UNDER DP ACT,989.68,BLUEBIRD CARE (NEWTON ABBOT),237624,,People Services,Care Spot - Private (3rd),5701,B
18,Devon County Council,12/11/2012,CFADDOM30046703,REDACTED UNDER DP ACT,811.68,BLUEBIRD CARE (NEWTON ABBOT),237624,,People Services,Care Spot - Private (3rd),5701,B
18,Devon County Council,12/11/2012,CFADDOM30046715,REDACTED UNDER DP ACT,514.08,BLUEBIRD CARE (NEWTON ABBOT),237624,,People Services,Care Spot - Private (3rd),5701,B
18,Devon County Council,12/11/2012,CFADDOM30046716,REDACTED UNDER DP ACT,774.69,BLUEBIRD CARE (NEWTON ABBOT),237624,,People Services,Care Spot - Private (3rd),5701,B
18,Devon County Council,12/11/2012,CFADDOM30046720,REDACTED UNDER DP ACT,542.64,BLUEBIRD CARE (NEWTON ABBOT),237624,,People Services,Care Spot - Private (3rd),5701,B
18,Devon County Council,12/11/2012,CFADDOM30046734,REDACTED UNDER DP ACT,799.68,BLUEBIRD CARE (NEWTON ABBOT),237624,,People Services,Care Spot - Private (3rd),5701,B
18,Devon County Council,12/11/2012,CFADDOM30046747,REDACTED UNDER DP ACT,556.92,BLUEBIRD CARE (NEWTON ABBOT),237624,,People Services,Care Spot - Private (3rd),5701,B
18,Devon County Council,12/11/2012,CFADDOM30046749,REDACTED UNDER DP ACT,535.5,BLUEBIRD CARE (NEWTON ABBOT),237624,,People Services,Care Spot - Private (3rd),5701,B
18,Devon County Council,12/11/2012,CFADDOM30046750,REDACTED UNDER DP ACT,1809.99,BLUEBIRD CARE (NEWTON ABBOT),237624,,People Services,Care Spot - Private (3rd),5701,B
18,Devon County Council,12/11/2012,CFADDOM30046753,REDACTED UNDER DP ACT,2328.24,BLUEBIRD CARE (NEWTON ABBOT),237624,,People Services,Care Spot - Private (3rd),5701,B
18,Devon County Council,12/11/2012,CFADDOM30046756,REDACTED UNDER DP ACT,599.76,BLUEBIRD CARE (NEWTON ABBOT),237624,,People Services,Care Spot - Private (3rd),5701,B
18,Devon County Council,12/11/2012,CFADDOM30046761,REDACTED UNDER DP ACT,656.88,BLUEBIRD CARE (NEWTON ABBOT),237624,,People Services,Care Spot - Private (3rd),5701,B
18,Devon County Council,12/11/2012,CFADDOM30046771,REDACTED UNDER DP ACT,885.36,BLUEBIRD CARE (NEWTON ABBOT),237624,,People Services,Care Spot - Private (3rd),5701,B
18,Devon County Council,22/11/2012,RECSERV30603109,BGI5200735,1159.95,BLUECARE,206880,769398652,Corporate Services,External Agency Staff,4321,BUSN
18,Devon County Council,22/11/2012,RECSERV30603110,BGI5200736,1159.95,BLUECARE,206880,769398652,Corporate Services,External Agency Staff,4321,BUSN
18,Devon County Council,22/11/2012,RECSERV30603111,BGI5200737,1138.12,BLUECARE,206880,769398652,Corporate Services,External Agency Staff,4321,BUSN
18,Devon County Council,14/11/2012,CFADRES30071211,REDACTED UNDER DP ACT,13438.18,BODMEYRICK RESIDENTIAL HOME,277062,,People Services,Care Spot - Private (3rd),5701,B
18,Devon County Council,28/11/2012,CFADRES30071888,REDACTED UNDER DP ACT,13438.18,BODMEYRICK RESIDENTIAL HOME,277062,,People Services,Care Spot - Private (3rd),5701,B
18,Devon County Council,14/11/2012,CFADRES30070811,REDACTED UNDER DP ACT,18984.12,BOLEALLER HOUSE LTD,90433,,People Services,Care Spot - Private (3rd),5701,B
18,Devon County Council,28/11/2012,CFADRES30071493,REDACTED UNDER DP ACT,18145.62,BOLEALLER HOUSE LTD,90433,,People Services,Care Spot - Private (3rd),5701,B
18,Devon County Council,27/11/2012,YOUTHSTH20463149,2100917457,844.63,BOOKER LTD,67745,,People Services,Provisions / Food Purchases,4102,BUSN
18,Devon County Council,27/11/2012,YOUTHSTH20463189,2100940152,873.24,BOOKER LTD,67745,,People Services,Provisions / Food Purchases,4102,BUSN
18,Devon County Council,27/11/2012,YOUTHSTH20463190,2100935035,526.48,BOOKER LTD,67745,,People Services,Provisions / Food Purchases,4102,BUSN
18,Devon County Council,14/11/2012,CFADRES30071246,REDACTED UNDER DP ACT,1000,BOSWORTH CARE HOME,286381,,People Services,Care Spot - Private (3rd),5701,B
18,Devon County Council,28/11/2012,CFADRES30071922,REDACTED UNDER DP ACT,1000,BOSWORTH CARE HOME,286381,,People Services,Care Spot - Private (3rd),5701,B
18,Devon County Council,30/11/2012,LEGAL30547259,68804,4857.8,BOURNE,278918,564359908,Corporate Services,Professional Fees,4306,INDV
18,Devon County Council,30/11/2012,LEGAL30547259,68804,24289,BOURNE,278918,564359908,People Services,Professional Fees,4306,INDV
18,Devon County Council,28/11/2012,CFSUPP30171510,REDACTED UNDER DP ACT,21614.56,BOURNEMOUTH CHURCHES HSING ASSOC,131074,,People Services,Accomodation Based Services (3rd),5707,LTD
18,Devon County Council,27/11/2012,EARLYRS30234200,Aut 2 84028,1147.91,BOVEY BUSY BEES,41386,,People Services,Payments to Vol Providers (3rd),5501,EY
18,Devon County Council,12/11/2012,COMMUNTY30174043,TE44/042,905.71,BOVEY TRACEY YOUTH ACTION,119760,,Place Services,Grants Paid,4802,YTH
18,Devon County Council,27/11/2012,EARLYRS30234201,Aut 2 84029,2831.76,BOW PLAYGROUP,66792,,People Services,Payments to Vol Providers (3rd),5501,EY
18,Devon County Council,26/11/2012,FINNDAD30451502,40731,1463.63,BOWDENS CLEANING & JANITORIAL,22708,142754079,People Services,Care Spot - Private (3rd),5701,BUSN
18,Devon County Council,14/11/2012,CFADRES30071095,REDACTED UNDER DP ACT,7400.02,BRACKEN TOR HOUSE,215900,,People Services,Care Spot - Private (3rd),5701,B
18,Devon County Council,28/11/2012,CFADRES30071772,REDACTED UNDER DP ACT,7400.02,BRACKEN TOR HOUSE,215900,,People Services,Care Spot - Private (3rd),5701,B
18,Devon County Council,16/11/2012,FINNDAD30451120,2646,3499.17,BRADDICKS FURNISHERS LTD,61768,143021914,People Services,Minor Improvements,2261,LTD
18,Devon County Council,14/11/2012,LEGAL30547122,30544      ,500,BRADNOCK,22253,,Place Services,Legal Fees & Disbursements,4314,INDV
18,Devon County Council,27/11/2012,EARLYRS30234204,Aut 2 84032,1813.62,BRADWORTHY PRE SCHOOL,28358,,People Services,Payments to Vol Providers (3rd),5501,EY
18,Devon County Council,14/11/2012,CFADRES30070981,REDACTED UNDER DP ACT,2025.36,BRAEMAR HOUSE,157418,,People Services,Care Spot - Private (3rd),5701,B
18,Devon County Council,28/11/2012,CFADRES30071661,REDACTED UNDER DP ACT,2619.99,BRAEMAR HOUSE,157418,,People Services,Care Spot - Private (3rd),5701,B
18,Devon County Council,07/11/2012,CFADDAY30022278,REDACTED UNDER DP ACT,4612.8,BRAIN INJURY REHABILITATION TRST,213684,,People Services,Individualised Support - Private (3rd),5706,BUSN
18,Devon County Council,07/11/2012,CFADDAY30022248,REDACTED UNDER DP ACT,5366.16,BRAIN INJURY REHABITITATION TRST,155693,,People Services,Individualised Support - Private (3rd),5706,BUSN
18,Devon County Council,07/11/2012,CFADDAY30022249,REDACTED UNDER DP ACT,3503.84,BRAIN INJURY REHABITITATION TRST,155693,,People Services,Individualised Support - Private (3rd),5706,BUSN
18,Devon County Council,07/11/2012,CFADDAY30022250,REDACTED UNDER DP ACT,4300.64,BRAIN INJURY REHABITITATION TRST,155693,,People Services,Individualised Support - Private (3rd),5706,BUSN
18,Devon County Council,07/11/2012,CFADDAY30022251,REDACTED UNDER DP ACT,3505.64,BRAIN INJURY REHABITITATION TRST,155693,,People Services,Individualised Support - Private (3rd),5706,BUSN
18,Devon County Council,07/11/2012,CFADDAY30022252,REDACTED UNDER DP ACT,4424.98,BRAIN INJURY REHABITITATION TRST,155693,,People Services,Individualised Support - Private (3rd),5706,BUSN
18,Devon County Council,14/11/2012,CFADDAY30022651,REDACTED UNDER DP ACT,1036.85,BRAIN INJURY REHABITITATION TRST,155693,,People Services,Individualised Support - Private (3rd),5706,BUSN
18,Devon County Council,07/11/2012,CFADDOM30046420,REDACTED UNDER DP ACT,836.68,BRAIN INJURY REHABITITATION TRST,155693,,People Services,Care Spot - Private (3rd),5701,BUSN
18,Devon County Council,07/11/2012,CFADDOM30046421,REDACTED UNDER DP ACT,1795.36,BRAIN INJURY REHABITITATION TRST,155693,,People Services,Care Spot - Private (3rd),5701,BUSN
18,Devon County Council,21/11/2012,CFADDOM30047185,REDACTED UNDER DP ACT,2601.28,BRAIN INJURY REHABITITATION TRST,155693,,People Services,Care Spot - Private (3rd),5701,BUSN
18,Devon County Council,27/11/2012,EARLYRS30234205,Aut 2 84033,1597.94,BRAMPFORD SPEKE AREA PRE-SCHOOL,39846,,People Services,Payments to Vol Providers (3rd),5501,EY
18,Devon County Council,19/11/2012,CYPNMLOC30197900,SIWA001347,19285.71,BRANAS ISAF,135049,771083238,People Services,Residential Care - Private (3rd),5731,BUSN
18,Devon County Council,14/11/2012,CFADRES30070723,REDACTED UNDER DP ACT,3412.58,BRANDON RESIDENTIAL CARE HOME,89375,,People Services,Care Spot - Private (3rd),5701,B
18,Devon County Council,28/11/2012,CFADRES30071406,REDACTED UNDER DP ACT,3412.58,BRANDON RESIDENTIAL CARE HOME,89375,,People Services,Care Spot - Private (3rd),5701,B
18,Devon County Council,14/11/2012,CFADDAY30022746,REDACTED UNDER DP ACT,5598.16,BRANDON TRUST THE,206491,,People Services,Individualised Support - Private (3rd),5706,BUSN
18,Devon County Council,14/11/2012,FNEXMHLD30472966,35751,18026.4,BRANDON TRUST THE,206491,,People Services,Individualised Support - Private (3rd),5706,BUSN
18,Devon County Council,27/11/2012,FNEXMHLD30473070,035756DYER,18026.4,BRANDON TRUST THE,206491,,People Services,Individualised Support - Private (3rd),5706,BUSN
18,Devon County Council,27/11/2012,EARLYRS30234206,Aut 2 84034,1761.13,BRANSCOMBE PRE-SCHOOL,66794,,People Services,Payments to Vol Providers (3rd),5501,EY
18,Devon County Council,27/11/2012,EARLYRS30234207,Aut 2 84035,3372.5,BRATTON FLEMING PRE-SCHOOL CIC,274247,,People Services,Payments to Vol Providers (3rd),5501,EY
18,Devon County Council,05/11/2012,CFADDOM30046306,REDACTED UNDER DP ACT,1728.72,BRAUNTON CARE LTD,262416,,People Services,Care Spot - Private (3rd),5701,B
18,Devon County Council,05/11/2012,CFADDOM30046307,REDACTED UNDER DP ACT,507.64,BRAUNTON CARE LTD,262416,,People Services,Care Spot - Private (3rd),5701,B
18,Devon County Council,05/11/2012,CFADDOM30046309,REDACTED UNDER DP ACT,665.42,BRAUNTON CARE LTD,262416,,People Services,Care Spot - Private (3rd),5701,B
18,Devon County Council,05/11/2012,CFADDOM30046310,REDACTED UNDER DP ACT,1865.92,BRAUNTON CARE LTD,262416,,People Services,Care Spot - Private (3rd),5701,B
18,Devon County Council,05/11/2012,CFADDOM30046320,REDACTED UNDER DP ACT,648.27,BRAUNTON CARE LTD,262416,,People Services,Care Spot - Private (3rd),5701,B
18,Devon County Council,05/11/2012,CFADDOM30046321,REDACTED UNDER DP ACT,1988.22,BRAUNTON CARE LTD,262416,,People Services,Care Spot - Private (3rd),5701,B
18,Devon County Council,05/11/2012,CFADDOM30046322,REDACTED UNDER DP ACT,2208.92,BRAUNTON CARE LTD,262416,,People Services,Care Spot - Private (3rd),5701,B
18,Devon County Council,05/11/2012,CFADDOM30046323,REDACTED UNDER DP ACT,1344.56,BRAUNTON CARE LTD,262416,,People Services,Care Spot - Private (3rd),5701,B
18,Devon County Council,05/11/2012,CFADDOM30046325,REDACTED UNDER DP ACT,1701.28,BRAUNTON CARE LTD,262416,,People Services,Care Spot - Private (3rd),5701,B
18,Devon County Council,28/11/2012,CFADDOM30047729,REDACTED UNDER DP ACT,1728.72,BRAUNTON CARE LTD,262416,,People Services,Care Spot - Private (3rd),5701,B
18,Devon County Council,28/11/2012,CFADDOM30047731,REDACTED UNDER DP ACT,531.65,BRAUNTON CARE LTD,262416,,People Services,Care Spot - Private (3rd),5701,B
18,Devon County Council,28/11/2012,CFADDOM30047732,REDACTED UNDER DP ACT,528.22,BRAUNTON CARE LTD,262416,,People Services,Care Spot - Private (3rd),5701,B
18,Devon County Council,28/11/2012,CFADDOM30047733,REDACTED UNDER DP ACT,1893.36,BRAUNTON CARE LTD,262416,,People Services,Care Spot - Private (3rd),5701,B
18,Devon County Council,28/11/2012,CFADDOM30047741,REDACTED UNDER DP ACT,764.89,BRAUNTON CARE LTD,262416,,People Services,Care Spot - Private (3rd),5701,B
18,Devon County Council,28/11/2012,CFADDOM30047742,REDACTED UNDER DP ACT,1975.68,BRAUNTON CARE LTD,262416,,People Services,Care Spot - Private (3rd),5701,B
18,Devon County Council,28/11/2012,CFADDOM30047743,REDACTED UNDER DP ACT,2195.2,BRAUNTON CARE LTD,262416,,People Services,Care Spot - Private (3rd),5701,B
18,Devon County Council,28/11/2012,CFADDOM30047744,REDACTED UNDER DP ACT,1341.13,BRAUNTON CARE LTD,262416,,People Services,Care Spot - Private (3rd),5701,B
18,Devon County Council,28/11/2012,CFADDOM30047745,REDACTED UNDER DP ACT,1053.01,BRAUNTON CARE LTD,262416,,People Services,Care Spot - Private (3rd),5701,B
18,Devon County Council,28/11/2012,CFADDOM30047746,REDACTED UNDER DP ACT,1584.66,BRAUNTON CARE LTD,262416,,People Services,Care Spot - Private (3rd),5701,B
18,Devon County Council,01/11/2012,FINNDAD30451076,1775,1955.53,BRAUNTON CARE LTD,262416,,People Services,Care Spot - Private (3rd),5701,B
18,Devon County Council,01/11/2012,FINNDAD30451077,1774,596.25,BRAUNTON CARE LTD,262416,,People Services,Care Spot - Private (3rd),5701,B
18,Devon County Council,28/11/2012,FINNDAD30451585,1845,680.86,BRAUNTON CARE LTD,262416,,People Services,Care Spot - Private (3rd),5701,B
18,Devon County Council,28/11/2012,EDUC30242695,CLASS12/31646,11411,BRAUNTON SCHOOL & COMMUNITY,251057,,People Services,Detailed & Exceptional Arrangements,9052,EDUC
18,Devon County Council,28/11/2012,EDUC30243328,CLASS12/34824,1417,BRAUNTON SCHOOL & COMMUNITY,251057,,People Services,In year DSG to Academies,6008,EDUC
18,Devon County Council,01/11/2012,LEGAL30546996,90154,600,BRAY,268016,948819170,Corporate Services,Legal Fees & Disbursements,4314,INDV
18,Devon County Council,01/11/2012,LEGAL30546996,90154,3000,BRAY,268016,948819170,People Services,Legal Fees & Disbursements,4314,INDV
18,Devon County Council,26/11/2012,LEGAL30547201,90251,750,BRAY,268016,948819170,People Services,Legal Fees & Disbursements,4314,INDV
18,Devon County Council,27/11/2012,EARLYRS30234208,Aut 2 84036,1514.6,BRAYFORD BOOMERANGS,98284,,People Services,Payments to Vol Providers (3rd),5501,BUSN
18,Devon County Council,29/11/2012,CYPNMLOC30198161,002DP2012,500,BREAKTHROUGH TRANSFORMATION TRST,248117,,People Services,Care Other - Private (3rd),5705,CHTY
18,Devon County Council,09/11/2012,DPSCITT30230651,BURS02,900,BREMNER,295663,,People Services,Miscellaneous expenditure,4901,INDV
18,Devon County Council,09/11/2012,FINNDAD30451031,25864,3676,BREWER & BUNNEY LTD,99207,434320682,People Services,Minor Improvements,2261,LTD
18,Devon County Council,14/11/2012,CFADRES30070824,REDACTED UNDER DP ACT,7560.88,BRIARCROFT,90534,,People Services,Care Spot - Private (3rd),5701,B
18,Devon County Council,28/11/2012,CFADRES30071506,REDACTED UNDER DP ACT,7560.88,BRIARCROFT,90534,,People Services,Care Spot - Private (3rd),5701,B
18,Devon County Council,13/11/2012,FINTBAD30468439,SI171856,2244.58,BRIDGE & LINDSEY,272202,185664426,People Services,Equipment - Private (3rd),5741,BUSN
18,Devon County Council,30/11/2012,FINTBAD30468738,SI167216,802.27,BRIDGE & LINDSEY,272202,185664426,People Services,Equipment - Private (3rd),5741,BUSN
18,Devon County Council,27/11/2012,EARLYRS30234209,Aut 2 84037,3343.88,BRIDGERULE EARLY YEARS,277433,,People Services,Payments to Vol Providers (3rd),5501,EDUC
18,Devon County Council,27/11/2012,EARLYRS30234210,Aut 2 84038,2987.59,BRIGHT START PRE-SCHOOL CHIVENOR,29420,,People Services,Payments to Vol Providers (3rd),5501,EY
18,Devon County Council,15/11/2012,ACLCENT30002719,58280232/1,445.23,BRITISH GAS BUSINESS (ELEC),114029,684966762,Place Services,Electricity,2302,LTD
18,Devon County Council,22/11/2012,BRACS30007010,58275181/1,536.88,BRITISH GAS BUSINESS (ELEC),114029,684966762,Corporate Services,Electricity,2302,LTD
18,Devon County Council,22/11/2012,BRACS30007026,58270008/1,618.88,BRITISH GAS BUSINESS (ELEC),114029,684966762,Corporate Services,Electricity,2302,LTD
18,Devon County Council,22/11/2012,BRACS30007029,58308858/1,1857.04,BRITISH GAS BUSINESS (ELEC),114029,684966762,Corporate Services,Electricity,2302,LTD
18,Devon County Council,22/11/2012,BRACS30007034,58254184/1,454.3,BRITISH GAS BUSINESS (ELEC),114029,684966762,Corporate Services,Electricity,2302,LTD
18,Devon County Council,22/11/2012,CYPIHRES30191257,58257897/1,2070.65,BRITISH GAS BUSINESS (ELEC),114029,684966762,People Services,Electricity,2302,LTD
18,Devon County Council,19/11/2012,DIRSUPP30227271,58275003/1,2196.08,BRITISH GAS BUSINESS (ELEC),114029,684966762,Corporate Services,Electricity,2302,LTD
18,Devon County Council,26/11/2012,FACM30435560,57169131/1,440.51,BRITISH GAS BUSINESS (ELEC),114029,684966762,Corporate Services,Electricity,2302,LTD
18,Devon County Council,26/11/2012,FACM30435706,58361629/1,4952.3,BRITISH GAS BUSINESS (ELEC),114029,684966762,Corporate Services,Electricity,2302,LTD
18,Devon County Council,26/11/2012,FACM30435707,58361200/1,1442.19,BRITISH GAS BUSINESS (ELEC),114029,684966762,Corporate Services,Electricity,2302,LTD
18,Devon County Council,20/11/2012,FACM30435724,58314822/1,1251.67,BRITISH GAS BUSINESS (ELEC),114029,684966762,Corporate Services,Electricity,2302,LTD
18,Devon County Council,21/11/2012,FACM30435746,58304905/1,501.46,BRITISH GAS BUSINESS (ELEC),114029,684966762,Corporate Services,Electricity,2302,LTD
18,Devon County Council,28/11/2012,FACM30435815,58575240/1,17794.14,BRITISH GAS BUSINESS (ELEC),114029,684966762,Corporate Services,Electricity,2302,LTD
18,Devon County Council,28/11/2012,FACM30435816,58576300/1,845.95,BRITISH GAS BUSINESS (ELEC),114029,684966762,Corporate Services,Electricity,2302,LTD
18,Devon County Council,22/11/2012,FINEAAD30661917,58268429/1,531.79,BRITISH GAS BUSINESS (ELEC),114029,684966762,People Services,Electricity,2302,LTD
18,Devon County Council,27/11/2012,FINEAAD30661966,58576299/1,511.12,BRITISH GAS BUSINESS (ELEC),114029,684966762,People Services,Electricity,2302,LTD
18,Devon County Council,19/11/2012,FINEXEAD30438222,58068231/1,717.34,BRITISH GAS BUSINESS (ELEC),114029,684966762,People Services,Electricity,2302,LTD
18,Devon County Council,15/11/2012,FINEXEAD30438266,58306162/1,936.94,BRITISH GAS BUSINESS (ELEC),114029,684966762,People Services,Electricity,2302,LTD
18,Devon County Council,16/11/2012,FINEXEAD30438290,58324144/1,1031.46,BRITISH GAS BUSINESS (ELEC),114029,684966762,People Services,Gas,2304,LTD
18,Devon County Council,28/11/2012,FINEXEAD30438347,58578544/1,789.79,BRITISH GAS BUSINESS (ELEC),114029,684966762,People Services,Electricity,2302,LTD
18,Devon County Council,22/11/2012,FINMDAD30441897,58257640/1,913.09,BRITISH GAS BUSINESS (ELEC),114029,684966762,People Services,Electricity,2302,LTD
18,Devon County Council,14/11/2012,FINMDAD30441932,58258852/1,520.75,BRITISH GAS BUSINESS (ELEC),114029,684966762,People Services,Electricity,2302,LTD
18,Devon County Council,27/11/2012,FINMDAD30441968,58324360/1,1241.97,BRITISH GAS BUSINESS (ELEC),114029,684966762,People Services,Gas,2304,LTD
18,Devon County Council,05/11/2012,FINNDAD30450805,50558254/2,802.8,BRITISH GAS BUSINESS (ELEC),114029,684966762,People Services,Electricity,2302,LTD
18,Devon County Council,05/11/2012,FINNDAD30450819,57182411/2,738.03,BRITISH GAS BUSINESS (ELEC),114029,684966762,People Services,Electricity,2302,LTD
18,Devon County Council,01/11/2012,FINNDAD30451060,58026060/1,543.48,BRITISH GAS BUSINESS (ELEC),114029,684966762,People Services,Electricity,2302,LTD
18,Devon County Council,07/11/2012,FINNDAD30451116,58068208/1,944.37,BRITISH GAS BUSINESS (ELEC),114029,684966762,People Services,Electricity,2302,LTD
18,Devon County Council,22/11/2012,FINNDAD30451255,583148181/1,1051.73,BRITISH GAS BUSINESS (ELEC),114029,684966762,People Services,Electricity,2302,LTD
18,Devon County Council,19/11/2012,FINNDAD30451396,58254069/1,717.25,BRITISH GAS BUSINESS (ELEC),114029,684966762,People Services,Electricity,2302,LTD
18,Devon County Council,22/11/2012,FINNDAD30451469,58275005/1,599.47,BRITISH GAS BUSINESS (ELEC),114029,684966762,People Services,Electricity,2302,LTD
18,Devon County Council,15/11/2012,FINSWAD30464048,58268255/1,1129.83,BRITISH GAS BUSINESS (ELEC),114029,684966762,People Services,Electricity,2302,LTD
18,Devon County Council,23/11/2012,FINSWAD30464126,58576298/1,679.33,BRITISH GAS BUSINESS (ELEC),114029,684966762,People Services,Electricity,2302,LTD
18,Devon County Council,06/11/2012,FINTBAD30468224,57705694/1,785.42,BRITISH GAS BUSINESS (ELEC),114029,684966762,People Services,Gas,2304,LTD
18,Devon County Council,06/11/2012,FINTBAD30468322,58081639/1,914.15,BRITISH GAS BUSINESS (ELEC),114029,684966762,People Services,Electricity,2302,LTD
18,Devon County Council,14/11/2012,FINTBAD30468447,58268684/1,725.33,BRITISH GAS BUSINESS (ELEC),114029,684966762,People Services,Electricity,2302,LTD
18,Devon County Council,22/11/2012,FINTBAD30468508,58254065/1,704.9,BRITISH GAS BUSINESS (ELEC),114029,684966762,People Services,Electricity,2302,LTD
18,Devon County Council,22/11/2012,FINTBAD30468561,58257641/1,659.77,BRITISH GAS BUSINESS (ELEC),114029,684966762,People Services,Electricity,2302,LTD
18,Devon County Council,23/11/2012,FNNDMHLD30475590,58257976/1,576.23,BRITISH GAS BUSINESS (ELEC),114029,684966762,People Services,Gas,2304,LTD
18,Devon County Council,22/11/2012,GMHFM30485737,58309156/1,7593.16,BRITISH GAS BUSINESS (ELEC),114029,684966762,Corporate Services,Electricity,2302,LTD
18,Devon County Council,22/11/2012,YOTHQ30652921,58268254/1,934.59,BRITISH GAS BUSINESS (ELEC),114029,684966762,People Services,Gas,2304,LTD
18,Devon County Council,27/11/2012,YOUTHEST30655263,58269320/1,498.3,BRITISH GAS BUSINESS (ELEC),114029,684966762,People Services,Electricity,2302,LTD
18,Devon County Council,27/11/2012,YOUTHSTH20463161,58261502/1,484.79,BRITISH GAS BUSINESS (ELEC),114029,684966762,People Services,Electricity,2302,LTD
18,Devon County Council,27/11/2012,YOUTHSTH20463164,58299498/1,467.67,BRITISH GAS BUSINESS (ELEC),114029,684966762,People Services,Electricity,2302,LTD
18,Devon County Council,23/11/2012,FACM30435705,58324355/1,2109.08,BRITISH GAS BUSINESS (GAS),181102,684966762,Corporate Services,Gas,2304,BUSN
18,Devon County Council,21/11/2012,FACM30435751,58325797/1,971.7,BRITISH GAS BUSINESS (GAS),181102,684966762,Corporate Services,Gas,2304,BUSN
18,Devon County Council,28/11/2012,FACM30435812,58235435/1,675,BRITISH GAS BUSINESS (GAS),181102,684966762,Corporate Services,Gas,2304,BUSN
18,Devon County Council,23/11/2012,FINEAAD30661874,58324112/1,1121.42,BRITISH GAS BUSINESS (GAS),181102,684966762,People Services,Gas,2304,BUSN
18,Devon County Council,19/11/2012,FINEAAD30661890,58324143/1,975.56,BRITISH GAS BUSINESS (GAS),181102,684966762,People Services,Gas,2304,BUSN
18,Devon County Council,23/11/2012,FINEXEAD30438316,58324365/1,1123.83,BRITISH GAS BUSINESS (GAS),181102,684966762,People Services,Gas,2304,BUSN
18,Devon County Council,27/11/2012,FINEXEAD30438323,58325749/1,1405.62,BRITISH GAS BUSINESS (GAS),181102,684966762,People Services,Gas,2304,BUSN
18,Devon County Council,22/11/2012,FINMDAD30441902,58254178/1,944.22,BRITISH GAS BUSINESS (GAS),181102,684966762,People Services,Electricity,2302,BUSN
18,Devon County Council,23/11/2012,FINMDAD30441933,58324104/1,1151.75,BRITISH GAS BUSINESS (GAS),181102,684966762,People Services,Gas,2304,BUSN
18,Devon County Council,23/11/2012,FINNDAD30451288,58325446/1,1053.21,BRITISH GAS BUSINESS (GAS),181102,684966762,People Services,Gas,2304,BUSN
18,Devon County Council,23/11/2012,FINNDAD30451294,58325455/1,1389.23,BRITISH GAS BUSINESS (GAS),181102,684966762,People Services,Gas,2304,BUSN
18,Devon County Council,23/11/2012,FINNDAD30451326,58325798/1,1108.19,BRITISH GAS BUSINESS (GAS),181102,684966762,People Services,Gas,2304,BUSN
18,Devon County Council,23/11/2012,FINNDAD30451472,58324120/1,1401.68,BRITISH GAS BUSINESS (GAS),181102,684966762,People Services,Gas,2304,BUSN
18,Devon County Council,27/11/2012,FINNDAD30451569,58325454/1,1907.32,BRITISH GAS BUSINESS (GAS),181102,684966762,People Services,Gas,2304,BUSN
18,Devon County Council,22/11/2012,FINSWAD30464036,58268331/1,974.35,BRITISH GAS BUSINESS (GAS),181102,684966762,People Services,Electricity,2302,BUSN
18,Devon County Council,23/11/2012,FINSWAD30464037,58324142/1,1418.29,BRITISH GAS BUSINESS (GAS),181102,684966762,People Services,Gas,2304,BUSN
18,Devon County Council,19/11/2012,FINSWAD30464061,58325774/1,1190.54,BRITISH GAS BUSINESS (GAS),181102,684966762,People Services,Gas,2304,BUSN
18,Devon County Council,22/11/2012,FINTBAD30468559,58325491/1,1047.21,BRITISH GAS BUSINESS (GAS),181102,684966762,People Services,Gas,2304,BUSN
18,Devon County Council,19/11/2012,FNEAMHLD30471121,58324347/1,527.88,BRITISH GAS BUSINESS (GAS),181102,684966762,People Services,Gas,2304,BUSN
18,Devon County Council,27/11/2012,FNEXMHLD30473031,58324122/1,510.82,BRITISH GAS BUSINESS (GAS),181102,684966762,People Services,Gas,2304,BUSN
18,Devon County Council,23/11/2012,FNNDMHLD30475573,58324094/1,743.92,BRITISH GAS BUSINESS (GAS),181102,684966762,People Services,Gas,2304,BUSN
18,Devon County Council,23/11/2012,GMHFM30485754,58324341/1,2676.42,BRITISH GAS BUSINESS (GAS),181102,684966762,Corporate Services,Gas,2304,BUSN
18,Devon County Council,08/11/2012,LIBHQ30550465,58068360/1,1671.98,BRITISH GAS BUSINESS (GAS),181102,684966762,Place Services,Electricity,2302,BUSN
18,Devon County Council,23/11/2012,LIBHQ30550643,58310716/1,590.29,BRITISH GAS BUSINESS (GAS),181102,684966762,Place Services,Electricity,2302,BUSN
18,Devon County Council,23/11/2012,LIBHQ30550651,58299142/1,1271.31,BRITISH GAS BUSINESS (GAS),181102,684966762,Place Services,Electricity,2302,BUSN
18,Devon County Council,23/11/2012,LIBHQ30550656,58324370/1,749.44,BRITISH GAS BUSINESS (GAS),181102,684966762,Place Services,Gas,2304,BUSN
18,Devon County Council,23/11/2012,LIBHQ30550658,58325779/1,1692.5,BRITISH GAS BUSINESS (GAS),181102,684966762,Place Services,Gas,2304,BUSN
18,Devon County Council,20/11/2012,LIBHQ30550549,139694924,607.55,BRITISH LIBRARY (ACCNTS REC),79110,240692764,Place Services,Grants Paid,4802,WGA
18,Devon County Council,01/11/2012,FINNDAD30450921,650030172,5776.59,BRITISH RED CROSS (PAISLEY),143054,706926227,People Services,Payments to Vol Providers (3rd),5501,BUSN
18,Devon County Council,21/11/2012,FINNDAD30451460,650028650,5906.62,BRITISH RED CROSS (PAISLEY),143054,706926227,People Services,Payments to Vol Providers (3rd),5501,BUSN
18,Devon County Council,21/11/2012,FINNDAD30451461,650028654,6108.34,BRITISH RED CROSS (PAISLEY),143054,706926227,People Services,Payments to Vol Providers (3rd),5501,BUSN
18,Devon County Council,20/11/2012,FINTBAD30468532,650031971,2298.46,BRITISH RED CROSS (PAISLEY),143054,706926227,People Services,Equipment - Private (3rd),5741,BUSN
18,Devon County Council,08/11/2012,CYPEELOC30183051,WW32877110Q015,426.97,BRITISH TELECOM (BILL PAYMNTS),4558,,People Services,Telephones (Excl Mobiles & Smart Phones),4502,PLC
18,Devon County Council,19/11/2012,FINNDAD30451401,WW31231786Q0350,979.92,BRITISH TELECOM (DURHAM),90875,,People Services,Telephones (Excl Mobiles & Smart Phones),4502,PLC
18,Devon County Council,12/11/2012,DITS30229714,790079855,458.07,BRITISH TELECOM GLOBAL SERVICES,218884,245719348,Corporate Services,Other Communications costs,4521,BUSN
18,Devon County Council,27/11/2012,EARLYRS30234211,Aut 2 84039,10404.68,BROADCLYST PRE SCHOOL,39157,,People Services,Payments to Vol Providers (3rd),5501,EY
18,Devon County Council,28/11/2012,EDUC30242743,CLASS12/31614,10766,BROADCLYST PRIMARY ACADEMY TRUST,267196,,People Services,Detailed & Exceptional Arrangements,9052,EDUC
18,Devon County Council,12/11/2012,COMMUNTY30174050,ED08/040,1300,BROADHEMBURY PARISH COUNCIL,7425,,Place Services,Grants Paid,4802,PRSH
18,Devon County Council,27/11/2012,EARLYRS30234212,Aut 2 84040,564,BROADHEMPSTON PRE SCHOOL,39636,,People Services,Payments to Vol Providers (3rd),5501,EY
18,Devon County Council,28/11/2012,CFADRES30069965,REDACTED UNDER DP ACT,6056.43,BROADREACH HOUSE,87099,,People Services,Care Spot - Private (3rd),5701,B
18,Devon County Council,28/11/2012,CFADRES30070650,REDACTED UNDER DP ACT,1390,BROADREACH HOUSE,87099,,People Services,Care Spot - Private (3rd),5701,B
18,Devon County Council,28/11/2012,CFADRES30071333,REDACTED UNDER DP ACT,3872.14,BROADREACH HOUSE,87099,,People Services,Care Spot - Private (3rd),5701,B
18,Devon County Council,28/11/2012,CFADRES17332356,REDACTED UNDER DP ACT,-8354.9,BROADREACH HOUSE,87099,,People Services,Care Spot - Private (3rd),5701,B
18,Devon County Council,27/11/2012,CFCLEAV30117871,REDACTED UNDER DP ACT,525,BRONTE HOTEL THE,298679,,People Services,Cl-Unsupported Accom-Rel Child (3rd),5772,HOTL
18,Devon County Council,14/11/2012,CFADRES30070742,REDACTED UNDER DP ACT,8898.65,BRONTE RESIDENTIAL CARE HOME,89647,,People Services,Care Spot - Private (3rd),5701,B
18,Devon County Council,28/11/2012,CFADRES30071424,REDACTED UNDER DP ACT,8898.66,BRONTE RESIDENTIAL CARE HOME,89647,,People Services,Care Spot - Private (3rd),5701,B
18,Devon County Council,14/11/2012,CFADRES30071032,REDACTED UNDER DP ACT,2862,BROOK LODGE,186523,,People Services,Care Spot - Private (3rd),5701,B
18,Devon County Council,28/11/2012,CFADRES30071711,REDACTED UNDER DP ACT,2862,BROOK LODGE,186523,,People Services,Care Spot - Private (3rd),5701,B
18,Devon County Council,09/11/2012,DPSCITT30230652,BURS02,500,BROWN,295664,,People Services,Miscellaneous expenditure,4901,INDV
18,Devon County Council,28/11/2012,CFSUPP30171494,REDACTED UNDER DP ACT,1924.48,BROWN,120559,,People Services,Floating Support Service (3rd),5708,INDV
18,Devon County Council,23/11/2012,LEGAL30547202,31528,1650,BRYAN CARMEL,298753,783620712,People Services,Legal Fees & Disbursements,4314,SOLE
18,Devon County Council,19/11/2012,CYPNMLOC30197766,3076,20648.57,BRYN MELYN CARE LTD,289539,,People Services,Residential Care - Private (3rd),5731,LTD
18,Devon County Council,22/11/2012,CYPNMLOC30197797,3067,7085.71,BRYN MELYN CARE LTD,289539,,People Services,Residential Care - Private (3rd),5731,LTD
18,Devon County Council,27/11/2012,EARLYRS30234215,Aut 2 84043,1926.57,BUCKLAND & MONACHORUM PRE-SCHOOL,66799,,People Services,Payments to Vol Providers (3rd),5501,EY
18,Devon County Council,27/11/2012,EARLYRS30234214,Aut 2 84042,2343.94,BUCKLAND BREWER UNDER FIVES,37711,,People Services,Payments to Vol Providers (3rd),5501,EY
18,Devon County Council,27/11/2012,EARLYRS30234217,Aut 2 84045,2953.92,BUDDIES,208825,,People Services,Payments to Vol Providers (3rd),5501,EY
18,Devon County Council,27/11/2012,CYPEELOC30183334,Oct-91,666.27,BUILDCARE PLUS LTD,252096,,People Services,Other Building Maintenance,2251,LTD
18,Devon County Council,05/11/2012,YOUTHSTH20463120,LYN2012_13,6000,BUNGALOW YOUTH PROJECT,119040,,People Services,Grants Paid,4802,BUSN
18,Devon County Council,14/11/2012,CFADRES30070899,REDACTED UNDER DP ACT,1536.6,BUPA CARE HOMES LTD/AYLESHAM CRT,102126,,People Services,Care Spot - Private (3rd),5701,B
18,Devon County Council,28/11/2012,CFADRES30071580,REDACTED UNDER DP ACT,1536.6,BUPA CARE HOMES LTD/AYLESHAM CRT,102126,,People Services,Care Spot - Private (3rd),5701,B
18,Devon County Council,07/11/2012,CFADDAY30022274,REDACTED UNDER DP ACT,732.24,BURDON GRANGE,203246,,People Services,Care Spot - Private (3rd),5701,B
18,Devon County Council,05/11/2012,CFADDOM30046253,REDACTED UNDER DP ACT,2140.32,BURDON GRANGE,203246,,People Services,Care Spot - Private (3rd),5701,B
18,Devon County Council,05/11/2012,CFADDOM30046254,REDACTED UNDER DP ACT,1612.1,BURDON GRANGE,203246,,People Services,Care Spot - Private (3rd),5701,B
18,Devon County Council,05/11/2012,CFADDOM30046257,REDACTED UNDER DP ACT,562.52,BURDON GRANGE,203246,,People Services,Care Spot - Private (3rd),5701,B
18,Devon County Council,05/11/2012,CFADDOM30046259,REDACTED UNDER DP ACT,1056.44,BURDON GRANGE,203246,,People Services,Care Spot - Private (3rd),5701,B
18,Devon County Council,05/11/2012,CFADDOM30046260,REDACTED UNDER DP ACT,2195.2,BURDON GRANGE,203246,,People Services,Care Spot - Private (3rd),5701,B
18,Devon County Council,05/11/2012,CFADDOM30046261,REDACTED UNDER DP ACT,1152.48,BURDON GRANGE,203246,,People Services,Care Spot - Private (3rd),5701,B
18,Devon County Council,05/11/2012,CFADDOM30046263,REDACTED UNDER DP ACT,1152.48,BURDON GRANGE,203246,,People Services,Care Spot - Private (3rd),5701,B
18,Devon County Council,26/11/2012,CFADDOM30047498,REDACTED UNDER DP ACT,1056.44,BURDON GRANGE,203246,,People Services,Care Spot - Private (3rd),5701,B
18,Devon County Council,26/11/2012,CFADDOM30047499,REDACTED UNDER DP ACT,806.05,BURDON GRANGE,203246,,People Services,Care Spot - Private (3rd),5701,B
18,Devon County Council,26/11/2012,CFADDOM30047500,REDACTED UNDER DP ACT,1591.52,BURDON GRANGE,203246,,People Services,Care Spot - Private (3rd),5701,B
18,Devon County Council,26/11/2012,CFADDOM30047503,REDACTED UNDER DP ACT,2497.04,BURDON GRANGE,203246,,People Services,Care Spot - Private (3rd),5701,B
18,Devon County Council,26/11/2012,CFADDOM30047504,REDACTED UNDER DP ACT,507.64,BURDON GRANGE,203246,,People Services,Care Spot - Private (3rd),5701,B
18,Devon County Council,26/11/2012,CFADDOM30047511,REDACTED UNDER DP ACT,576.24,BURDON GRANGE,203246,,People Services,Care Spot - Private (3rd),5701,B
18,Devon County Council,26/11/2012,CFADDOM30047513,REDACTED UNDER DP ACT,1152.48,BURDON GRANGE,203246,,People Services,Care Spot - Private (3rd),5701,B
18,Devon County Council,12/11/2012,CFADDAY30022400,REDACTED UNDER DP ACT,730.56,BURLINGTON CARE,160108,,People Services,Individualised Support - Private (3rd),5706,B
18,Devon County Council,28/11/2012,CFADDAY30023329,REDACTED UNDER DP ACT,730.56,BURLINGTON CARE,160108,,People Services,Individualised Support - Private (3rd),5706,B
18,Devon County Council,14/11/2012,CFADRES30070990,REDACTED UNDER DP ACT,3427.4,BURLINGTON CARE,160108,,People Services,Care Spot - Private (3rd),5701,B
18,Devon County Council,28/11/2012,CFADRES30071670,REDACTED UNDER DP ACT,3427.4,BURLINGTON CARE,160108,,People Services,Care Spot - Private (3rd),5701,B
18,Devon County Council,14/11/2012,CFADRES30070996,REDACTED UNDER DP ACT,874.92,BURNHAM NURSING & RESIDNTL CENTR,164760,,People Services,Care Spot - Private (3rd),5701,B
18,Devon County Council,28/11/2012,CFADRES30071676,REDACTED UNDER DP ACT,874.92,BURNHAM NURSING & RESIDNTL CENTR,164760,,People Services,Care Spot - Private (3rd),5701,B
18,Devon County Council,14/11/2012,CFADRES30070657,REDACTED UNDER DP ACT,7280.27,BURROW DOWN SUPPORT SERVICES LTD,87371,,People Services,Care Spot - Private (3rd),5701,B
18,Devon County Council,28/11/2012,CFADRES30071340,REDACTED UNDER DP ACT,7636.66,BURROW DOWN SUPPORT SERVICES LTD,87371,,People Services,Care Spot - Private (3rd),5701,B
18,Devon County Council,12/11/2012,CFADDAY30022387,REDACTED UNDER DP ACT,2612.4,BURROW DOWN SUPPORT SERVICES LTD,97049,,People Services,Care Spot - Private (3rd),5701,LTD
18,Devon County Council,28/11/2012,CFADDAY30023277,REDACTED UNDER DP ACT,864.72,BURROW DOWN SUPPORT SERVICES LTD,97049,,People Services,Care Spot - Private (3rd),5701,LTD
18,Devon County Council,28/11/2012,CFADDAY30023279,REDACTED UNDER DP ACT,1722.24,BURROW DOWN SUPPORT SERVICES LTD,97049,,People Services,Care Spot - Private (3rd),5701,LTD
18,Devon County Council,28/11/2012,CFADDAY30023283,REDACTED UNDER DP ACT,2612.4,BURROW DOWN SUPPORT SERVICES LTD,97049,,People Services,Care Spot - Private (3rd),5701,LTD
18,Devon County Council,12/11/2012,DPSCITT30230653,BURS02,500,BURROWS,295665,,People Services,Miscellaneous expenditure,4901,INDV
18,Devon County Council,29/11/2012,HIGHWAYS30502057,BIP860,2825,BUSINESS INFORMATION POINT LTD,74891,786316303,Place Services,Professional Fees,4306,LTD
18,Devon County Council,27/11/2012,EARLYRS30234220,Aut 2 84048,773.24,BUSY BEE PLAYGROUP (HONITON),40037,,People Services,Payments to Vol Providers (3rd),5501,EY
18,Devon County Council,27/11/2012,EARLYRS30234221,Aut 2a 84001,5913,BUSY OTTERS PGRP,42193,,People Services,Payments to Vol Providers (3rd),5501,EY
18,Devon County Council,12/11/2012,HIGHWAYS30499785,104390,1785,C A TRAFFIC LTD,5629,650622557,Place Services,Equipment,4001,LTD
18,Devon County Council,16/11/2012,HIGHWAYS30500071,104420,495,C A TRAFFIC LTD,5629,650622557,Place Services,Equipment,4001,LTD
18,Devon County Council,28/11/2012,FACM30435826,28556,1593.24,C C H PROPERTIES CO LTD,238243,,Corporate Services,Rents & other landlord charges payable,2321,BUSN
18,Devon County Council,12/11/2012,CFADDAY30022309,REDACTED UNDER DP ACT,4636.8,C E D A / FORMALLY RISE SW,12641,,People Services,Care Spot - Private (3rd),5701,BUSN
18,Devon County Council,12/11/2012,CFADDAY30022310,REDACTED UNDER DP ACT,992,C E D A / FORMALLY RISE SW,12641,,People Services,Care Spot - Private (3rd),5701,BUSN
18,Devon County Council,12/11/2012,CFADDAY30022311,REDACTED UNDER DP ACT,888.8,C E D A / FORMALLY RISE SW,12641,,People Services,Care Spot - Private (3rd),5701,BUSN
18,Devon County Council,12/11/2012,CFADDAY30022313,REDACTED UNDER DP ACT,600.72,C E D A / FORMALLY RISE SW,12641,,People Services,Care Spot - Private (3rd),5701,BUSN
18,Devon County Council,12/11/2012,CFADDAY30022314,REDACTED UNDER DP ACT,881.6,C E D A / FORMALLY RISE SW,12641,,People Services,Care Spot - Private (3rd),5701,BUSN
18,Devon County Council,28/11/2012,CFADDAY30023189,REDACTED UNDER DP ACT,522.72,C E D A / FORMALLY RISE SW,12641,,People Services,Care Spot - Private (3rd),5701,BUSN
18,Devon County Council,28/11/2012,CFADDAY30023191,REDACTED UNDER DP ACT,772.08,C E D A / FORMALLY RISE SW,12641,,People Services,Care Spot - Private (3rd),5701,BUSN
18,Devon County Council,28/11/2012,CFADDAY30023192,REDACTED UNDER DP ACT,1371.2,C E D A / FORMALLY RISE SW,12641,,People Services,Care Spot - Private (3rd),5701,BUSN
18,Devon County Council,28/11/2012,CFADDAY30023194,REDACTED UNDER DP ACT,696.96,C E D A / FORMALLY RISE SW,12641,,People Services,Care Spot - Private (3rd),5701,BUSN
18,Devon County Council,28/11/2012,CFADDAY30023197,REDACTED UNDER DP ACT,500.6,C E D A / FORMALLY RISE SW,12641,,People Services,Care Spot - Private (3rd),5701,BUSN
18,Devon County Council,28/11/2012,CFADDAY30023198,REDACTED UNDER DP ACT,600.72,C E D A / FORMALLY RISE SW,12641,,People Services,Care Spot - Private (3rd),5701,BUSN
18,Devon County Council,28/11/2012,CFADDAY30023199,REDACTED UNDER DP ACT,881.6,C E D A / FORMALLY RISE SW,12641,,People Services,Care Spot - Private (3rd),5701,BUSN
18,Devon County Council,16/11/2012,CYPNMLOC30197805,13132,7639.62,C E D A / FORMALLY RISE SW,12641,,People Services,Care Other - Private (3rd),5705,BUSN
18,Devon County Council,28/11/2012,CYPNMLOC30198089,13139,3797.85,C E D A / FORMALLY RISE SW,12641,,People Services,Care Other - Private (3rd),5705,BUSN
18,Devon County Council,21/11/2012,DHRP30223963,E363877/N,699,C I P D,215923,,Corporate Services,Training inc Travel Costs,1802,BUSN
18,Devon County Council,06/11/2012,FACM30435602,3070645,1395,C I P F A,6734,627390725,Corporate Services,Subscriptions,4801,BUSN
18,Devon County Council,19/11/2012,ACLCENT30002697,A5294,938,C P C A B LTD (GLASTONBURY),77816,,Place Services,Course / Exam Fees & Registration,4312,LTD
18,Devon County Council,19/11/2012,ACLCENT30002698,A5295,1072,C P C A B LTD (GLASTONBURY),77816,,Place Services,Course / Exam Fees & Registration,4312,LTD
18,Devon County Council,30/11/2012,ACLCENT30002840,A5384,1340,C P C A B LTD (GLASTONBURY),77816,,Place Services,Course / Exam Fees & Registration,4312,LTD
18,Devon County Council,30/11/2012,RECSERV30603201,6043668,922.66,CALIBRE RANDSTAD,268820,535564042,Corporate Services,External Agency Staff,4321,LTD
18,Devon County Council,02/11/2012,EARLYRS30234121,3818,8864,CALL OF THE WILD ADV ACTVTS LTD,185877,720712079,People Services,Course / Exam Fees & Registration,4312,LTD
18,Devon County Council,14/11/2012,CFADRES30070962,REDACTED UNDER DP ACT,821.34,CALWAY HOUSE,148915,,People Services,Care Spot - Private (3rd),5701,LTD
18,Devon County Council,28/11/2012,CFADRES30071642,REDACTED UNDER DP ACT,821.34,CALWAY HOUSE,148915,,People Services,Care Spot - Private (3rd),5701,LTD
18,Devon County Council,14/11/2012,CFADRES30071117,REDACTED UNDER DP ACT,2020.2,CAMBERLEY COTTAGE,229198,,People Services,Care Spot - Private (3rd),5701,B
18,Devon County Council,28/11/2012,CFADRES30071794,REDACTED UNDER DP ACT,2020.2,CAMBERLEY COTTAGE,229198,,People Services,Care Spot - Private (3rd),5701,B
18,Devon County Council,09/11/2012,CYPNMLOC30197789,32,19043.1,CAMBIAN SIGNPOST LTD,294584,,People Services,Residential Care - Private (3rd),5731,LTD
18,Devon County Council,27/11/2012,CYPNMLOC30198036,INV000041,19677.87,CAMBIAN SIGNPOST LTD,294584,,People Services,Residential Care - Private (3rd),5731,LTD
18,Devon County Council,27/11/2012,CYPNMLOC30198066,INV000047,18865.67,CAMBIAN SIGNPOST LTD,294584,,People Services,Residential Care - Private (3rd),5731,LTD
18,Devon County Council,27/11/2012,CYPNMLOC30198067,INV000046,18865.67,CAMBIAN SIGNPOST LTD,294584,,People Services,Residential Care - Private (3rd),5731,LTD
18,Devon County Council,14/11/2012,CFADRES30070958,REDACTED UNDER DP ACT,5502.16,CAMELOT HOUSE EMI NURSING HOME,144364,,People Services,Care Spot - Private (3rd),5701,B
18,Devon County Council,14/11/2012,CFADRES30071075,REDACTED UNDER DP ACT,2630,CAMPANIA CARE HOME,204943,,People Services,Care Spot - Private (3rd),5701,B
18,Devon County Council,28/11/2012,CFADRES30071752,REDACTED UNDER DP ACT,2630,CAMPANIA CARE HOME,204943,,People Services,Care Spot - Private (3rd),5701,B
18,Devon County Council,09/11/2012,DPSCITT30230654,BURS02,500,CAMPEY,295666,,People Services,Miscellaneous expenditure,4901,INDV
18,Devon County Council,21/11/2012,CFADDAY30022991,REDACTED UNDER DP ACT,1725,CAMPHILL DEVON COMMUNITY LTD,105994,,People Services,Care Spot - Private (3rd),5701,B
18,Devon County Council,21/11/2012,CFADDAY30022992,REDACTED UNDER DP ACT,759,CAMPHILL DEVON COMMUNITY LTD,105994,,People Services,Care Spot - Private (3rd),5701,B
18,Devon County Council,21/11/2012,CFADDAY30022993,REDACTED UNDER DP ACT,1224,CAMPHILL DEVON COMMUNITY LTD,105994,,People Services,Individualised Support - Private (3rd),5706,B
18,Devon County Council,21/11/2012,CFADDAY30022994,REDACTED UNDER DP ACT,1268.16,CAMPHILL DEVON COMMUNITY LTD,105994,,People Services,Individualised Support - Private (3rd),5706,B
18,Devon County Council,21/11/2012,CFADDAY30022995,REDACTED UNDER DP ACT,951.12,CAMPHILL DEVON COMMUNITY LTD,105994,,People Services,Care Spot - Private (3rd),5701,B
18,Devon County Council,14/11/2012,CFADRES30070912,REDACTED UNDER DP ACT,16981.02,CAMPHILL DEVON COMMUNITY LTD,105994,,People Services,Care Spot - Private (3rd),5701,B
18,Devon County Council,28/11/2012,CFADRES30071592,REDACTED UNDER DP ACT,16981.02,CAMPHILL DEVON COMMUNITY LTD,105994,,People Services,Care Spot - Private (3rd),5701,B
18,Devon County Council,21/11/2012,CFADDAY17331861,REDACTED UNDER DP ACT,-819,CAMPHILL DEVON COMMUNITY LTD,105994,,People Services,Care Spot - Private (3rd),5701,B
18,Devon County Council,28/11/2012,CFSUPP30171418,REDACTED UNDER DP ACT,1121.52,CAMPHILL DEVON COMMUNITY LTD,62522,,People Services,Accomodation Based Services (3rd),5707,LTD
18,Devon County Council,02/11/2012,EDG30240931,2754,834,CAN NETWORKS (NOT ONE BILL PMTS),219812,728885184,Place Services,Other Contractors (not Main / Term),4302,LTD
18,Devon County Council,14/11/2012,CFADRES30071270,REDACTED UNDER DP ACT,1150,CANFORD CLIFFS REST HOME,292349,,People Services,Care Spot - Private (3rd),5701,B
18,Devon County Council,28/11/2012,CFADRES30071946,REDACTED UNDER DP ACT,1150,CANFORD CLIFFS REST HOME,292349,,People Services,Care Spot - Private (3rd),5701,B
18,Devon County Council,14/11/2012,CFADRES30070622,REDACTED UNDER DP ACT,567.86,CANN HOUSE,35243,,People Services,Care Spot - Private (3rd),5701,BUSN
18,Devon County Council,08/11/2012,DITS30229716,116042,514.66,CANNINGS & SON LTD I J,14467,,Corporate Services,Other Contractors (not Main / Term),4302,LTD
18,Devon County Council,16/11/2012,DITS30229730,116181,472,CANNINGS & SON LTD I J,14467,,Corporate Services,Other Contractors (not Main / Term),4302,LTD
18,Devon County Council,21/11/2012,DITS30229750,116533,1146.77,CANNINGS & SON LTD I J,14467,,Corporate Services,Other Contractors (not Main / Term),4302,LTD
18,Devon County Council,20/11/2012,FINNDAD30451441,116284,567,CANNINGS & SON LTD I J,14467,,People Services,Minor Improvements,2261,LTD
18,Devon County Council,01/11/2012,GMHFM30485658,115954,534.7,CANNINGS & SON LTD I J,14467,,Corporate Services,Other Building Maintenance,2251,LTD
18,Devon County Council,12/11/2012,GMHFM30485716,116090,913.6,CANNINGS & SON LTD I J,14467,,Corporate Services,Other Building Maintenance,2251,LTD
18,Devon County Council,19/11/2012,GMHFM30485760,116487,443.76,CANNINGS & SON LTD I J,14467,,Corporate Services,Other Building Maintenance,2251,LTD
18,Devon County Council,20/11/2012,LIBSOUTH30553293,116360,447.17,CANNINGS & SON LTD I J,14467,,Place Services,Other Building Maintenance,2251,LTD
18,Devon County Council,02/11/2012,NPSWI30564621,115622A,2812,CANNINGS & SON LTD I J,14467,,People Services,Service Term Contracts,2201,LTD
18,Devon County Council,02/11/2012,NPSWI30564622,115622C,4271,CANNINGS & SON LTD I J,14467,,Corporate Services,Service Term Contracts,2201,LTD
18,Devon County Council,05/11/2012,NPSWI30564628,115868,2892.88,CANNINGS & SON LTD I J,14467,,Corporate Services,Building Mtce Works - unforseen,2101,LTD
18,Devon County Council,08/11/2012,NPSWI30564664,115851,610.8,CANNINGS & SON LTD I J,14467,,Corporate Services,Building Mtce Works - unforseen,2101,LTD
18,Devon County Council,14/11/2012,NPSWI30564750,115946,3935,CANNINGS & SON LTD I J,14467,,Corporate Services,Service Term Contracts,2201,LTD
18,Devon County Council,16/11/2012,NPSWI30564819,116118,449.45,CANNINGS & SON LTD I J,14467,,People Services,Building Mtce Works - unforseen,2101,LTD
18,Devon County Council,16/11/2012,NPSWI30564820,116083,591.69,CANNINGS & SON LTD I J,14467,,People Services,Building Mtce Works - unforseen,2101,LTD
18,Devon County Council,16/11/2012,NPSWI30564823,116082,561.83,CANNINGS & SON LTD I J,14467,,Corporate Services,Building Mtce Works - unforseen,2101,LTD
18,Devon County Council,16/11/2012,NPSWI30564824,116123,749.82,CANNINGS & SON LTD I J,14467,,Corporate Services,Building Mtce Works - unforseen,2101,LTD
18,Devon County Council,08/11/2012,YOUTHEST30655182,116120,889.15,CANNINGS & SON LTD I J,14467,,People Services,Other Building Maintenance,2251,LTD
18,Devon County Council,26/11/2012,FINTBAD30468565,CN18242875,512.85,CANNON HYGIENE LTD,5765,238034379,People Services,Cleaning Services,2601,LTD
18,Devon County Council,20/11/2012,SCOMIS30613230,92706675,717.92,CAPITA EDUCATION SERVICES LTD,23063,,Corporate Services,IT Licences,4513,LTD
18,Devon County Council,06/11/2012,RECSERV30602968,1396287,847,CAPITA RESOURCING LTD,216927,618184140,Corporate Services,External Agency Staff,4321,LTD
18,Devon County Council,06/11/2012,RECSERV30602969,1396288,861,CAPITA RESOURCING LTD,216927,618184140,Corporate Services,External Agency Staff,4321,LTD
18,Devon County Council,06/11/2012,RECSERV30602970,1396289,928.37,CAPITA RESOURCING LTD,216927,618184140,Corporate Services,External Agency Staff,4321,LTD
18,Devon County Council,15/11/2012,RECSERV30603040,1397197,910,CAPITA RESOURCING LTD,216927,618184140,Corporate Services,External Agency Staff,4321,LTD
18,Devon County Council,15/11/2012,RECSERV30603041,1397198,1164.39,CAPITA RESOURCING LTD,216927,618184140,Corporate Services,External Agency Staff,4321,LTD
18,Devon County Council,15/11/2012,RECSERV30603042,1398046,928.37,CAPITA RESOURCING LTD,216927,618184140,Corporate Services,External Agency Staff,4321,LTD
18,Devon County Council,21/11/2012,RECSERV30603092,1398867,1164.39,CAPITA RESOURCING LTD,216927,618184140,Corporate Services,External Agency Staff,4321,LTD
18,Devon County Council,21/11/2012,RECSERV30603093,1398866,910,CAPITA RESOURCING LTD,216927,618184140,Corporate Services,External Agency Staff,4321,LTD
18,Devon County Council,21/11/2012,RECSERV30603094,1398864,854,CAPITA RESOURCING LTD,216927,618184140,Corporate Services,External Agency Staff,4321,LTD
18,Devon County Council,19/11/2012,CYPSWLOC30209387,6500,4265.1,CAPSTONE FOSTER CARE(STHWEST)LTD,132175,798322487,People Services,Independent Fostering (3rd),5714,LTD
18,Devon County Council,19/11/2012,CYPSWLOC30209388,6572,3566.7,CAPSTONE FOSTER CARE(STHWEST)LTD,132175,798322487,People Services,Independent Fostering (3rd),5714,LTD
18,Devon County Council,19/11/2012,CYPSWLOC30209389,6573,3459.9,CAPSTONE FOSTER CARE(STHWEST)LTD,132175,798322487,People Services,Independent Fostering (3rd),5714,LTD
18,Devon County Council,19/11/2012,CYPSWLOC30209390,6499,4265.1,CAPSTONE FOSTER CARE(STHWEST)LTD,132175,798322487,People Services,Independent Fostering (3rd),5714,LTD
18,Devon County Council,19/11/2012,CYPSWLOC30209391,6570,6235.8,CAPSTONE FOSTER CARE(STHWEST)LTD,132175,798322487,People Services,Independent Fostering (3rd),5714,LTD
18,Devon County Council,19/11/2012,CYPSWLOC30209392,6517,3566.7,CAPSTONE FOSTER CARE(STHWEST)LTD,132175,798322487,People Services,Independent Fostering (3rd),5714,LTD
18,Devon County Council,19/11/2012,CYPSWLOC30209393,6498,3566.7,CAPSTONE FOSTER CARE(STHWEST)LTD,132175,798322487,People Services,Independent Fostering (3rd),5714,LTD
18,Devon County Council,19/11/2012,CYPSWLOC30209394,6495,4265.1,CAPSTONE FOSTER CARE(STHWEST)LTD,132175,798322487,People Services,Independent Fostering (3rd),5714,LTD
18,Devon County Council,19/11/2012,CYPSWLOC30209395,6557,4265.1,CAPSTONE FOSTER CARE(STHWEST)LTD,132175,798322487,People Services,Independent Fostering (3rd),5714,LTD
18,Devon County Council,19/11/2012,CYPSWLOC30209396,6526,4265.1,CAPSTONE FOSTER CARE(STHWEST)LTD,132175,798322487,People Services,Independent Fostering (3rd),5714,LTD
18,Devon County Council,07/11/2012,CFADDAY30022210,REDACTED UNDER DP ACT,791.01,CARASTON HALL,89014,,People Services,Individualised Support - Private (3rd),5706,BUSN
18,Devon County Council,07/11/2012,CFADDAY30022213,REDACTED UNDER DP ACT,1045.77,CARASTON HALL,89014,,People Services,Individualised Support - Private (3rd),5706,BUSN
18,Devon County Council,28/11/2012,CFSUPP30171444,REDACTED UNDER DP ACT,21605.56,CARASTON HALL (S P S PMTS),117830,,People Services,Accomodation Based Services (3rd),5707,BUSN
18,Devon County Council,28/11/2012,CYPNMLOC30197994,1146715-004,1600,CARDIFF UNIVERSITY,92929,615860927,People Services,Other Employee Expenses,1801,UNI
18,Devon County Council,05/11/2012,CFADDAY30022076,REDACTED UNDER DP ACT,1782.44,CARE BLACKERTON,99627,,People Services,Individualised Support - Private (3rd),5706,LTD
18,Devon County Council,05/11/2012,CFADDAY30022077,REDACTED UNDER DP ACT,1782.44,CARE BLACKERTON,99627,,People Services,Individualised Support - Private (3rd),5706,LTD
18,Devon County Council,05/11/2012,CFADDAY30022078,REDACTED UNDER DP ACT,1645.32,CARE BLACKERTON,99627,,People Services,Individualised Support - Private (3rd),5706,LTD
18,Devon County Council,05/11/2012,CFADDAY30022079,REDACTED UNDER DP ACT,1288.84,CARE BLACKERTON,99627,,People Services,Individualised Support - Private (3rd),5706,LTD
18,Devon County Council,05/11/2012,CFADDAY30022080,REDACTED UNDER DP ACT,2001.8,CARE BLACKERTON,99627,,People Services,Individualised Support - Private (3rd),5706,LTD
18,Devon County Council,12/11/2012,CFADDAY30022388,REDACTED UNDER DP ACT,2248,CARE BLACKERTON,99627,,People Services,Individualised Support - Private (3rd),5706,LTD
18,Devon County Council,14/11/2012,CFADDAY30022597,REDACTED UNDER DP ACT,2692.64,CARE BLACKERTON,99627,,People Services,Individualised Support - Private (3rd),5706,LTD
18,Devon County Council,14/11/2012,CFADDAY30022598,REDACTED UNDER DP ACT,2529.32,CARE BLACKERTON,99627,,People Services,Individualised Support - Private (3rd),5706,LTD
18,Devon County Council,14/11/2012,CFADDAY30022599,REDACTED UNDER DP ACT,1346.32,CARE BLACKERTON,99627,,People Services,Individualised Support - Private (3rd),5706,LTD
18,Devon County Council,14/11/2012,CFADDAY30022600,REDACTED UNDER DP ACT,1264.66,CARE BLACKERTON,99627,,People Services,Individualised Support - Private (3rd),5706,LTD
18,Devon County Council,21/11/2012,CFADDAY30022962,REDACTED UNDER DP ACT,2376.13,CARE BLACKERTON,99627,,People Services,Individualised Support - Private (3rd),5706,LTD
18,Devon County Council,21/11/2012,CFADDAY30022963,REDACTED UNDER DP ACT,720,CARE BLACKERTON,99627,,People Services,Individualised Support - Private (3rd),5706,LTD
18,Devon County Council,21/11/2012,CFADDAY30022964,REDACTED UNDER DP ACT,1597.92,CARE BLACKERTON,99627,,People Services,Individualised Support - Private (3rd),5706,LTD
18,Devon County Council,21/11/2012,CFADDAY30022965,REDACTED UNDER DP ACT,1057.68,CARE BLACKERTON,99627,,People Services,Individualised Support - Private (3rd),5706,LTD
18,Devon County Council,21/11/2012,CFADDAY30022966,REDACTED UNDER DP ACT,1461.2,CARE BLACKERTON,99627,,People Services,Individualised Support - Private (3rd),5706,LTD
18,Devon County Council,21/11/2012,CFADDAY30022967,REDACTED UNDER DP ACT,1991.28,CARE BLACKERTON,99627,,People Services,Individualised Support - Private (3rd),5706,LTD
18,Devon County Council,21/11/2012,CFADDAY30022968,REDACTED UNDER DP ACT,1097.6,CARE BLACKERTON,99627,,People Services,Individualised Support - Private (3rd),5706,LTD
18,Devon County Council,21/11/2012,CFADDAY30022969,REDACTED UNDER DP ACT,1124,CARE BLACKERTON,99627,,People Services,Individualised Support - Private (3rd),5706,LTD
18,Devon County Council,21/11/2012,CFADDAY30022970,REDACTED UNDER DP ACT,1837.28,CARE BLACKERTON,99627,,People Services,Individualised Support - Private (3rd),5706,LTD
18,Devon County Council,21/11/2012,CFADDAY30022971,REDACTED UNDER DP ACT,1830,CARE BLACKERTON,99627,,People Services,Individualised Support - Private (3rd),5706,LTD
18,Devon County Council,21/11/2012,CFADDAY30022972,REDACTED UNDER DP ACT,1714.1,CARE BLACKERTON,99627,,People Services,Individualised Support - Private (3rd),5706,LTD
18,Devon County Council,21/11/2012,CFADDAY30022973,REDACTED UNDER DP ACT,1840.76,CARE BLACKERTON,99627,,People Services,Individualised Support - Private (3rd),5706,LTD
18,Devon County Council,21/11/2012,CFADDAY30022974,REDACTED UNDER DP ACT,2001.8,CARE BLACKERTON,99627,,People Services,Individualised Support - Private (3rd),5706,LTD
18,Devon County Council,21/11/2012,CFADDAY30022976,REDACTED UNDER DP ACT,1089.08,CARE BLACKERTON,99627,,People Services,Individualised Support - Private (3rd),5706,LTD
18,Devon County Council,21/11/2012,CFADDAY30022977,REDACTED UNDER DP ACT,1782.44,CARE BLACKERTON,99627,,People Services,Individualised Support - Private (3rd),5706,LTD
18,Devon County Council,21/11/2012,CFADDAY30022978,REDACTED UNDER DP ACT,1267.2,CARE BLACKERTON,99627,,People Services,Individualised Support - Private (3rd),5706,LTD
18,Devon County Council,21/11/2012,CFADDAY30022979,REDACTED UNDER DP ACT,969.45,CARE BLACKERTON,99627,,People Services,Individualised Support - Private (3rd),5706,LTD
18,Devon County Council,21/11/2012,CFADDAY30022980,REDACTED UNDER DP ACT,1175.2,CARE BLACKERTON,99627,,People Services,Individualised Support - Private (3rd),5706,LTD
18,Devon County Council,21/11/2012,CFADDAY30022981,REDACTED UNDER DP ACT,1645.32,CARE BLACKERTON,99627,,People Services,Individualised Support - Private (3rd),5706,LTD
18,Devon County Council,21/11/2012,CFADDAY30022982,REDACTED UNDER DP ACT,1782.44,CARE BLACKERTON,99627,,People Services,Individualised Support - Private (3rd),5706,LTD
18,Devon County Council,21/11/2012,CFADDAY30022984,REDACTED UNDER DP ACT,1605.8,CARE BLACKERTON,99627,,People Services,Individualised Support - Private (3rd),5706,LTD
18,Devon County Council,21/11/2012,CFADDAY30022985,REDACTED UNDER DP ACT,2529.32,CARE BLACKERTON,99627,,People Services,Individualised Support - Private (3rd),5706,LTD
18,Devon County Council,21/11/2012,CFADDAY30022986,REDACTED UNDER DP ACT,2692.64,CARE BLACKERTON,99627,,People Services,Individualised Support - Private (3rd),5706,LTD
18,Devon County Council,21/11/2012,CFADDAY30022987,REDACTED UNDER DP ACT,1288.84,CARE BLACKERTON,99627,,People Services,Individualised Support - Private (3rd),5706,LTD
18,Devon County Council,21/11/2012,CFADDAY30022988,REDACTED UNDER DP ACT,744.65,CARE BLACKERTON,99627,,People Services,Individualised Support - Private (3rd),5706,LTD
18,Devon County Council,21/11/2012,CFADDAY30022990,REDACTED UNDER DP ACT,1573.6,CARE BLACKERTON,99627,,People Services,Individualised Support - Private (3rd),5706,LTD
18,Devon County Council,26/11/2012,CFADDAY30023156,REDACTED UNDER DP ACT,1644.16,CARE BLACKERTON,99627,,People Services,Individualised Support - Private (3rd),5706,LTD
18,Devon County Council,26/11/2012,CFADDAY30023157,REDACTED UNDER DP ACT,1573.6,CARE BLACKERTON,99627,,People Services,Individualised Support - Private (3rd),5706,LTD
18,Devon County Council,26/11/2012,CFADDAY30023158,REDACTED UNDER DP ACT,1106.44,CARE BLACKERTON,99627,,People Services,Individualised Support - Private (3rd),5706,LTD
18,Devon County Council,26/11/2012,CFADDAY30023159,REDACTED UNDER DP ACT,1573.6,CARE BLACKERTON,99627,,People Services,Individualised Support - Private (3rd),5706,LTD
18,Devon County Council,26/11/2012,CFADDAY30023160,REDACTED UNDER DP ACT,1475.25,CARE BLACKERTON,99627,,People Services,Individualised Support - Private (3rd),5706,LTD
18,Devon County Council,26/11/2012,CFADDAY30023161,REDACTED UNDER DP ACT,1644.16,CARE BLACKERTON,99627,,People Services,Individualised Support - Private (3rd),5706,LTD
18,Devon County Council,26/11/2012,CFADDAY30023162,REDACTED UNDER DP ACT,10665.15,CARE BLACKERTON,99627,,People Services,Individualised Support - Private (3rd),5706,LTD
18,Devon County Council,26/11/2012,CFADDAY30023163,REDACTED UNDER DP ACT,2977.62,CARE BLACKERTON,99627,,People Services,Individualised Support - Private (3rd),5706,LTD
18,Devon County Council,14/11/2012,CFADDAY17331872,REDACTED UNDER DP ACT,-904.94,CARE BLACKERTON,99627,,People Services,Individualised Support - Private (3rd),5706,LTD
18,Devon County Council,14/11/2012,CFADDAY17331873,REDACTED UNDER DP ACT,-850.1,CARE BLACKERTON,99627,,People Services,Individualised Support - Private (3rd),5706,LTD
18,Devon County Council,12/11/2012,CFADDOM30046601,REDACTED UNDER DP ACT,1211.76,CARE COMPANY(SW)LTD,209342,,People Services,Care Spot - Private (3rd),5701,B
18,Devon County Council,12/11/2012,CFADDOM30046606,REDACTED UNDER DP ACT,1914.88,CARE COMPANY(SW)LTD,209342,,People Services,Care Spot - Private (3rd),5701,B
18,Devon County Council,12/11/2012,CFADDOM30046609,REDACTED UNDER DP ACT,1159.4,CARE COMPANY(SW)LTD,209342,,People Services,Care Spot - Private (3rd),5701,B
18,Devon County Council,12/11/2012,CFADDOM30046613,REDACTED UNDER DP ACT,542.3,CARE COMPANY(SW)LTD,209342,,People Services,Care Spot - Private (3rd),5701,B
18,Devon County Council,12/11/2012,CFADDOM30046618,REDACTED UNDER DP ACT,680.68,CARE COMPANY(SW)LTD,209342,,People Services,Care Spot - Private (3rd),5701,B
18,Devon County Council,12/11/2012,CFADDOM30046619,REDACTED UNDER DP ACT,1685.5,CARE COMPANY(SW)LTD,209342,,People Services,Care Spot - Private (3rd),5701,B
18,Devon County Council,12/11/2012,CFADDOM30046622,REDACTED UNDER DP ACT,508.64,CARE COMPANY(SW)LTD,209342,,People Services,Care Spot - Private (3rd),5701,B
18,Devon County Council,12/11/2012,CFADDOM30046624,REDACTED UNDER DP ACT,658.24,CARE COMPANY(SW)LTD,209342,,People Services,Care Spot - Private (3rd),5701,B
18,Devon County Council,14/11/2012,CFADDOM30046928,REDACTED UNDER DP ACT,856.46,CARE COMPANY(SW)LTD,209342,,People Services,Care Spot - Private (3rd),5701,B
18,Devon County Council,19/11/2012,CFADDOM30046951,REDACTED UNDER DP ACT,21974.52,CARE INITIATIVE LTD,86726,,People Services,Care Spot - Private (3rd),5701,LTD
18,Devon County Council,19/11/2012,CFADDOM30046952,REDACTED UNDER DP ACT,14579.82,CARE INITIATIVE LTD,86726,,People Services,Care Spot - Private (3rd),5701,LTD
18,Devon County Council,19/11/2012,CFADDOM30046953,REDACTED UNDER DP ACT,5047.19,CARE INITIATIVE LTD,86726,,People Services,Care Spot - Private (3rd),5701,LTD
18,Devon County Council,21/11/2012,CFADDOM30047104,REDACTED UNDER DP ACT,2137.68,CARE INITIATIVE LTD,86726,,People Services,Care Spot - Private (3rd),5701,LTD
18,Devon County Council,21/11/2012,CFADDOM30047105,REDACTED UNDER DP ACT,3819.2,CARE INITIATIVE LTD,86726,,People Services,Care Spot - Private (3rd),5701,LTD
18,Devon County Council,19/11/2012,CFADDOM17332113,REDACTED UNDER DP ACT,-812.5,CARE INITIATIVE LTD,86726,,People Services,Care Spot - Private (3rd),5701,LTD
18,Devon County Council,13/11/2012,FINSSCW30458046,41845232,75600,CARE QUALITY COMMISSION,98218,,People Services,Other Fees & Charges (Expenditure),4311,BUSN
18,Devon County Council,12/11/2012,CFADDOM30046583,REDACTED UNDER DP ACT,1701.7,CARE QUEST (SOUTH WEST) LTD,135215,,People Services,Care Spot - Private (3rd),5701,BUSN
18,Devon County Council,12/11/2012,CFADDOM30046588,REDACTED UNDER DP ACT,770,CARE QUEST (SOUTH WEST) LTD,135215,,People Services,Care Spot - Private (3rd),5701,BUSN
18,Devon County Council,12/11/2012,CFADDOM30046591,REDACTED UNDER DP ACT,754.6,CARE QUEST (SOUTH WEST) LTD,135215,,People Services,Care Spot - Private (3rd),5701,BUSN
18,Devon County Council,12/11/2012,CFADDOM30046593,REDACTED UNDER DP ACT,924,CARE QUEST (SOUTH WEST) LTD,135215,,People Services,Care Spot - Private (3rd),5701,BUSN
18,Devon County Council,12/11/2012,CFADDOM30046594,REDACTED UNDER DP ACT,1093.4,CARE QUEST (SOUTH WEST) LTD,135215,,People Services,Care Spot - Private (3rd),5701,BUSN
18,Devon County Council,12/11/2012,CFADDOM30046595,REDACTED UNDER DP ACT,600.6,CARE QUEST (SOUTH WEST) LTD,135215,,People Services,Care Spot - Private (3rd),5701,BUSN
18,Devon County Council,12/11/2012,CFADDOM30046596,REDACTED UNDER DP ACT,1362.9,CARE QUEST (SOUTH WEST) LTD,135215,,People Services,Care Spot - Private (3rd),5701,BUSN
18,Devon County Council,15/11/2012,RECSERV30603030,2185-TS,1443.4,CARE RECRUITMENT UK LTD,194939,,Corporate Services,External Agency Staff,4321,PLC
18,Devon County Council,15/11/2012,RECSERV30603031,2183-TS,1258,CARE RECRUITMENT UK LTD,194939,,Corporate Services,External Agency Staff,4321,PLC
18,Devon County Council,15/11/2012,RECSERV30603032,2184-TS,1258,CARE RECRUITMENT UK LTD,194939,,Corporate Services,External Agency Staff,4321,PLC
18,Devon County Council,22/11/2012,RECSERV30603101,2080-NB,1219.36,CARE RECRUITMENT UK LTD,194939,,Corporate Services,External Agency Staff,4321,PLC
18,Devon County Council,30/11/2012,RECSERV30603212,2071-BM,2368,CARE RECRUITMENT UK LTD,194939,,Corporate Services,External Agency Staff,4321,PLC
18,Devon County Council,30/11/2012,RECSERV30603213,2186-TS,1258,CARE RECRUITMENT UK LTD,194939,,Corporate Services,External Agency Staff,4321,PLC
18,Devon County Council,30/11/2012,RECSERV30603214,2081-NB,1238.6,CARE RECRUITMENT UK LTD,194939,,Corporate Services,External Agency Staff,4321,PLC
18,Devon County Council,19/11/2012,CFADDOM30047018,REDACTED UNDER DP ACT,7708.69,CARE UK HOMECARE LTD,290329,,People Services,Care Spot - Private (3rd),5701,BUSN
18,Devon County Council,21/11/2012,CFADDOM30047184,REDACTED UNDER DP ACT,2233,CARERS DIRECT (SW) LTD,121278,,People Services,Care Spot - Private (3rd),5701,LTD
18,Devon County Council,19/11/2012,CFADDOM30047011,REDACTED UNDER DP ACT,16446.9,CARETIME SERVICES LIMITED,210505,,People Services,Care Spot - Private (3rd),5701,B
18,Devon County Council,19/11/2012,CFADDOM30047012,REDACTED UNDER DP ACT,18333.95,CARETIME SERVICES LIMITED,210505,,People Services,Care Spot - Private (3rd),5701,B
18,Devon County Council,19/11/2012,CFADDOM30047013,REDACTED UNDER DP ACT,23520.21,CARETIME SERVICES LIMITED,210505,,People Services,Care Spot - Private (3rd),5701,B
18,Devon County Council,19/11/2012,CFADDOM30047014,REDACTED UNDER DP ACT,7609.46,CARETIME SERVICES LIMITED,210505,,People Services,Care Spot - Private (3rd),5701,B
18,Devon County Council,05/11/2012,CFADDOM30046088,REDACTED UNDER DP ACT,785.4,CAREWATCH (TORBAY & SOUTH HAMS),109244,754779674,People Services,Care Spot - Private (3rd),5701,BUSN
18,Devon County Council,05/11/2012,CFADDOM30046021,REDACTED UNDER DP ACT,535.08,CAREWATCH NORTH DEVON & TORRIDGE,88909,,People Services,Care Spot - Private (3rd),5701,BUSN
18,Devon County Council,05/11/2012,CFADDOM30046024,REDACTED UNDER DP ACT,699.71,CAREWATCH NORTH DEVON & TORRIDGE,88909,,People Services,Care Spot - Private (3rd),5701,BUSN
18,Devon County Council,05/11/2012,CFADDOM30046026,REDACTED UNDER DP ACT,775.18,CAREWATCH NORTH DEVON & TORRIDGE,88909,,People Services,Care Spot - Private (3rd),5701,BUSN
18,Devon County Council,05/11/2012,CFADDOM30046028,REDACTED UNDER DP ACT,764.92,CAREWATCH NORTH DEVON & TORRIDGE,88909,,People Services,Care Spot - Private (3rd),5701,BUSN
18,Devon County Council,05/11/2012,CFADDOM30046030,REDACTED UNDER DP ACT,1824.75,CAREWATCH NORTH DEVON & TORRIDGE,88909,,People Services,Care Spot - Private (3rd),5701,BUSN
18,Devon County Council,05/11/2012,CFADDOM30046031,REDACTED UNDER DP ACT,586.53,CAREWATCH NORTH DEVON & TORRIDGE,88909,,People Services,Care Spot - Private (3rd),5701,BUSN
18,Devon County Council,05/11/2012,CFADDOM30046032,REDACTED UNDER DP ACT,507.64,CAREWATCH NORTH DEVON & TORRIDGE,88909,,People Services,Care Spot - Private (3rd),5701,BUSN
18,Devon County Council,05/11/2012,CFADDOM30046035,REDACTED UNDER DP ACT,604.12,CAREWATCH NORTH DEVON & TORRIDGE,88909,,People Services,Care Spot - Private (3rd),5701,BUSN
18,Devon County Council,05/11/2012,CFADDOM30046037,REDACTED UNDER DP ACT,1024.42,CAREWATCH NORTH DEVON & TORRIDGE,88909,,People Services,Care Spot - Private (3rd),5701,BUSN
18,Devon County Council,05/11/2012,CFADDOM30046039,REDACTED UNDER DP ACT,522.52,CAREWATCH NORTH DEVON & TORRIDGE,88909,,People Services,Care Spot - Private (3rd),5701,BUSN
18,Devon County Council,05/11/2012,CFADDOM30046041,REDACTED UNDER DP ACT,691.22,CAREWATCH NORTH DEVON & TORRIDGE,88909,,People Services,Care Spot - Private (3rd),5701,BUSN
18,Devon County Council,05/11/2012,CFADDOM30046042,REDACTED UNDER DP ACT,1054.15,CAREWATCH NORTH DEVON & TORRIDGE,88909,,People Services,Care Spot - Private (3rd),5701,BUSN
18,Devon County Council,05/11/2012,CFADDOM30046043,REDACTED UNDER DP ACT,735.88,CAREWATCH NORTH DEVON & TORRIDGE,88909,,People Services,Care Spot - Private (3rd),5701,BUSN
18,Devon County Council,05/11/2012,CFADDOM30046045,REDACTED UNDER DP ACT,610.54,CAREWATCH NORTH DEVON & TORRIDGE,88909,,People Services,Care Spot - Private (3rd),5701,BUSN
18,Devon County Council,28/11/2012,CFADDOM30047584,REDACTED UNDER DP ACT,613.97,CAREWATCH NORTH DEVON & TORRIDGE,88909,,People Services,Care Spot - Private (3rd),5701,BUSN
18,Devon County Council,28/11/2012,CFADDOM30047588,REDACTED UNDER DP ACT,535.08,CAREWATCH NORTH DEVON & TORRIDGE,88909,,People Services,Care Spot - Private (3rd),5701,BUSN
18,Devon County Council,28/11/2012,CFADDOM30047590,REDACTED UNDER DP ACT,706.58,CAREWATCH NORTH DEVON & TORRIDGE,88909,,People Services,Care Spot - Private (3rd),5701,BUSN
18,Devon County Council,28/11/2012,CFADDOM30047594,REDACTED UNDER DP ACT,775.18,CAREWATCH NORTH DEVON & TORRIDGE,88909,,People Services,Care Spot - Private (3rd),5701,BUSN
18,Devon County Council,28/11/2012,CFADDOM30047597,REDACTED UNDER DP ACT,769.39,CAREWATCH NORTH DEVON & TORRIDGE,88909,,People Services,Care Spot - Private (3rd),5701,BUSN
18,Devon County Council,28/11/2012,CFADDOM30047599,REDACTED UNDER DP ACT,1856.77,CAREWATCH NORTH DEVON & TORRIDGE,88909,,People Services,Care Spot - Private (3rd),5701,BUSN
18,Devon County Council,28/11/2012,CFADDOM30047603,REDACTED UNDER DP ACT,721.37,CAREWATCH NORTH DEVON & TORRIDGE,88909,,People Services,Care Spot - Private (3rd),5701,BUSN
18,Devon County Council,28/11/2012,CFADDOM30047606,REDACTED UNDER DP ACT,1098.81,CAREWATCH NORTH DEVON & TORRIDGE,88909,,People Services,Care Spot - Private (3rd),5701,BUSN
18,Devon County Council,28/11/2012,CFADDOM30047609,REDACTED UNDER DP ACT,686.74,CAREWATCH NORTH DEVON & TORRIDGE,88909,,People Services,Care Spot - Private (3rd),5701,BUSN
18,Devon County Council,28/11/2012,CFADDOM30047611,REDACTED UNDER DP ACT,1042.72,CAREWATCH NORTH DEVON & TORRIDGE,88909,,People Services,Care Spot - Private (3rd),5701,BUSN
18,Devon County Council,12/11/2012,DHRP30223887,14,675.75,CAREWATCH NORTH DEVON & TORRIDGE,88909,,Corporate Services,Course / Exam Fees & Registration,4312,BUSN
18,Devon County Council,27/11/2012,EARLYRS30234222,Aut 2a 84002,1667.5,CAREY,150910,,People Services,Payments to Vol Providers (3rd),5501,INDV
18,Devon County Council,21/11/2012,HIGHWAYS30501379,INV 353,2617.5,CAREY VALLEY WOODLANDS & EST MAN,108523,936633014,Place Services,Other Contractors (not Main / Term),4302,SOLE
18,Devon County Council,14/11/2012,CFADRES30071043,REDACTED UNDER DP ACT,832.74,CARISBROOKE CARE HOME,189754,,People Services,Care Spot - Private (3rd),5701,BUSN
18,Devon County Council,28/11/2012,CFADRES30071722,REDACTED UNDER DP ACT,832.74,CARISBROOKE CARE HOME,189754,,People Services,Care Spot - Private (3rd),5701,BUSN
18,Devon County Council,08/11/2012,TRCC30645508,NT CON TRVL NOV,1400,CARMEL COACHES LIMITED,6800,418116962,Place Services,Contracted Transport Services,3010,BUSN
18,Devon County Council,30/11/2012,TRCC30645885,CON BUS TRVLPR2,1267.25,CARMEL COACHES LIMITED,6800,418116962,Place Services,Contracted Transport Services,3010,BUSN
18,Devon County Council,28/11/2012,CFSUPP30171547,REDACTED UNDER DP ACT,56545.08,CARR GOMM SOCIETY,201197,,People Services,Accomodation Based Services (3rd),5707,BUSN
18,Devon County Council,29/11/2012,HQ30526523,39526,666.56,CARRIER DIRECT LTD,183687,631081672,Place Services,Other Contractors (not Main / Term),4302,FACT
18,Devon County Council,14/11/2012,CFADRES30071148,REDACTED UNDER DP ACT,914.12,CARRINGTON HOUSE,240422,,People Services,Care Spot - Private (3rd),5701,B
18,Devon County Council,28/11/2012,CFADRES30071825,REDACTED UNDER DP ACT,914.12,CARRINGTON HOUSE,240422,,People Services,Care Spot - Private (3rd),5701,B
18,Devon County Council,26/11/2012,CFADDOM30047387,REDACTED UNDER DP ACT,1042.72,CARRINGTON NURSING AGENCY,25432,,People Services,Care Spot - Private (3rd),5701,BUSN
18,Devon County Council,26/11/2012,CFADDOM30047394,REDACTED UNDER DP ACT,588,CARRINGTON NURSING AGENCY,25432,,People Services,Care Spot - Private (3rd),5701,BUSN
18,Devon County Council,26/11/2012,CFADDOM30047396,REDACTED UNDER DP ACT,1920.8,CARRINGTON NURSING AGENCY,25432,,People Services,Care Spot - Private (3rd),5701,BUSN
18,Devon County Council,26/11/2012,CFADDOM30047397,REDACTED UNDER DP ACT,1138.76,CARRINGTON NURSING AGENCY,25432,,People Services,Care Spot - Private (3rd),5701,BUSN
18,Devon County Council,26/11/2012,CFADDOM30047398,REDACTED UNDER DP ACT,588,CARRINGTON NURSING AGENCY,25432,,People Services,Care Spot - Private (3rd),5701,BUSN
18,Devon County Council,26/11/2012,CFADDOM30047399,REDACTED UNDER DP ACT,864.36,CARRINGTON NURSING AGENCY,25432,,People Services,Care Spot - Private (3rd),5701,BUSN
18,Devon County Council,26/11/2012,CFADDOM30047400,REDACTED UNDER DP ACT,672.28,CARRINGTON NURSING AGENCY,25432,,People Services,Care Spot - Private (3rd),5701,BUSN
18,Devon County Council,26/11/2012,CFADDOM30047404,REDACTED UNDER DP ACT,960.4,CARRINGTON NURSING AGENCY,25432,,People Services,Care Spot - Private (3rd),5701,BUSN
18,Devon County Council,26/11/2012,CFADDOM30047405,REDACTED UNDER DP ACT,1125.04,CARRINGTON NURSING AGENCY,25432,,People Services,Care Spot - Private (3rd),5701,BUSN
18,Devon County Council,26/11/2012,CFADDOM30047406,REDACTED UNDER DP ACT,742,CARRINGTON NURSING AGENCY,25432,,People Services,Care Spot - Private (3rd),5701,BUSN
18,Devon County Council,26/11/2012,CFADDOM30047407,REDACTED UNDER DP ACT,672.28,CARRINGTON NURSING AGENCY,25432,,People Services,Care Spot - Private (3rd),5701,BUSN
18,Devon County Council,26/11/2012,CFADDOM30047408,REDACTED UNDER DP ACT,1056.44,CARRINGTON NURSING AGENCY,25432,,People Services,Care Spot - Private (3rd),5701,BUSN
18,Devon County Council,26/11/2012,CFADDOM30047409,REDACTED UNDER DP ACT,994,CARRINGTON NURSING AGENCY,25432,,People Services,Care Spot - Private (3rd),5701,BUSN
18,Devon County Council,09/11/2012,CYPIHRES30191190,9062,1360,CARTER STEVE,184525,,People Services,Fixtures & Fittings - purchase / repair,2401,BUSN
18,Devon County Council,09/11/2012,BRACS30006957,A/10140,1159,CASCADE BLINDS,91452,846756188,Corporate Services,Other Building Maintenance,2251,BUSN
18,Devon County Council,09/11/2012,DPSCITT30230655,BURS02,500,CASE,295667,,People Services,Miscellaneous expenditure,4901,INDV
18,Devon County Council,14/11/2012,CFADRES30070789,REDACTED UNDER DP ACT,15792.62,CASH DE,90200,,People Services,Care Spot - Private (3rd),5701,B
18,Devon County Council,28/11/2012,CFADRES30071471,REDACTED UNDER DP ACT,15792.62,CASH DE,90200,,People Services,Care Spot - Private (3rd),5701,B
18,Devon County Council,14/11/2012,CFADRES30070749,REDACTED UNDER DP ACT,1858.12,CASTEL FROMA,89760,,People Services,Care Spot - Private (3rd),5701,B
18,Devon County Council,28/11/2012,CFADRES30071431,REDACTED UNDER DP ACT,1858.12,CASTEL FROMA,89760,,People Services,Care Spot - Private (3rd),5701,B
18,Devon County Council,28/11/2012,CFADRES30071496,REDACTED UNDER DP ACT,1128.08,CASTLE ROAD RENT A/C,90446,,People Services,Care Spot - Private (3rd),5701,B
18,Devon County Council,14/11/2012,CFADRES30071283,REDACTED UNDER DP ACT,5500,CASTLEBECK CARE(TEESDALE)WILLOW,294537,,People Services,Care Spot - Private (3rd),5701,B
18,Devon County Council,28/11/2012,CFADRES30071958,REDACTED UNDER DP ACT,5500,CASTLEBECK CARE(TEESDALE)WILLOW,294537,,People Services,Care Spot - Private (3rd),5701,B
18,Devon County Council,06/11/2012,CYPSWLOC30209233,120140,4464,CATCHPOINT,162586,,People Services,Incidental costs Fostered Children (3rd),5715,BUSN
18,Devon County Council,16/11/2012,CYPSWLOC30209814,120130,1920,CATCH-POINT CONSULTANCY LTD,220033,,People Services,Section 17 Payments (3rd),5710,LTD
18,Devon County Council,14/11/2012,CFADRES30071028,REDACTED UNDER DP ACT,789.64,CATHEDRAL VIEW,182341,,People Services,Care Spot - Private (3rd),5701,BUSN
18,Devon County Council,28/11/2012,CFADRES30071707,REDACTED UNDER DP ACT,789.64,CATHEDRAL VIEW,182341,,People Services,Care Spot - Private (3rd),5701,BUSN
18,Devon County Council,14/11/2012,CFADRES30071167,REDACTED UNDER DP ACT,2036.2,CATHERINE HOUSE,251903,,People Services,Care Spot - Private (3rd),5701,B
18,Devon County Council,28/11/2012,CFADRES30071844,REDACTED UNDER DP ACT,2036.2,CATHERINE HOUSE,251903,,People Services,Care Spot - Private (3rd),5701,B
18,Devon County Council,09/11/2012,FINTBAD30468411,1060,1853.45,CAVENDISH HEALTHCARE LTD,280027,929397961,People Services,Equipment - Private (3rd),5741,LTD
18,Devon County Council,09/11/2012,FINTBAD30468412,1061,1259.79,CAVENDISH HEALTHCARE LTD,280027,929397961,People Services,Equipment - Private (3rd),5741,LTD
18,Devon County Council,09/11/2012,FINTBAD30468413,1062,1655.33,CAVENDISH HEALTHCARE LTD,280027,929397961,People Services,Equipment - Private (3rd),5741,LTD
18,Devon County Council,12/11/2012,FINTBAD30468426,1063,1579.73,CAVENDISH HEALTHCARE LTD,280027,929397961,People Services,Equipment - Private (3rd),5741,LTD
18,Devon County Council,15/11/2012,FINTBAD30468481,1064,1505.92,CAVENDISH HEALTHCARE LTD,280027,929397961,People Services,Equipment - Private (3rd),5741,LTD
18,Devon County Council,15/11/2012,FINTBAD30468482,1065,1040.43,CAVENDISH HEALTHCARE LTD,280027,929397961,People Services,Equipment - Private (3rd),5741,LTD
18,Devon County Council,30/11/2012,FINTBAD30468713,1066,1368.3,CAVENDISH HEALTHCARE LTD,280027,929397961,People Services,Equipment - Private (3rd),5741,LTD
18,Devon County Council,30/11/2012,FINTBAD30468714,1067,1199.34,CAVENDISH HEALTHCARE LTD,280027,929397961,People Services,Equipment - Private (3rd),5741,LTD
18,Devon County Council,30/11/2012,FINTBAD30468730,1068,1279.64,CAVENDISH HEALTHCARE LTD,280027,929397961,People Services,Equipment - Private (3rd),5741,LTD
18,Devon County Council,14/11/2012,CFADRES30071133,REDACTED UNDER DP ACT,2664,CEDAR GRANGE,232408,,People Services,Care Spot - Private (3rd),5701,B
18,Devon County Council,28/11/2012,CFADRES30071810,REDACTED UNDER DP ACT,2664,CEDAR GRANGE,232408,,People Services,Care Spot - Private (3rd),5701,B
18,Devon County Council,08/11/2012,RESTRAT30610962,FMATUMN12,851.2,CEDARS NEIGHBOURHOOD NURSERY,276435,,People Services,Independent School Fees,6001,BUSN
18,Devon County Council,14/11/2012,CFADRES30071205,REDACTED UNDER DP ACT,1100,CERNE ABBAS,275155,,People Services,Care Spot - Private (3rd),5701,B
18,Devon County Council,28/11/2012,CFADRES30071882,REDACTED UNDER DP ACT,1100,CERNE ABBAS,275155,,People Services,Care Spot - Private (3rd),5701,B
18,Devon County Council,06/11/2012,COMMUNTY30174032,WD/DISC/04,3000,CHAGFORD PARISH COUNCIL,298037,,Place Services,Grants Paid,4802,PRSH
18,Devon County Council,07/11/2012,SCOMIS30613209,SCO01504,1500,CHALK & WARD ADVERTISING,192530,717578795,Corporate Services,Printing & Design,4201,BUSN
18,Devon County Council,09/11/2012,DPSCITT30230656,BURS02,500,CHANDLER,295668,,People Services,Miscellaneous expenditure,4901,INDV
18,Devon County Council,30/11/2012,HIGHWAYS30502149,PC12_946,1548,CHANIN PAUL DR,94749,927887756,Place Services,Other Contractors (not Main / Term),4302,MEDC
18,Devon County Council,07/11/2012,CFADDAY30022287,REDACTED UNDER DP ACT,720,CHAPTER 1,256621,,People Services,Individualised Support - Private (3rd),5706,B
18,Devon County Council,07/11/2012,CFADDAY30022288,REDACTED UNDER DP ACT,681.75,CHAPTER 1,256621,,People Services,Individualised Support - Private (3rd),5706,B
18,Devon County Council,07/11/2012,CFADDAY30022290,REDACTED UNDER DP ACT,681.75,CHAPTER 1,256621,,People Services,Individualised Support - Private (3rd),5706,B
18,Devon County Council,07/11/2012,CFADDAY30022295,REDACTED UNDER DP ACT,640.8,CHAPTER 1,256621,,People Services,Individualised Support - Private (3rd),5706,B
18,Devon County Council,07/11/2012,CFADDAY30022296,REDACTED UNDER DP ACT,640.8,CHAPTER 1,256621,,People Services,Individualised Support - Private (3rd),5706,B
18,Devon County Council,07/11/2012,CFADDAY30022300,REDACTED UNDER DP ACT,1363.5,CHAPTER 1,256621,,People Services,Individualised Support - Private (3rd),5706,B
18,Devon County Council,07/11/2012,CFADDAY30022301,REDACTED UNDER DP ACT,1048.5,CHAPTER 1,256621,,People Services,Individualised Support - Private (3rd),5706,B
18,Devon County Council,21/11/2012,CFADDAY30023077,REDACTED UNDER DP ACT,683.47,CHAPTER 1,256621,,People Services,Individualised Support - Private (3rd),5706,B
18,Devon County Council,21/11/2012,CFADDAY30023079,REDACTED UNDER DP ACT,683.48,CHAPTER 1,256621,,People Services,Individualised Support - Private (3rd),5706,B
18,Devon County Council,21/11/2012,CFADDAY30023080,REDACTED UNDER DP ACT,683.47,CHAPTER 1,256621,,People Services,Individualised Support - Private (3rd),5706,B
18,Devon County Council,21/11/2012,CFADDAY30023081,REDACTED UNDER DP ACT,643.56,CHAPTER 1,256621,,People Services,Individualised Support - Private (3rd),5706,B
18,Devon County Council,21/11/2012,CFADDAY30023082,REDACTED UNDER DP ACT,643.56,CHAPTER 1,256621,,People Services,Individualised Support - Private (3rd),5706,B
18,Devon County Council,21/11/2012,CFADDAY30023086,REDACTED UNDER DP ACT,1366.95,CHAPTER 1,256621,,People Services,Individualised Support - Private (3rd),5706,B
18,Devon County Council,21/11/2012,CFADDAY30023087,REDACTED UNDER DP ACT,1366.95,CHAPTER 1,256621,,People Services,Individualised Support - Private (3rd),5706,B
18,Devon County Council,21/11/2012,CFADDAY30023088,REDACTED UNDER DP ACT,767.48,CHAPTER 1,256621,,People Services,Individualised Support - Private (3rd),5706,B
18,Devon County Council,21/11/2012,CFADDAY30023089,REDACTED UNDER DP ACT,1366.95,CHAPTER 1,256621,,People Services,Individualised Support - Private (3rd),5706,B
18,Devon County Council,21/11/2012,CFADDAY30023090,REDACTED UNDER DP ACT,720,CHAPTER 1,256621,,People Services,Individualised Support - Private (3rd),5706,B
18,Devon County Council,21/11/2012,CFADDAY30023091,REDACTED UNDER DP ACT,683.48,CHAPTER 1,256621,,People Services,Individualised Support - Private (3rd),5706,B
18,Devon County Council,26/11/2012,CFADDOM30047545,REDACTED UNDER DP ACT,1501.5,CHAPTER CARE(NORTH DEVON)LTD,230988,911614553,People Services,Care Spot - Private (3rd),5701,B
18,Devon County Council,26/11/2012,CFADDOM30047546,REDACTED UNDER DP ACT,2100,CHAPTER CARE(NORTH DEVON)LTD,230988,911614553,People Services,Care Spot - Private (3rd),5701,B
18,Devon County Council,26/11/2012,CFADDOM30047549,REDACTED UNDER DP ACT,938,CHAPTER CARE(NORTH DEVON)LTD,230988,911614553,People Services,Care Spot - Private (3rd),5701,B
18,Devon County Council,26/11/2012,CFADDOM30047552,REDACTED UNDER DP ACT,1288,CHAPTER CARE(NORTH DEVON)LTD,230988,911614553,People Services,Care Spot - Private (3rd),5701,B
18,Devon County Council,14/11/2012,CFADRES30070768,REDACTED UNDER DP ACT,782,CHARLTON HOUSE R HME,89999,,People Services,Care Spot - Private (3rd),5701,B
18,Devon County Council,28/11/2012,CFADRES30071450,REDACTED UNDER DP ACT,782,CHARLTON HOUSE R HME,89999,,People Services,Care Spot - Private (3rd),5701,B
18,Devon County Council,14/11/2012,CFADRES30070960,REDACTED UNDER DP ACT,6260.71,CHARTERHOUSE RESIDENTIAL HOME,146731,,People Services,Care Spot - Private (3rd),5701,B
18,Devon County Council,28/11/2012,CFADRES30071640,REDACTED UNDER DP ACT,6186.76,CHARTERHOUSE RESIDENTIAL HOME,146731,,People Services,Care Spot - Private (3rd),5701,B
18,Devon County Council,14/11/2012,CFADRES30071221,REDACTED UNDER DP ACT,970,CHASTON HOUSE LTD/MRS P LEATHAM,279695,,People Services,Care Spot - Private (3rd),5701,B
18,Devon County Council,28/11/2012,CFADRES30071899,REDACTED UNDER DP ACT,970,CHASTON HOUSE LTD/MRS P LEATHAM,279695,,People Services,Care Spot - Private (3rd),5701,B
18,Devon County Council,19/11/2012,GMHFM30485729,15639,547.1,CHEEKY COW CATERING CO,203108,866807872,Corporate Services,Hospitality & Other Expenses,4703,BUSN
18,Devon County Council,14/11/2012,CFADRES30071005,REDACTED UNDER DP ACT,16386.17,CHELFHAM HOUSE RESIDENTIAL HOME,170833,,People Services,Care Spot - Private (3rd),5701,B
18,Devon County Council,28/11/2012,CFADRES30071685,REDACTED UNDER DP ACT,16504.75,CHELFHAM HOUSE RESIDENTIAL HOME,170833,,People Services,Care Spot - Private (3rd),5701,B
18,Devon County Council,26/11/2012,CYPNMLOC30198033,6590471,3900,CHELFHAM MILL SCHOOL,61436,,People Services,Residential Care - Private (3rd),5731,EDUC
18,Devon County Council,26/11/2012,CYPNMLOC30198034,6590473,4875,CHELFHAM MILL SCHOOL,61436,,People Services,Residential Care - Private (3rd),5731,EDUC
18,Devon County Council,26/11/2012,CYPNMLOC30198035,6590470,3315,CHELFHAM MILL SCHOOL,61436,,People Services,Residential Care - Private (3rd),5731,EDUC
18,Devon County Council,19/11/2012,CYPSWLOC30209815,6590467,16125,CHELFHAM MILL SCHOOL,61436,,People Services,Residential Care - Private (3rd),5731,EDUC
18,Devon County Council,19/11/2012,CYPSWLOC30209816,6590466,43092,CHELFHAM MILL SCHOOL,61436,,People Services,Residential Care - Private (3rd),5731,EDUC
18,Devon County Council,29/11/2012,CYPSWLOC30209842,6590474,4875,CHELFHAM MILL SCHOOL,61436,,People Services,Residential Care - Private (3rd),5731,EDUC
18,Devon County Council,12/11/2012,RESTRAT30611014,6590468,11013.5,CHELFHAM MILL SCHOOL,61436,,People Services,Independent Special School Fees,5733,EDUC
18,Devon County Council,14/11/2012,RESTRAT30611044,PUPILPREM36,1000,CHELFHAM MILL SCHOOL,61436,,People Services,Pupil Premium,9054,EDUC
18,Devon County Council,26/11/2012,CYPNMLOC30197878,402000926A,55559.84,CHELFHAM SENIOR SCHOOL,171060,626524835,People Services,Residential Care - Private (3rd),5731,EDUC
18,Devon County Council,26/11/2012,CYPNMLOC30197879,402000922A,56400,CHELFHAM SENIOR SCHOOL,171060,626524835,People Services,Residential Care - Private (3rd),5731,EDUC
18,Devon County Council,26/11/2012,CYPNMLOC30197880,402000923A,31250,CHELFHAM SENIOR SCHOOL,171060,626524835,People Services,Residential Care - Private (3rd),5731,EDUC
18,Devon County Council,15/11/2012,CYPSWLOC30209420,402000928A,46319.5,CHELFHAM SENIOR SCHOOL,171060,626524835,People Services,Residential Care - Private (3rd),5731,EDUC
18,Devon County Council,19/11/2012,CYPSWLOC30209736,402000927A,55600.5,CHELFHAM SENIOR SCHOOL,171060,626524835,People Services,Residential Care - Private (3rd),5731,EDUC
18,Devon County Council,15/11/2012,RESTRAT30611066,402000919B,6113.25,CHELFHAM SENIOR SCHOOL,171060,626524835,People Services,Independent Special School Fees,5733,EDUC
18,Devon County Council,15/11/2012,RESTRAT30611067,402000919A,18339.75,CHELFHAM SENIOR SCHOOL,171060,626524835,People Services,Independent Special School Fees,5733,EDUC
18,Devon County Council,15/11/2012,RESTRAT30611070,402000921B,5148.02,CHELFHAM SENIOR SCHOOL,171060,626524835,People Services,Independent Special School Fees,5733,EDUC
18,Devon County Council,15/11/2012,RESTRAT30611071,40200921A,15444.08,CHELFHAM SENIOR SCHOOL,171060,626524835,People Services,Independent Special School Fees,5733,EDUC
18,Devon County Council,16/11/2012,RESTRAT30611074,402000920A,20021.7,CHELFHAM SENIOR SCHOOL,171060,626524835,People Services,Independent Special School Fees,5733,EDUC
18,Devon County Council,16/11/2012,RESTRAT30611075,402000920B,6673.9,CHELFHAM SENIOR SCHOOL,171060,626524835,People Services,Independent Special School Fees,5733,EDUC
18,Devon County Council,26/11/2012,RESTRAT30611200,40200094B,6333.33,CHELFHAM SENIOR SCHOOL,171060,626524835,People Services,Independent Special School Fees,5733,EDUC
18,Devon County Council,26/11/2012,RESTRAT30611201,402000924A,19000,CHELFHAM SENIOR SCHOOL,171060,626524835,People Services,Independent Special School Fees,5733,EDUC
18,Devon County Council,26/11/2012,CYPNMLOC17336041,4020000955,-38010.93,CHELFHAM SENIOR SCHOOL,171060,626524835,People Services,Residential Care - Private (3rd),5731,EDUC
18,Devon County Council,15/11/2012,CYPSWLOC17336241,4020000891,-21013.67,CHELFHAM SENIOR SCHOOL,171060,626524835,People Services,Residential Care - Private (3rd),5731,EDUC
18,Devon County Council,29/11/2012,FNSWMHLD30476935,4020000925A,47749.71,CHELFHAM SENIOR SCHOOL PRIORY,269558,626524835,People Services,Care Spot - Private (3rd),5701,EDUC
18,Devon County Council,14/11/2012,CFADRES30070664,REDACTED UNDER DP ACT,2648,CHELSTON PARK NURSING & RES HOME,87556,,People Services,Care Spot - Private (3rd),5701,B
18,Devon County Council,28/11/2012,CFADRES30071347,REDACTED UNDER DP ACT,2648,CHELSTON PARK NURSING & RES HOME,87556,,People Services,Care Spot - Private (3rd),5701,B
18,Devon County Council,30/11/2012,TRCC30645886,CON BUS TRVLPR2,839.28,CHELSTONE LEISURE SERVICES,274032,818021456,Place Services,Contracted Transport Services,3010,BUSN
18,Devon County Council,27/11/2012,HIGHWAYS30501875,C117316,525,CHEMTEST,243998,,Place Services,Professional Fees,4306,BUSN
18,Devon County Council,27/11/2012,EARLYRS30234223,Aut 2a 84003,820.2,CHERITON BISHOP PLAYGROUP,39010,,People Services,Payments to Vol Providers (3rd),5501,EY
18,Devon County Council,14/11/2012,CFADRES30071116,REDACTED UNDER DP ACT,565.02,CHERITON RESIDENTIAL & CARE HOME,229197,,People Services,Care Spot - Private (3rd),5701,B
18,Devon County Council,28/11/2012,CFADRES30071793,REDACTED UNDER DP ACT,565.02,CHERITON RESIDENTIAL & CARE HOME,229197,,People Services,Care Spot - Private (3rd),5701,B
18,Devon County Council,14/11/2012,CFADRES30071245,REDACTED UNDER DP ACT,578.07,CHESHIRE WEST & CHESTER COUNCIL,286325,945101154,People Services,Care Respite - Private (3rd),5703,WGA
18,Devon County Council,14/11/2012,CFADRES30070744,REDACTED UNDER DP ACT,5306.24,CHEVERELLS,89678,945641015,People Services,Care Spot - Private (3rd),5701,BUSN
18,Devon County Council,28/11/2012,CFADRES30071426,REDACTED UNDER DP ACT,5306.24,CHEVERELLS,89678,945641015,People Services,Care Spot - Private (3rd),5701,BUSN
18,Devon County Council,27/11/2012,EARLYRS30234474,Aut 2f 84011,7891.97,CHILDRENS FIRST FEDERATION,282138,129847279,People Services,Payments to Vol Providers (3rd),5501,EDUC
18,Devon County Council,28/11/2012,EDUC30242959,CLASS12/31630,7695,CHILDRENS FIRST FEDERATION,282138,129847279,People Services,Detailed & Exceptional Arrangements,9052,EDUC
18,Devon County Council,27/11/2012,EDUC30243736,CLASS12/37214,820.08,CHILDRENS FIRST FEDERATION,282138,129847279,People Services,Reimb. From Teachers Supply Insurance Pr,9204,EDUC
18,Devon County Council,28/11/2012,EDUC30243737,CLASS12/37342,3443,CHILDRENS FIRST FEDERATION,282138,129847279,People Services,In year DSG to Academies,6008,EDUC
18,Devon County Council,12/11/2012,RESTRAT30611006,CONNOR BAKER,500,CHILDRENS FIRST FEDERATION,282138,129847279,People Services,Miscellaneous expenditure,4901,EDUC
18,Devon County Council,12/11/2012,RESTRAT30611007,TYLER HOLMES,1000,CHILDRENS FIRST FEDERATION,282138,129847279,People Services,Miscellaneous expenditure,4901,EDUC
18,Devon County Council,14/11/2012,CFADRES30070648,REDACTED UNDER DP ACT,4940.84,CHIMES THE,87062,,People Services,Care Spot - Private (3rd),5701,B
18,Devon County Council,28/11/2012,CFADRES30071331,REDACTED UNDER DP ACT,4940.84,CHIMES THE,87062,,People Services,Care Spot - Private (3rd),5701,B
18,Devon County Council,02/11/2012,HIGHWAYS30499926,CS120546,666.11,CHIPSIDE LTD,280928,812080569,Place Services,Other Fees & Charges (Expenditure),4311,LTD
18,Devon County Council,02/11/2012,HIGHWAYS30499927,CS120544,987.43,CHIPSIDE LTD,280928,812080569,Place Services,Other Fees & Charges (Expenditure),4311,LTD
18,Devon County Council,02/11/2012,HIGHWAYS30499928,CS120542,2458.87,CHIPSIDE LTD,280928,812080569,Place Services,Other Fees & Charges (Expenditure),4311,LTD
18,Devon County Council,02/11/2012,HIGHWAYS30499929,CS120547,2397.41,CHIPSIDE LTD,280928,812080569,Place Services,Other Fees & Charges (Expenditure),4311,LTD
18,Devon County Council,14/11/2012,CFADRES30070654,REDACTED UNDER DP ACT,919.7,CHOICE CARE HOME,87299,,People Services,Care Spot - Private (3rd),5701,B
18,Devon County Council,28/11/2012,CFADRES30071337,REDACTED UNDER DP ACT,919.7,CHOICE CARE HOME,87299,,People Services,Care Spot - Private (3rd),5701,B
18,Devon County Council,14/11/2012,CFADRES30070629,REDACTED UNDER DP ACT,7732.55,CHOLLACOTT HOUSE NURSING HOME,64045,,People Services,Care Spot - Private (3rd),5701,BUSN
18,Devon County Council,20/11/2012,CFBOUT30096719,REDACTED UNDER DP ACT,625.48,CHOULES,298210,,People Services,Weekly Allowances,5712,INDV
18,Devon County Council,28/11/2012,CFSUPP30171495,REDACTED UNDER DP ACT,19252.32,CHRISTIAN ALLIANCE H A(SP PMTS),120564,,People Services,Accomodation Based Services (3rd),5707,B
18,Devon County Council,01/11/2012,FINMH30445196,351,11201.66,CHRISTIAN ALLIANCE H A(SP PMTS),120564,,People Services,Care Block - Private (3rd),5702,B
18,Devon County Council,02/11/2012,FINMH30445200,226,969,CHRISTIAN ALLIANCE HOUSING ASSOC,160070,749563487,People Services,Individualised Support - Private (3rd),5706,B
18,Devon County Council,27/11/2012,FINMH30445311,238,1366.95,CHRISTIAN ALLIANCE HOUSING ASSOC,160070,749563487,People Services,Individualised Support - Private (3rd),5706,B
18,Devon County Council,28/11/2012,EDUC30243545,CLASS12/36306,938,CHRISTOW PRIMARY SCHOOL (ACADEMY,295464,,People Services,In year DSG to Academies,6008,EDUC
18,Devon County Council,08/11/2012,CYPIHRES30191210,3654431,642.76,CHUBB FIRE (MANCHESTER),19705,439475808,People Services,Health & Safety Equipment,4007,LTD
18,Devon County Council,23/11/2012,LIBHQ30550614,3687527,941.34,CHUBB SYSTEMS LTD,155588,439475808,Place Services,Other Building Maintenance,2251,LTD
18,Devon County Council,27/11/2012,EARLYRS30234224,Aut 2a 84004,1666.13,CHUDLEIGH KNIGHTON PRESCHOOL LTD,27177,,People Services,Payments to Vol Providers (3rd),5501,EY
18,Devon County Council,27/11/2012,EARLYRS30234225,Aut 2a 84005,1728.01,CHUDLEIGH PRE SCHOOL,64370,,People Services,Payments to Vol Providers (3rd),5501,EY
18,Devon County Council,05/11/2012,YOUTHSTH20463118,LYN 2012-13,3000,CHUDLEIGH YOUTH CNTR CHARITBL TR,83324,,People Services,Grants Paid,4802,YTH
18,Devon County Council,28/11/2012,EDUC30242911,CLASS12/31647,16730,CHULMLEIGH ACADEMY TRUST,280323,,People Services,Detailed & Exceptional Arrangements,9052,EDUC
18,Devon County Council,28/11/2012,EDUC30243392,CLASS12/34816,1583,CHULMLEIGH ACADEMY TRUST,280323,,People Services,In year DSG to Academies,6008,EDUC
18,Devon County Council,28/11/2012,CFSUPP30171434,REDACTED UNDER DP ACT,3512.6,CHURCHES HOUSING ACTION TEAM,97914,,People Services,Floating Support Service (3rd),5708,BUSN
18,Devon County Council,01/11/2012,DITS30229690,278,10800,CIH SOLUTIONS LTD,289200,914977388,Corporate Services,Professional Fees,4306,LTD
18,Devon County Council,28/11/2012,DIRSUPP30227229,3904,1073.69,CINTAS DOCUMENT MANAGEMENT UK LT,286930,807445919,Corporate Services,Other Fees & Charges (Expenditure),4311,LTD
18,Devon County Council,21/11/2012,CFADDOM30047201,REDACTED UNDER DP ACT,1033.2,CIRCLE OF CARE,177175,,People Services,Care Spot - Private (3rd),5701,BUSN
18,Devon County Council,21/11/2012,CFADDOM30047202,REDACTED UNDER DP ACT,1239.84,CIRCLE OF CARE,177175,,People Services,Care Spot - Private (3rd),5701,BUSN
18,Devon County Council,21/11/2012,CFADDOM30047203,REDACTED UNDER DP ACT,678.96,CIRCLE OF CARE,177175,,People Services,Care Spot - Private (3rd),5701,BUSN
18,Devon County Council,21/11/2012,CFADDOM30047206,REDACTED UNDER DP ACT,1033.2,CIRCLE OF CARE,177175,,People Services,Care Spot - Private (3rd),5701,BUSN
18,Devon County Council,21/11/2012,CFADDOM30047209,REDACTED UNDER DP ACT,546.12,CIRCLE OF CARE,177175,,People Services,Care Spot - Private (3rd),5701,BUSN
18,Devon County Council,21/11/2012,CFADDOM30047210,REDACTED UNDER DP ACT,619.92,CIRCLE OF CARE,177175,,People Services,Care Spot - Private (3rd),5701,BUSN
18,Devon County Council,21/11/2012,CFADDOM30047213,REDACTED UNDER DP ACT,619.92,CIRCLE OF CARE,177175,,People Services,Care Spot - Private (3rd),5701,BUSN
18,Devon County Council,21/11/2012,CFADDOM30047214,REDACTED UNDER DP ACT,1859.76,CIRCLE OF CARE,177175,,People Services,Care Spot - Private (3rd),5701,BUSN
18,Devon County Council,21/11/2012,CFADDOM30047215,REDACTED UNDER DP ACT,1033.2,CIRCLE OF CARE,177175,,People Services,Care Spot - Private (3rd),5701,BUSN
18,Devon County Council,21/11/2012,CFADDOM30047217,REDACTED UNDER DP ACT,667.89,CIRCLE OF CARE,177175,,People Services,Care Spot - Private (3rd),5701,BUSN
18,Devon County Council,21/11/2012,CFADDOM30047219,REDACTED UNDER DP ACT,1033.2,CIRCLE OF CARE,177175,,People Services,Care Spot - Private (3rd),5701,BUSN
18,Devon County Council,21/11/2012,CFADDOM30047221,REDACTED UNDER DP ACT,944.64,CIRCLE OF CARE,177175,,People Services,Care Spot - Private (3rd),5701,BUSN
18,Devon County Council,21/11/2012,CFADDOM30047222,REDACTED UNDER DP ACT,826.56,CIRCLE OF CARE,177175,,People Services,Care Spot - Private (3rd),5701,BUSN
18,Devon County Council,21/11/2012,CFADDOM30047223,REDACTED UNDER DP ACT,619.92,CIRCLE OF CARE,177175,,People Services,Care Spot - Private (3rd),5701,BUSN
18,Devon County Council,21/11/2012,CFADDOM30047224,REDACTED UNDER DP ACT,516.6,CIRCLE OF CARE,177175,,People Services,Care Spot - Private (3rd),5701,BUSN
18,Devon County Council,21/11/2012,CFADDOM30047225,REDACTED UNDER DP ACT,929.88,CIRCLE OF CARE,177175,,People Services,Care Spot - Private (3rd),5701,BUSN
18,Devon County Council,21/11/2012,CFADDOM30047226,REDACTED UNDER DP ACT,745.38,CIRCLE OF CARE,177175,,People Services,Care Spot - Private (3rd),5701,BUSN
18,Devon County Council,26/11/2012,CFADDOM30047497,REDACTED UNDER DP ACT,1166.04,CIRCLE OF CARE,177175,,People Services,Care Spot - Private (3rd),5701,BUSN
18,Devon County Council,05/11/2012,FINSSCW30457968,I159169,45000,CITIZENS ADVICE,207496,,People Services,Payments to Vol Providers (3rd),5501,VCS
18,Devon County Council,28/11/2012,DHRP30224021,802604924,1170,CITY & GUILDS INSTITUTE,23679,788656455,Corporate Services,Course / Exam Fees & Registration,4312,BUSN
18,Devon County Council,28/11/2012,CFSUPP30171472,REDACTED UNDER DP ACT,9003.96,CITY OF EXETER YMCA HOUSING ASSC,117856,,People Services,Accomodation Based Services (3rd),5707,BUSN
18,Devon County Council,27/11/2012,EARLYRS30234226,Aut 2a 84006,11398.16,CLAIRES LITTLE BEARS,281758,,People Services,Payments to Vol Providers (3rd),5501,EY
18,Devon County Council,27/11/2012,EARLYRS30234227,Aut 2a 84007,11719.66,CLAIRES LITTLE ROBINS DAY NURSRY,282643,,People Services,Payments to Vol Providers (3rd),5501,BUSN
18,Devon County Council,29/11/2012,EARLYRS30234500,EYEF AUT 2,3591.04,CLAIRES LITTLE ROBINS DAY NURSRY,282643,,People Services,Payments to Vol Providers (3rd),5501,BUSN
18,Devon County Council,27/11/2012,EARLYRS30234228,Aut 2a 84008,11068.17,CLAIRES NEWPORT NURSERY,49034,,People Services,Payments to Vol Providers (3rd),5501,EY
18,Devon County Council,02/11/2012,HIGHWAYS30500021,4032,737.69,CLARK,261951,,Place Services,Other Contractors (not Main / Term),4302,INDV
18,Devon County Council,14/11/2012,CFADRES30071042,REDACTED UNDER DP ACT,952,CLARONDENE RESIDENTIAL CARE HOME,189665,,People Services,Care Spot - Private (3rd),5701,BUSN
18,Devon County Council,28/11/2012,CFADRES30071721,REDACTED UNDER DP ACT,952,CLARONDENE RESIDENTIAL CARE HOME,189665,,People Services,Care Spot - Private (3rd),5701,BUSN
18,Devon County Council,28/11/2012,STRAT30614900,1654,1798,CLASSROOM COMMUNIATIONS LTD,282450,,People Services,Materials & Consumables,4003,LTD
18,Devon County Council,27/11/2012,EARLYRS30234229,Aut 2a 84009,2727.67,CLAWTON PRE-SCHOOL,202322,,People Services,Payments to Vol Providers (3rd),5501,EY
18,Devon County Council,14/11/2012,CFADRES30071031,REDACTED UNDER DP ACT,10270.66,CLAYFIELD CARE HOME,183803,,People Services,Care Spot - Private (3rd),5701,BUSN
18,Devon County Council,28/11/2012,CFADRES30071710,REDACTED UNDER DP ACT,10270.66,CLAYFIELD CARE HOME,183803,,People Services,Care Spot - Private (3rd),5701,BUSN
18,Devon County Council,27/11/2012,CFBOUT30097127,REDACTED UNDER DP ACT,1052.74,CLEMAS,289291,,People Services,Adoption Allowances (3rd),5711,INDV
18,Devon County Council,14/11/2012,DPSCITT30230657,BURS02,500,CLEMENTS,295669,,People Services,Miscellaneous expenditure,4901,INDV
18,Devon County Council,12/11/2012,LEGAL30547104,B08612 LAMBLE,700,CLERK TO THE JUSTICES,115781,,People Services,Legal Fees & Disbursements,4314,BUSN
18,Devon County Council,28/11/2012,LEGAL30547243,B08509,1900,CLERK TO THE JUSTICES,115781,,People Services,Legal Fees & Disbursements,4314,BUSN
18,Devon County Council,12/11/2012,LEGAL30547102,B08264,700,CLERK TO THE JUSTICES (B'STAPLE),20417,,People Services,Legal Fees & Disbursements,4314,BUSN
18,Devon County Council,19/11/2012,LEGAL30547164,B08375 NOV 12,700,CLERK TO THE JUSTICES (B'STAPLE),20417,,People Services,Legal Fees & Disbursements,4314,BUSN
18,Devon County Council,29/11/2012,LEGAL30547248,B08457,700,CLERK TO THE JUSTICES (B'STAPLE),20417,,People Services,Legal Fees & Disbursements,4314,BUSN
